Organisation Name,Organisation Code,Unique Ref No,Effective Date,Directorate  where expenditure incurred,Supplier Name,Payment Date,Net Amount,Procurement Classification (Higher Level),Purpose of Spend,Procurement Classification (Lower Level),Capital/Revenue
Walsall Council,http://opendatacommunities.org/id/metropolitan-district-council/walsall,WC105-01,30/06/2019,Childrens,11KBW,17/06/2019,750.00,73014-LEGAL FEES-PRIV CONTRACTOR FEES,GENERAL MANAGEMENT SUPPORT (INC LEGAL),Third Party Payments,Revenue
Walsall Council,http://opendatacommunities.org/id/metropolitan-district-council/walsall,WC105-02,30/06/2019,Childrens,11KBW,17/06/2019,"4,800.00",73014-LEGAL FEES-PRIV CONTRACTOR FEES,GENERAL MANAGEMENT SUPPORT (INC LEGAL),Third Party Payments,Revenue
Walsall Council,http://opendatacommunities.org/id/metropolitan-district-council/walsall,WC105-03,30/06/2019,Childrens,247 CARS (WILLENHALL) LIMITED,13/06/2019,478.30,53101-OTHER/VOLUNTEERS-PUBLIC TRANSPORT,SAFEGUARDING & FAMILY SUPPORT,Transport,Revenue
Walsall Council,http://opendatacommunities.org/id/metropolitan-district-council/walsall,WC105-04,30/06/2019,Childrens,247 CARS (WILLENHALL) LIMITED,19/06/2019,"6,001.00",52000-WITH DRIVER-HIRE OF VEHICLES,HOME TO SCHOOL TRANSPORT,Transport,Revenue
Walsall Council,http://opendatacommunities.org/id/metropolitan-district-council/walsall,WC105-05,30/06/2019,Resources and Transformation,31ST SUTTON COLDFIELD WEST SCOUT GROUP BUILDING FUND,26/06/2019,405.00,63128-HIRE OF ROOM-SERVICES-FEES,ELECTORAL ADMINISTRATION,Supplies & Services,Revenue
Walsall Council,http://opendatacommunities.org/id/metropolitan-district-council/walsall,WC105-06,30/06/2019,Childrens,39 ESSEX STREET LLP PFA,21/06/2019,650.00,63116-EXTERNAL BARRISTERS-SERVICES-FEES,GENERAL MANAGEMENT SUPPORT (INC LEGAL),Supplies & Services,Revenue
Walsall Council,http://opendatacommunities.org/id/metropolitan-district-council/walsall,WC105-07,30/06/2019,Childrens,39 ESSEX STREET LLP PFA,10/06/2019,"2,364.30",63116-EXTERNAL BARRISTERS-SERVICES-FEES,PERFORMANCE & OUTCOMES TEAM (C&YP),Supplies & Services,Revenue
Walsall Council,http://opendatacommunities.org/id/metropolitan-district-council/walsall,WC105-08,30/06/2019,Adult Social Care,5 CARE SERVICES LTD,21/06/2019,267.68,73507-DOMICILIARY CARE,PHYSICAL SUPPORT,Third Party Payments,Revenue
Walsall Council,http://opendatacommunities.org/id/metropolitan-district-council/walsall,WC105-09,30/06/2019,Adult Social Care,5 CARE SERVICES LTD,21/06/2019,275.86,73507-DOMICILIARY CARE,SENSORY SUPPORT,Third Party Payments,Revenue
Walsall Council,http://opendatacommunities.org/id/metropolitan-district-council/walsall,WC105-10,30/06/2019,Adult Social Care,5 CARE SERVICES LTD,21/06/2019,286.80,73507-DOMICILIARY CARE,SOCIAL SUPPORT,Third Party Payments,Revenue
Walsall Council,http://opendatacommunities.org/id/metropolitan-district-council/walsall,WC105-11,30/06/2019,Adult Social Care,5 CARE SERVICES LTD,21/06/2019,325.04,73507-DOMICILIARY CARE,PHYSICAL SUPPORT,Third Party Payments,Revenue
Walsall Council,http://opendatacommunities.org/id/metropolitan-district-council/walsall,WC105-12,30/06/2019,Adult Social Care,5 CARE SERVICES LTD,21/06/2019,329.82,73507-DOMICILIARY CARE,MENTAL HEALTH SUPPORT,Third Party Payments,Revenue
Walsall Council,http://opendatacommunities.org/id/metropolitan-district-council/walsall,WC105-13,30/06/2019,Adult Social Care,5 CARE SERVICES LTD,21/06/2019,332.21,73507-DOMICILIARY CARE,PHYSICAL SUPPORT,Third Party Payments,Revenue
Walsall Council,http://opendatacommunities.org/id/metropolitan-district-council/walsall,WC105-14,30/06/2019,Adult Social Care,5 CARE SERVICES LTD,21/06/2019,333.38,73507-DOMICILIARY CARE,PHYSICAL SUPPORT,Third Party Payments,Revenue
Walsall Council,http://opendatacommunities.org/id/metropolitan-district-council/walsall,WC105-15,30/06/2019,Adult Social Care,5 CARE SERVICES LTD,21/06/2019,343.96,73507-DOMICILIARY CARE,PHYSICAL SUPPORT,Third Party Payments,Revenue
Walsall Council,http://opendatacommunities.org/id/metropolitan-district-council/walsall,WC105-16,30/06/2019,Childrens,5 CARE SERVICES LTD,05/06/2019,351.09,63000-PROFESSIONAL FEES AND SERVICES,DIRECTLY COMMISSIONED NURSING SERVICES,Supplies & Services,Revenue
Walsall Council,http://opendatacommunities.org/id/metropolitan-district-council/walsall,WC105-17,30/06/2019,Adult Social Care,5 CARE SERVICES LTD,21/06/2019,351.30,73507-DOMICILIARY CARE,PHYSICAL SUPPORT,Third Party Payments,Revenue
Walsall Council,http://opendatacommunities.org/id/metropolitan-district-council/walsall,WC105-18,30/06/2019,Adult Social Care,5 CARE SERVICES LTD,21/06/2019,362.11,73507-DOMICILIARY CARE,PHYSICAL SUPPORT,Third Party Payments,Revenue
Walsall Council,http://opendatacommunities.org/id/metropolitan-district-council/walsall,WC105-19,30/06/2019,Adult Social Care,5 CARE SERVICES LTD,21/06/2019,384.63,73507-DOMICILIARY CARE,SENSORY SUPPORT,Third Party Payments,Revenue
Walsall Council,http://opendatacommunities.org/id/metropolitan-district-council/walsall,WC105-20,30/06/2019,Adult Social Care,5 CARE SERVICES LTD,21/06/2019,391.95,73507-DOMICILIARY CARE,PHYSICAL SUPPORT,Third Party Payments,Revenue
Walsall Council,http://opendatacommunities.org/id/metropolitan-district-council/walsall,WC105-21,30/06/2019,Adult Social Care,5 CARE SERVICES LTD,21/06/2019,394.35,73507-DOMICILIARY CARE,PHYSICAL SUPPORT,Third Party Payments,Revenue
Walsall Council,http://opendatacommunities.org/id/metropolitan-district-council/walsall,WC105-22,30/06/2019,Adult Social Care,5 CARE SERVICES LTD,21/06/2019,396.74,73507-DOMICILIARY CARE,PHYSICAL SUPPORT,Third Party Payments,Revenue
Walsall Council,http://opendatacommunities.org/id/metropolitan-district-council/walsall,WC105-23,30/06/2019,Adult Social Care,5 CARE SERVICES LTD,21/06/2019,399.13,73507-DOMICILIARY CARE,PHYSICAL SUPPORT,Third Party Payments,Revenue
Walsall Council,http://opendatacommunities.org/id/metropolitan-district-council/walsall,WC105-24,30/06/2019,Adult Social Care,5 CARE SERVICES LTD,21/06/2019,419.47,73507-DOMICILIARY CARE,PHYSICAL SUPPORT,Third Party Payments,Revenue
Walsall Council,http://opendatacommunities.org/id/metropolitan-district-council/walsall,WC105-25,30/06/2019,Childrens,5 CARE SERVICES LTD,20/06/2019,451.40,63000-PROFESSIONAL FEES AND SERVICES,DIRECTLY COMMISSIONED NURSING SERVICES,Supplies & Services,Revenue
Walsall Council,http://opendatacommunities.org/id/metropolitan-district-council/walsall,WC105-26,30/06/2019,Adult Social Care,5 CARE SERVICES LTD,21/06/2019,458.56,73507-DOMICILIARY CARE,PHYSICAL SUPPORT,Third Party Payments,Revenue
Walsall Council,http://opendatacommunities.org/id/metropolitan-district-council/walsall,WC105-27,30/06/2019,Adult Social Care,5 CARE SERVICES LTD,21/06/2019,463.66,73507-DOMICILIARY CARE,SENSORY SUPPORT,Third Party Payments,Revenue
Walsall Council,http://opendatacommunities.org/id/metropolitan-district-council/walsall,WC105-28,30/06/2019,Adult Social Care,5 CARE SERVICES LTD,21/06/2019,470.83,73507-DOMICILIARY CARE,PHYSICAL SUPPORT,Third Party Payments,Revenue
Walsall Council,http://opendatacommunities.org/id/metropolitan-district-council/walsall,WC105-29,30/06/2019,Adult Social Care,5 CARE SERVICES LTD,21/06/2019,470.83,73507-DOMICILIARY CARE,PHYSICAL SUPPORT,Third Party Payments,Revenue
Walsall Council,http://opendatacommunities.org/id/metropolitan-district-council/walsall,WC105-30,30/06/2019,Adult Social Care,5 CARE SERVICES LTD,21/06/2019,476.81,73507-DOMICILIARY CARE,PHYSICAL SUPPORT,Third Party Payments,Revenue
Walsall Council,http://opendatacommunities.org/id/metropolitan-district-council/walsall,WC105-31,30/06/2019,Adult Social Care,5 CARE SERVICES LTD,21/06/2019,478.00,73507-DOMICILIARY CARE,SOCIAL SUPPORT,Third Party Payments,Revenue
Walsall Council,http://opendatacommunities.org/id/metropolitan-district-council/walsall,WC105-32,30/06/2019,Adult Social Care,5 CARE SERVICES LTD,21/06/2019,499.37,73507-DOMICILIARY CARE,PHYSICAL SUPPORT,Third Party Payments,Revenue
Walsall Council,http://opendatacommunities.org/id/metropolitan-district-council/walsall,WC105-33,30/06/2019,Adult Social Care,5 CARE SERVICES LTD,21/06/2019,532.97,73507-DOMICILIARY CARE,PHYSICAL SUPPORT,Third Party Payments,Revenue
Walsall Council,http://opendatacommunities.org/id/metropolitan-district-council/walsall,WC105-34,30/06/2019,Adult Social Care,5 CARE SERVICES LTD,21/06/2019,552.09,73507-DOMICILIARY CARE,PHYSICAL SUPPORT,Third Party Payments,Revenue
Walsall Council,http://opendatacommunities.org/id/metropolitan-district-council/walsall,WC105-35,30/06/2019,Childrens,5 CARE SERVICES LTD,05/06/2019,581.00,63000-PROFESSIONAL FEES AND SERVICES,DIRECTLY COMMISSIONED NURSING SERVICES,Supplies & Services,Revenue
Walsall Council,http://opendatacommunities.org/id/metropolitan-district-council/walsall,WC105-36,30/06/2019,Adult Social Care,5 CARE SERVICES LTD,21/06/2019,599.75,73507-DOMICILIARY CARE,LEARNING DISABILITY SUPPORT,Third Party Payments,Revenue
Walsall Council,http://opendatacommunities.org/id/metropolitan-district-council/walsall,WC105-37,30/06/2019,Adult Social Care,5 CARE SERVICES LTD,21/06/2019,609.45,73507-DOMICILIARY CARE,PHYSICAL SUPPORT,Third Party Payments,Revenue
Walsall Council,http://opendatacommunities.org/id/metropolitan-district-council/walsall,WC105-38,30/06/2019,Adult Social Care,5 CARE SERVICES LTD,21/06/2019,609.46,73507-DOMICILIARY CARE,PHYSICAL SUPPORT,Third Party Payments,Revenue
Walsall Council,http://opendatacommunities.org/id/metropolitan-district-council/walsall,WC105-39,30/06/2019,Adult Social Care,5 CARE SERVICES LTD,21/06/2019,615.42,73507-DOMICILIARY CARE,PHYSICAL SUPPORT,Third Party Payments,Revenue
Walsall Council,http://opendatacommunities.org/id/metropolitan-district-council/walsall,WC105-40,30/06/2019,Adult Social Care,5 CARE SERVICES LTD,21/06/2019,642.94,73507-DOMICILIARY CARE,PHYSICAL SUPPORT,Third Party Payments,Revenue
Walsall Council,http://opendatacommunities.org/id/metropolitan-district-council/walsall,WC105-41,30/06/2019,Childrens,5 CARE SERVICES LTD,19/06/2019,702.17,63000-PROFESSIONAL FEES AND SERVICES,DIRECTLY COMMISSIONED NURSING SERVICES,Supplies & Services,Revenue
Walsall Council,http://opendatacommunities.org/id/metropolitan-district-council/walsall,WC105-42,30/06/2019,Adult Social Care,5 CARE SERVICES LTD,21/06/2019,769.59,73507-DOMICILIARY CARE,PHYSICAL SUPPORT,Third Party Payments,Revenue
Walsall Council,http://opendatacommunities.org/id/metropolitan-district-council/walsall,WC105-43,30/06/2019,Adult Social Care,5 CARE SERVICES LTD,21/06/2019,792.45,73507-DOMICILIARY CARE,PHYSICAL SUPPORT,Third Party Payments,Revenue
Walsall Council,http://opendatacommunities.org/id/metropolitan-district-council/walsall,WC105-44,30/06/2019,Adult Social Care,5 CARE SERVICES LTD,21/06/2019,799.45,73507-DOMICILIARY CARE,PHYSICAL SUPPORT,Third Party Payments,Revenue
Walsall Council,http://opendatacommunities.org/id/metropolitan-district-council/walsall,WC105-45,30/06/2019,Adult Social Care,5 CARE SERVICES LTD,21/06/2019,805.24,73507-DOMICILIARY CARE,PHYSICAL SUPPORT,Third Party Payments,Revenue
Walsall Council,http://opendatacommunities.org/id/metropolitan-district-council/walsall,WC105-46,30/06/2019,Adult Social Care,5 CARE SERVICES LTD,21/06/2019,865.04,73507-DOMICILIARY CARE,PHYSICAL SUPPORT,Third Party Payments,Revenue
Walsall Council,http://opendatacommunities.org/id/metropolitan-district-council/walsall,WC105-47,30/06/2019,Adult Social Care,5 CARE SERVICES LTD,21/06/2019,874.32,73507-DOMICILIARY CARE,LEARNING DISABILITY SUPPORT,Third Party Payments,Revenue
Walsall Council,http://opendatacommunities.org/id/metropolitan-district-council/walsall,WC105-48,30/06/2019,Adult Social Care,5 CARE SERVICES LTD,21/06/2019,889.99,73507-DOMICILIARY CARE,PHYSICAL SUPPORT,Third Party Payments,Revenue
Walsall Council,http://opendatacommunities.org/id/metropolitan-district-council/walsall,WC105-49,30/06/2019,Adult Social Care,5 CARE SERVICES LTD,21/06/2019,890.14,73507-DOMICILIARY CARE,PHYSICAL SUPPORT,Third Party Payments,Revenue
Walsall Council,http://opendatacommunities.org/id/metropolitan-district-council/walsall,WC105-50,30/06/2019,Adult Social Care,5 CARE SERVICES LTD,21/06/2019,902.08,73507-DOMICILIARY CARE,PHYSICAL SUPPORT,Third Party Payments,Revenue
Walsall Council,http://opendatacommunities.org/id/metropolitan-district-council/walsall,WC105-51,30/06/2019,Adult Social Care,5 CARE SERVICES LTD,21/06/2019,906.84,73507-DOMICILIARY CARE,PHYSICAL SUPPORT,Third Party Payments,Revenue
Walsall Council,http://opendatacommunities.org/id/metropolitan-district-council/walsall,WC105-52,30/06/2019,Adult Social Care,5 CARE SERVICES LTD,21/06/2019,993.97,73507-DOMICILIARY CARE,PHYSICAL SUPPORT,Third Party Payments,Revenue
Walsall Council,http://opendatacommunities.org/id/metropolitan-district-council/walsall,WC105-53,30/06/2019,Adult Social Care,5 CARE SERVICES LTD,21/06/2019,"1,161.54",73507-DOMICILIARY CARE,PHYSICAL SUPPORT,Third Party Payments,Revenue
Walsall Council,http://opendatacommunities.org/id/metropolitan-district-council/walsall,WC105-54,30/06/2019,Adult Social Care,5 CARE SERVICES LTD,21/06/2019,"1,273.60",73507-DOMICILIARY CARE,PHYSICAL SUPPORT,Third Party Payments,Revenue
Walsall Council,http://opendatacommunities.org/id/metropolitan-district-council/walsall,WC105-55,30/06/2019,Adult Social Care,5 CARE SERVICES LTD,21/06/2019,"1,488.94",73507-DOMICILIARY CARE,PHYSICAL SUPPORT,Third Party Payments,Revenue
Walsall Council,http://opendatacommunities.org/id/metropolitan-district-council/walsall,WC105-56,30/06/2019,Adult Social Care,5 CARE SERVICES LTD,21/06/2019,"1,620.40",73507-DOMICILIARY CARE,PHYSICAL SUPPORT,Third Party Payments,Revenue
Walsall Council,http://opendatacommunities.org/id/metropolitan-district-council/walsall,WC105-57,30/06/2019,Adult Social Care,5 CARE SERVICES LTD,21/06/2019,"1,701.42",73507-DOMICILIARY CARE,PHYSICAL SUPPORT,Third Party Payments,Revenue
Walsall Council,http://opendatacommunities.org/id/metropolitan-district-council/walsall,WC105-58,30/06/2019,Adult Social Care,5 CARE SERVICES LTD,21/06/2019,"1,849.36",73507-DOMICILIARY CARE,PHYSICAL SUPPORT,Third Party Payments,Revenue
Walsall Council,http://opendatacommunities.org/id/metropolitan-district-council/walsall,WC105-59,30/06/2019,Adult Social Care,5 CARE SERVICES LTD,21/06/2019,"1,892.28",73507-DOMICILIARY CARE,PHYSICAL SUPPORT,Third Party Payments,Revenue
Walsall Council,http://opendatacommunities.org/id/metropolitan-district-council/walsall,WC105-60,30/06/2019,Adult Social Care,5 CARE SERVICES LTD,21/06/2019,"1,978.46",73507-DOMICILIARY CARE,PHYSICAL SUPPORT,Third Party Payments,Revenue
Walsall Council,http://opendatacommunities.org/id/metropolitan-district-council/walsall,WC105-61,30/06/2019,Economy & Environment,A D T FIRE AND SECURITY PLC,04/06/2019,507.17,40000-OPERATIONAL MAINTENANCE,ARBORETUM,Premises,Revenue
Walsall Council,http://opendatacommunities.org/id/metropolitan-district-council/walsall,WC105-62,30/06/2019,Economy & Environment,A D T FIRE AND SECURITY PLC,04/06/2019,562.88,40000-OPERATIONAL MAINTENANCE,ARBORETUM,Premises,Revenue
Walsall Council,http://opendatacommunities.org/id/metropolitan-district-council/walsall,WC105-63,30/06/2019,Economy & Environment,A D T FIRE AND SECURITY PLC,04/06/2019,578.14,40000-OPERATIONAL MAINTENANCE,ARBORETUM,Premises,Revenue
Walsall Council,http://opendatacommunities.org/id/metropolitan-district-council/walsall,WC105-64,30/06/2019,Economy & Environment,A D T FIRE AND SECURITY PLC,04/06/2019,655.51,40000-OPERATIONAL MAINTENANCE,ARBORETUM,Premises,Revenue
Walsall Council,http://opendatacommunities.org/id/metropolitan-district-council/walsall,WC105-65,30/06/2019,Adult Social Care,A F BLAKEMORE & SON LTD,19/06/2019,351.20,61016-FOOD AND BEVERAGES-PROVISIONS,GOSCOTE,Supplies & Services,Revenue
Walsall Council,http://opendatacommunities.org/id/metropolitan-district-council/walsall,WC105-66,30/06/2019,Economy & Environment,A F BLAKEMORE & SON LTD,13/06/2019,351.89,61018-DRINKS-PROVISIONS,OAK PARK,Supplies & Services,Revenue
Walsall Council,http://opendatacommunities.org/id/metropolitan-district-council/walsall,WC105-67,30/06/2019,Economy & Environment,A F BLAKEMORE & SON LTD,19/06/2019,364.93,61008-CONFECTIONERY/SNACKS-PROVISIONS,OAK PARK,Supplies & Services,Revenue
Walsall Council,http://opendatacommunities.org/id/metropolitan-district-council/walsall,WC105-68,30/06/2019,Adult Social Care,A F BLAKEMORE & SON LTD,13/06/2019,423.02,61016-FOOD AND BEVERAGES-PROVISIONS,GOSCOTE,Supplies & Services,Revenue
Walsall Council,http://opendatacommunities.org/id/metropolitan-district-council/walsall,WC105-69,30/06/2019,Economy & Environment,A F BLAKEMORE & SON LTD,01/06/2019,718.71,61008-CONFECTIONERY/SNACKS-PROVISIONS,BLOXWICH LEISURE CENTRE,Supplies & Services,Revenue
Walsall Council,http://opendatacommunities.org/id/metropolitan-district-council/walsall,WC105-70,30/06/2019,Economy & Environment,A F BLAKEMORE & SON LTD,19/06/2019,747.11,61008-CONFECTIONERY/SNACKS-PROVISIONS,OAK PARK,Supplies & Services,Revenue
Walsall Council,http://opendatacommunities.org/id/metropolitan-district-council/walsall,WC105-71,30/06/2019,Resources and Transformation,A G BARR PLC,04/06/2019,208.70,61305-CATERING,INTEGRATED FACILITIES MANAGEMENT,Supplies & Services,Revenue
Walsall Council,http://opendatacommunities.org/id/metropolitan-district-council/walsall,WC105-72,30/06/2019,Resources and Transformation,AAF LTD,05/06/2019,240.90,40000-OPERATIONAL MAINTENANCE,CENTRAL OFFICE ACCOMMODATION,Premises,Revenue
Walsall Council,http://opendatacommunities.org/id/metropolitan-district-council/walsall,WC105-73,30/06/2019,Resources and Transformation,AAINA COMMUNITY HUB,13/06/2019,300.00,63128-HIRE OF ROOM-SERVICES-FEES,ELECTORAL ADMINISTRATION,Supplies & Services,Revenue
Walsall Council,http://opendatacommunities.org/id/metropolitan-district-council/walsall,WC105-74,30/06/2019,Resources and Transformation,AAINA COMMUNITY HUB,04/06/2019,"4,725.00",66500-GRANTS TO OTHER ORGS,LET'S TALK ABOUT IT PROJECT,Third Party Payments,Revenue
Walsall Council,http://opendatacommunities.org/id/metropolitan-district-council/walsall,WC105-75,30/06/2019,Childrens,REDACTED,11/06/2019,"1,107.43",73506-DIRECT PAYMENT,FAMILY SUPPORT - DIRECT PAYMENTS,Third Party Payments,Revenue
Walsall Council,http://opendatacommunities.org/id/metropolitan-district-council/walsall,WC105-76,30/06/2019,Adult Social Care,ABBEY COURT NURSING & RESIDEN,24/06/2019,"1,814.96",73500-RESIDENTIAL,PHYSICAL SUPPORT,Third Party Payments,Revenue
Walsall Council,http://opendatacommunities.org/id/metropolitan-district-council/walsall,WC105-77,30/06/2019,Adult Social Care,ABBEY COURT NURSING & RESIDEN,24/06/2019,"1,972.24",73501-RESIDENTIAL EMI,PHYSICAL SUPPORT,Third Party Payments,Revenue
Walsall Council,http://opendatacommunities.org/id/metropolitan-district-council/walsall,WC105-78,30/06/2019,Adult Social Care,ABBEY COURT NURSING & RESIDEN,24/06/2019,"1,972.24",73501-RESIDENTIAL EMI,SUPPORT WITH MEMORY & COGNITION,Third Party Payments,Revenue
Walsall Council,http://opendatacommunities.org/id/metropolitan-district-council/walsall,WC105-79,30/06/2019,Adult Social Care,ABBEY COURT NURSING & RESIDEN,24/06/2019,"1,972.24",73501-RESIDENTIAL EMI,PHYSICAL SUPPORT,Third Party Payments,Revenue
Walsall Council,http://opendatacommunities.org/id/metropolitan-district-council/walsall,WC105-80,30/06/2019,Adult Social Care,ABBEY COURT NURSING & RESIDEN,24/06/2019,"2,358.08",73503-NURSING EMI,MENTAL HEALTH SUPPORT,Third Party Payments,Revenue
Walsall Council,http://opendatacommunities.org/id/metropolitan-district-council/walsall,WC105-81,30/06/2019,Adult Social Care,ABBEY COURT NURSING & RESIDEN,24/06/2019,"2,383.72",73502-NURSING,SUPPORT WITH MEMORY & COGNITION,Third Party Payments,Revenue
Walsall Council,http://opendatacommunities.org/id/metropolitan-district-council/walsall,WC105-82,30/06/2019,Economy & Environment,ABBEY ENGLAND LIMITED,06/06/2019,"450,000.00",01045-PRIVATE GRANTS,CFR 1282 THE LEATHER INDUSTRY EXPANSION,Capital,Capital
Walsall Council,http://opendatacommunities.org/id/metropolitan-district-council/walsall,WC105-83,30/06/2019,Adult Social Care,ABBEY HEALTHCARE HOMES LTD,24/06/2019,"1,716.28",73500-RESIDENTIAL,PHYSICAL SUPPORT,Third Party Payments,Revenue
Walsall Council,http://opendatacommunities.org/id/metropolitan-district-council/walsall,WC105-84,30/06/2019,Adult Social Care,ABBEY HEALTHCARE HOMES LTD,24/06/2019,"2,317.04",73500-RESIDENTIAL,PHYSICAL SUPPORT,Third Party Payments,Revenue
Walsall Council,http://opendatacommunities.org/id/metropolitan-district-council/walsall,WC105-85,30/06/2019,Adult Social Care,ABBEY HEALTHCARE HOMES LTD,24/06/2019,"3,000.00",73502-NURSING,PHYSICAL SUPPORT,Third Party Payments,Revenue
Walsall Council,http://opendatacommunities.org/id/metropolitan-district-council/walsall,WC105-86,30/06/2019,Adult Social Care,ABBEY HEALTHCARE HOMES LTD,24/06/2019,"3,030.00",73500-RESIDENTIAL,LEARNING DISABILITY SUPPORT,Third Party Payments,Revenue
Walsall Council,http://opendatacommunities.org/id/metropolitan-district-council/walsall,WC105-87,30/06/2019,Adult Social Care,ABBEY HEALTHCARE HOMES LTD,24/06/2019,"3,030.00",73500-RESIDENTIAL,LEARNING DISABILITY SUPPORT,Third Party Payments,Revenue
Walsall Council,http://opendatacommunities.org/id/metropolitan-district-council/walsall,WC105-88,30/06/2019,Adult Social Care,ABBEY HEALTHCARE HOMES LTD,24/06/2019,"3,030.00",73500-RESIDENTIAL,PHYSICAL SUPPORT,Third Party Payments,Revenue
Walsall Council,http://opendatacommunities.org/id/metropolitan-district-council/walsall,WC105-89,30/06/2019,Adult Social Care,ABBEY HEALTHCARE HOMES LTD,24/06/2019,"3,030.00",73500-RESIDENTIAL,LEARNING DISABILITY SUPPORT,Third Party Payments,Revenue
Walsall Council,http://opendatacommunities.org/id/metropolitan-district-council/walsall,WC105-90,30/06/2019,Adult Social Care,ABBEY HEALTHCARE HOMES LTD,24/06/2019,"3,434.00",73500-RESIDENTIAL,LEARNING DISABILITY SUPPORT,Third Party Payments,Revenue
Walsall Council,http://opendatacommunities.org/id/metropolitan-district-council/walsall,WC105-91,30/06/2019,Adult Social Care,ABBEY HEALTHCARE HOMES LTD,24/06/2019,"3,514.44",73503-NURSING EMI,PHYSICAL SUPPORT,Third Party Payments,Revenue
Walsall Council,http://opendatacommunities.org/id/metropolitan-district-council/walsall,WC105-92,30/06/2019,Childrens,ABC DAY NURSERY (WILLENHALL) LIMITED,01/06/2019,"23,326.88",66505-OTHER-GRANTS TO OTHER ORGS,EARLY YEARS - 3 YR OLDS,Third Party Payments,Revenue
Walsall Council,http://opendatacommunities.org/id/metropolitan-district-council/walsall,WC105-93,30/06/2019,Childrens,ABC TEACHERS LIMITED,03/06/2019,"1,044.36",63000-PROFESSIONAL FEES AND SERVICES,SCHOOL IMPROVEMENT-VIRTUAL SCHOOL,Supplies & Services,Revenue
Walsall Council,http://opendatacommunities.org/id/metropolitan-district-council/walsall,WC105-94,30/06/2019,Childrens,ABC TEACHERS LIMITED,01/06/2019,"1,305.45",63000-PROFESSIONAL FEES AND SERVICES,SCHOOL IMPROVEMENT-VIRTUAL SCHOOL,Supplies & Services,Revenue
Walsall Council,http://opendatacommunities.org/id/metropolitan-district-council/walsall,WC105-95,30/06/2019,Childrens,ABC TEACHERS LIMITED,03/06/2019,"1,305.45",63000-PROFESSIONAL FEES AND SERVICES,SCHOOL IMPROVEMENT-VIRTUAL SCHOOL,Supplies & Services,Revenue
Walsall Council,http://opendatacommunities.org/id/metropolitan-district-council/walsall,WC105-96,30/06/2019,Childrens,ABC TEACHERS LIMITED,14/06/2019,"1,305.45",63000-PROFESSIONAL FEES AND SERVICES,SCHOOL IMPROVEMENT-VIRTUAL SCHOOL,Supplies & Services,Revenue
Walsall Council,http://opendatacommunities.org/id/metropolitan-district-council/walsall,WC105-97,30/06/2019,Adult Social Care,REDACTED,11/06/2019,"2,499.00",73506-DIRECT PAYMENT,LEARNING DISABILITY SUPPORT,Third Party Payments,Revenue
Walsall Council,http://opendatacommunities.org/id/metropolitan-district-council/walsall,WC105-98,30/06/2019,Childrens,ABLEWELL CARS,19/06/2019,"4,682.48",52000-WITH DRIVER-HIRE OF VEHICLES,HOME TO SCHOOL TRANSPORT,Transport,Revenue
Walsall Council,http://opendatacommunities.org/id/metropolitan-district-council/walsall,WC105-99,30/06/2019,Economy & Environment,ABRSM,21/06/2019,"4,639.00",63124-FEES & LICENCES-SERVICES,MUSIC HUB FOREST ARTS,Supplies & Services,Revenue
Walsall Council,http://opendatacommunities.org/id/metropolitan-district-council/walsall,WC105-100,30/06/2019,Childrens,ABS TAXIS (ALDRIDGE),21/06/2019,940.10,52000-WITH DRIVER-HIRE OF VEHICLES,HOME TO SCHOOL TRANSPORT,Transport,Revenue
Walsall Council,http://opendatacommunities.org/id/metropolitan-district-council/walsall,WC105-101,30/06/2019,Childrens,ABS TAXIS (ALDRIDGE),12/06/2019,"1,161.30",52000-WITH DRIVER-HIRE OF VEHICLES,HOME TO SCHOOL TRANSPORT,Transport,Revenue
Walsall Council,http://opendatacommunities.org/id/metropolitan-district-council/walsall,WC105-102,30/06/2019,Childrens,ABU BAKR NURSERY,01/06/2019,"11,705.85",66505-OTHER-GRANTS TO OTHER ORGS,EARLY YEARS - 3 YR OLDS,Third Party Payments,Revenue
Walsall Council,http://opendatacommunities.org/id/metropolitan-district-council/walsall,WC105-104,30/06/2019,Resources and Transformation,ACADEMY TRANSFORMATION TRUST,26/06/2019,270.00,63128-HIRE OF ROOM-SERVICES-FEES,ELECTORAL ADMINISTRATION,Supplies & Services,Revenue
Walsall Council,http://opendatacommunities.org/id/metropolitan-district-council/walsall,WC105-104,30/06/2019,Resources and Transformation,ACCESS CONTROL SOLUTIONS (UK) LTD,13/06/2019,310.00,73002-SECURITY-PRIV CONTRACTOR FEES,CENTRALISED MAINTENANCE,Third Party Payments,Revenue
Walsall Council,http://opendatacommunities.org/id/metropolitan-district-council/walsall,WC105-105,30/06/2019,Adult Social Care,ACCORD - AGE MATTERS,07/06/2019,-680.14,76423-DIRECT PAYMENTS SUPPORT,DIRECT PAYMENT SUPPORT ORGANISATIONS,Transfer Payments,Revenue
Walsall Council,http://opendatacommunities.org/id/metropolitan-district-council/walsall,WC105-106,30/06/2019,Adult Social Care,ACCORD HOUSING ASSOCIATION LTD#135,24/06/2019,296.80,73507-DOMICILIARY CARE,MENTAL HEALTH SUPPORT,Third Party Payments,Revenue
Walsall Council,http://opendatacommunities.org/id/metropolitan-district-council/walsall,WC105-107,30/06/2019,Adult Social Care,ACCORD HOUSING ASSOCIATION LTD#135,10/06/2019,324.00,73500-RESIDENTIAL,LEARNING DISABILITY SUPPORT,Third Party Payments,Revenue
Walsall Council,http://opendatacommunities.org/id/metropolitan-district-council/walsall,WC105-108,30/06/2019,Adult Social Care,ACCORD HOUSING ASSOCIATION LTD#135,24/06/2019,642.24,73507-DOMICILIARY CARE,MENTAL HEALTH SUPPORT,Third Party Payments,Revenue
Walsall Council,http://opendatacommunities.org/id/metropolitan-district-council/walsall,WC105-109,30/06/2019,Adult Social Care,ACCORD HOUSING ASSOCIATION LTD#135,24/06/2019,661.12,73508-COMMUNITY SUPPORTED LIVING/SUPPORTED ACCOMMODATION,MENTAL HEALTH SUPPORT,Third Party Payments,Revenue
Walsall Council,http://opendatacommunities.org/id/metropolitan-district-council/walsall,WC105-110,30/06/2019,Adult Social Care,ACCORD HOUSING ASSOCIATION LTD#135,24/06/2019,717.80,73508-COMMUNITY SUPPORTED LIVING/SUPPORTED ACCOMMODATION,MENTAL HEALTH SUPPORT,Third Party Payments,Revenue
Walsall Council,http://opendatacommunities.org/id/metropolitan-district-council/walsall,WC105-111,30/06/2019,Adult Social Care,ACCORD HOUSING ASSOCIATION LTD#135,24/06/2019,717.80,73508-COMMUNITY SUPPORTED LIVING/SUPPORTED ACCOMMODATION,MENTAL HEALTH SUPPORT,Third Party Payments,Revenue
Walsall Council,http://opendatacommunities.org/id/metropolitan-district-council/walsall,WC105-112,30/06/2019,Adult Social Care,ACCORD HOUSING ASSOCIATION LTD#135,24/06/2019,717.80,73508-COMMUNITY SUPPORTED LIVING/SUPPORTED ACCOMMODATION,MENTAL HEALTH SUPPORT,Third Party Payments,Revenue
Walsall Council,http://opendatacommunities.org/id/metropolitan-district-council/walsall,WC105-113,30/06/2019,Adult Social Care,ACCORD HOUSING ASSOCIATION LTD#135,24/06/2019,755.60,73508-COMMUNITY SUPPORTED LIVING/SUPPORTED ACCOMMODATION,MENTAL HEALTH SUPPORT,Third Party Payments,Revenue
Walsall Council,http://opendatacommunities.org/id/metropolitan-district-council/walsall,WC105-114,30/06/2019,Adult Social Care,ACCORD HOUSING ASSOCIATION LTD#135,24/06/2019,850.04,73508-COMMUNITY SUPPORTED LIVING/SUPPORTED ACCOMMODATION,MENTAL HEALTH SUPPORT,Third Party Payments,Revenue
Walsall Council,http://opendatacommunities.org/id/metropolitan-district-council/walsall,WC105-115,30/06/2019,Adult Social Care,ACCORD HOUSING ASSOCIATION LTD#135,24/06/2019,982.28,73507-DOMICILIARY CARE,MENTAL HEALTH SUPPORT,Third Party Payments,Revenue
Walsall Council,http://opendatacommunities.org/id/metropolitan-district-council/walsall,WC105-116,30/06/2019,Adult Social Care,ACCORD HOUSING ASSOCIATION LTD#135,24/06/2019,"1,322.28",73508-COMMUNITY SUPPORTED LIVING/SUPPORTED ACCOMMODATION,MENTAL HEALTH SUPPORT,Third Party Payments,Revenue
Walsall Council,http://opendatacommunities.org/id/metropolitan-district-council/walsall,WC105-117,30/06/2019,Adult Social Care,ACCORD HOUSING ASSOCIATION LTD#135,24/06/2019,"2,268.20",73500-RESIDENTIAL,LEARNING DISABILITY SUPPORT,Third Party Payments,Revenue
Walsall Council,http://opendatacommunities.org/id/metropolitan-district-council/walsall,WC105-118,30/06/2019,Resources and Transformation,ACCORD HOUSING ASSOCIATION LTD#135,14/06/2019,"2,500.00",63000-PROFESSIONAL FEES AND SERVICES,INTEGRATED COMMUNITIES PROGRAMME,Supplies & Services,Revenue
Walsall Council,http://opendatacommunities.org/id/metropolitan-district-council/walsall,WC105-119,30/06/2019,Adult Social Care,ACCORD HOUSING ASSOCIATION LTD#135,24/06/2019,"4,550.44",73500-RESIDENTIAL,LEARNING DISABILITY SUPPORT,Third Party Payments,Revenue
Walsall Council,http://opendatacommunities.org/id/metropolitan-district-council/walsall,WC105-120,30/06/2019,Adult Social Care,ACCORD HOUSING ASSOCIATION LTD#135,24/06/2019,"4,550.44",73500-RESIDENTIAL,LEARNING DISABILITY SUPPORT,Third Party Payments,Revenue
Walsall Council,http://opendatacommunities.org/id/metropolitan-district-council/walsall,WC105-121,30/06/2019,Adult Social Care,ACCORD HOUSING ASSOCIATION LTD#135,24/06/2019,"4,550.44",73500-RESIDENTIAL,LEARNING DISABILITY SUPPORT,Third Party Payments,Revenue
Walsall Council,http://opendatacommunities.org/id/metropolitan-district-council/walsall,WC105-122,30/06/2019,Adult Social Care,ACCORD HOUSING ASSOCIATION LTD#135,24/06/2019,"4,550.44",73500-RESIDENTIAL,LEARNING DISABILITY SUPPORT,Third Party Payments,Revenue
Walsall Council,http://opendatacommunities.org/id/metropolitan-district-council/walsall,WC105-123,30/06/2019,Resources and Transformation,ACCORD HOUSING ASSOCIATION LTD#135,01/06/2019,"4,991.54",01045-PRIVATE GRANTS,CFR 1359 DISABLED FACILITIES GRANT,Capital,Capital
Walsall Council,http://opendatacommunities.org/id/metropolitan-district-council/walsall,WC105-124,30/06/2019,Adult Social Care,ACCORD HOUSING ASSOCIATION LTD#135,24/06/2019,"6,350.96",73500-RESIDENTIAL,LEARNING DISABILITY SUPPORT,Third Party Payments,Revenue
Walsall Council,http://opendatacommunities.org/id/metropolitan-district-council/walsall,WC105-125,30/06/2019,Adult Social Care,ACCORD HOUSING ASSOCIATION LTD#135,24/06/2019,"6,350.96",73500-RESIDENTIAL,LEARNING DISABILITY SUPPORT,Third Party Payments,Revenue
Walsall Council,http://opendatacommunities.org/id/metropolitan-district-council/walsall,WC105-126,30/06/2019,Adult Social Care,ACCORD HOUSING ASSOCIATION LTD#135,26/06/2019,"6,609.47",70000-SOCIAL SERVICES-FEES TO VOLUNTARY BODIES,COMPLEX NEEDS SLA,Third Party Payments,Revenue
Walsall Council,http://opendatacommunities.org/id/metropolitan-district-council/walsall,WC105-127,30/06/2019,Childrens,ACCORD HOUSING ASSOCIATION LTD#135,26/06/2019,"6,655.50",63102-CONSULTANTS FEES - CORPORATE,EARLY HELP HUB,Supplies & Services,Revenue
Walsall Council,http://opendatacommunities.org/id/metropolitan-district-council/walsall,WC105-128,30/06/2019,Economy & Environment,ACCORD HOUSING ASSOCIATION LTD#135,24/06/2019,"7,437.50",63253-PAYMENT TO CONTRACTOR,MENTAL HEALTH,Third Party Payments,Revenue
Walsall Council,http://opendatacommunities.org/id/metropolitan-district-council/walsall,WC105-129,30/06/2019,Adult Social Care,ACCORD HOUSING ASSOCIATION LTD#135,25/06/2019,"16,682.40",73506-DIRECT PAYMENT,LEARNING DISABILITY SUPPORT,Third Party Payments,Revenue
Walsall Council,http://opendatacommunities.org/id/metropolitan-district-council/walsall,WC105-130,30/06/2019,Resources and Transformation,ACCORD HOUSING ASSOCIATION LTD#135,11/06/2019,"21,144.92",63000-PROFESSIONAL FEES AND SERVICES,HOMELESSNESS PREVENTION STRATEGY,Supplies & Services,Revenue
Walsall Council,http://opendatacommunities.org/id/metropolitan-district-council/walsall,WC105-131,30/06/2019,Resources and Transformation,ACCORD HOUSING ASSOCIATION LTD#135,26/06/2019,"21,144.92",63000-PROFESSIONAL FEES AND SERVICES,HOMELESSNESS PREVENTION STRATEGY,Supplies & Services,Revenue
Walsall Council,http://opendatacommunities.org/id/metropolitan-district-council/walsall,WC105-132,30/06/2019,Resources and Transformation,ACCORD HOUSING ASSOCIATION LTD#135,17/06/2019,"65,500.00",63000-PROFESSIONAL FEES AND SERVICES,HOMELESSNESS PREVENTION STRATEGY,Supplies & Services,Revenue
Walsall Council,http://opendatacommunities.org/id/metropolitan-district-council/walsall,WC105-133,30/06/2019,Economy & Environment,ACCORD HOUSING ASSOCIATION LTD#135,12/06/2019,"68,247.64",66500-GRANTS TO OTHER ORGS,CITY DEAL WELFARE PILOT,Third Party Payments,Revenue
Walsall Council,http://opendatacommunities.org/id/metropolitan-district-council/walsall,WC105-134,30/06/2019,Adult Social Care,ACEPAY LTD (COTTAGE NUR HOME),24/06/2019,765.61,73502-NURSING,PHYSICAL SUPPORT,Third Party Payments,Revenue
Walsall Council,http://opendatacommunities.org/id/metropolitan-district-council/walsall,WC105-135,30/06/2019,Adult Social Care,ACEPAY LTD (COTTAGE NUR HOME),24/06/2019,"1,301.54",73502-NURSING,PHYSICAL SUPPORT,Third Party Payments,Revenue
Walsall Council,http://opendatacommunities.org/id/metropolitan-district-council/walsall,WC105-136,30/06/2019,Adult Social Care,ACEPAY LTD (COTTAGE NUR HOME),17/06/2019,"1,388.18",73025-PROFESSIONAL SERVICES-PRIV CONTRACTOR & OTHER AGENCIES,TRANSITIONAL CARE SUPPORT TEAM,Third Party Payments,Revenue
Walsall Council,http://opendatacommunities.org/id/metropolitan-district-council/walsall,WC105-137,30/06/2019,Adult Social Care,ACEPAY LTD (COTTAGE NUR HOME),24/06/2019,"1,774.96",73500-RESIDENTIAL,PHYSICAL SUPPORT,Third Party Payments,Revenue
Walsall Council,http://opendatacommunities.org/id/metropolitan-district-council/walsall,WC105-138,30/06/2019,Adult Social Care,ACEPAY LTD (COTTAGE NUR HOME),24/06/2019,"1,972.24",73501-RESIDENTIAL EMI,PHYSICAL SUPPORT,Third Party Payments,Revenue
Walsall Council,http://opendatacommunities.org/id/metropolitan-district-council/walsall,WC105-139,30/06/2019,Adult Social Care,ACEPAY LTD (COTTAGE NUR HOME),24/06/2019,"2,143.72",73502-NURSING,PHYSICAL SUPPORT,Third Party Payments,Revenue
Walsall Council,http://opendatacommunities.org/id/metropolitan-district-council/walsall,WC105-140,30/06/2019,Adult Social Care,ACEPAY LTD (COTTAGE NUR HOME),24/06/2019,"2,143.72",73502-NURSING,PHYSICAL SUPPORT,Third Party Payments,Revenue
Walsall Council,http://opendatacommunities.org/id/metropolitan-district-council/walsall,WC105-141,30/06/2019,Adult Social Care,ACEPAY LTD (COTTAGE NUR HOME),24/06/2019,"2,143.72",73502-NURSING,PHYSICAL SUPPORT,Third Party Payments,Revenue
Walsall Council,http://opendatacommunities.org/id/metropolitan-district-council/walsall,WC105-142,30/06/2019,Adult Social Care,ACEPAY LTD (COTTAGE NUR HOME),24/06/2019,"2,143.72",73502-NURSING,PHYSICAL SUPPORT,Third Party Payments,Revenue
Walsall Council,http://opendatacommunities.org/id/metropolitan-district-council/walsall,WC105-143,30/06/2019,Adult Social Care,ACEPAY LTD (COTTAGE NUR HOME),24/06/2019,"2,143.72",73502-NURSING,SUPPORT WITH MEMORY & COGNITION,Third Party Payments,Revenue
Walsall Council,http://opendatacommunities.org/id/metropolitan-district-council/walsall,WC105-144,30/06/2019,Adult Social Care,ACEPAY LTD (COTTAGE NUR HOME),24/06/2019,"2,143.72",73502-NURSING,SUPPORT WITH MEMORY & COGNITION,Third Party Payments,Revenue
Walsall Council,http://opendatacommunities.org/id/metropolitan-district-council/walsall,WC105-145,30/06/2019,Adult Social Care,ACEPAY LTD (COTTAGE NUR HOME),24/06/2019,"2,143.72",73502-NURSING,SUPPORT WITH MEMORY & COGNITION,Third Party Payments,Revenue
Walsall Council,http://opendatacommunities.org/id/metropolitan-district-council/walsall,WC105-146,30/06/2019,Adult Social Care,ACEPAY LTD (COTTAGE NUR HOME),24/06/2019,"2,143.72",73502-NURSING,PHYSICAL SUPPORT,Third Party Payments,Revenue
Walsall Council,http://opendatacommunities.org/id/metropolitan-district-council/walsall,WC105-147,30/06/2019,Adult Social Care,ACEPAY LTD (COTTAGE NUR HOME),24/06/2019,"2,143.72",73502-NURSING,PHYSICAL SUPPORT,Third Party Payments,Revenue
Walsall Council,http://opendatacommunities.org/id/metropolitan-district-council/walsall,WC105-148,30/06/2019,Adult Social Care,ACEPAY LTD (COTTAGE NUR HOME),24/06/2019,"2,143.72",73502-NURSING,SOCIAL SUPPORT,Third Party Payments,Revenue
Walsall Council,http://opendatacommunities.org/id/metropolitan-district-council/walsall,WC105-149,30/06/2019,Adult Social Care,ACEPAY LTD (COTTAGE NUR HOME),24/06/2019,"2,143.72",73502-NURSING,PHYSICAL SUPPORT,Third Party Payments,Revenue
Walsall Council,http://opendatacommunities.org/id/metropolitan-district-council/walsall,WC105-150,30/06/2019,Adult Social Care,ACEPAY LTD (COTTAGE NUR HOME),24/06/2019,"2,143.72",73502-NURSING,SUPPORT WITH MEMORY & COGNITION,Third Party Payments,Revenue
Walsall Council,http://opendatacommunities.org/id/metropolitan-district-council/walsall,WC105-151,30/06/2019,Adult Social Care,ACEPAY LTD (COTTAGE NUR HOME),24/06/2019,"2,143.72",73502-NURSING,PHYSICAL SUPPORT,Third Party Payments,Revenue
Walsall Council,http://opendatacommunities.org/id/metropolitan-district-council/walsall,WC105-152,30/06/2019,Adult Social Care,ACORN CARE LTD,01/06/2019,489.49,73373-RESIDENTIAL & NURSING CARE PLACEMENTS,LD PACKAGE/PLACEMENT COSTS,Third Party Payments,Revenue
Walsall Council,http://opendatacommunities.org/id/metropolitan-district-council/walsall,WC105-153,30/06/2019,Adult Social Care,ACORN REST HOME,24/06/2019,"2,226.12",73500-RESIDENTIAL,SOCIAL SUPPORT,Third Party Payments,Revenue
Walsall Council,http://opendatacommunities.org/id/metropolitan-district-council/walsall,WC105-154,30/06/2019,Economy & Environment,ACTION DIGITAL MEDIA LTD T/A ACTION GRAPHICS,21/06/2019,267.00,"62521-INTERPRETATION,TRANSLATION & HUMAN AIDS TO TRANSCRIPTION",EXHIBITIONS - SPECIAL PROJECTS/PARTNERSHIPS,Supplies & Services,Revenue
Walsall Council,http://opendatacommunities.org/id/metropolitan-district-council/walsall,WC105-155,30/06/2019,Economy & Environment,ACTION DIGITAL MEDIA LTD T/A ACTION GRAPHICS,26/06/2019,875.00,62527-VISUAL ARTS,NAG - TEMPORARY EXHIBITIONS,Supplies & Services,Revenue
Walsall Council,http://opendatacommunities.org/id/metropolitan-district-council/walsall,WC105-156,30/06/2019,Childrens,ACTIVE CARE SOLUTIONS LTD,14/06/2019,"2,662.80",74037-INDEPENDENT FOSTER CARE-OTH AGENCY PROVISION,EXTERNAL FOSTER CARE PROVISION,Third Party Payments,Revenue
Walsall Council,http://opendatacommunities.org/id/metropolitan-district-council/walsall,WC105-157,30/06/2019,Childrens,ACTIVE CARE SOLUTIONS LTD,14/06/2019,"3,024.00",74037-INDEPENDENT FOSTER CARE-OTH AGENCY PROVISION,EXTERNAL FOSTER CARE PROVISION,Third Party Payments,Revenue
Walsall Council,http://opendatacommunities.org/id/metropolitan-district-council/walsall,WC105-158,30/06/2019,Childrens,ACTIVE CARE SOLUTIONS LTD,14/06/2019,"3,024.00",74037-INDEPENDENT FOSTER CARE-OTH AGENCY PROVISION,EXTERNAL FOSTER CARE PROVISION,Third Party Payments,Revenue
Walsall Council,http://opendatacommunities.org/id/metropolitan-district-council/walsall,WC105-159,30/06/2019,Childrens,ACTIVE CARE SOLUTIONS LTD,14/06/2019,"3,220.00",74037-INDEPENDENT FOSTER CARE-OTH AGENCY PROVISION,EXTERNAL FOSTER CARE PROVISION,Third Party Payments,Revenue
Walsall Council,http://opendatacommunities.org/id/metropolitan-district-council/walsall,WC105-160,30/06/2019,Adult Social Care,REDACTED,11/06/2019,553.15,73506-DIRECT PAYMENT,LEARNING DISABILITY SUPPORT,Third Party Payments,Revenue
Walsall Council,http://opendatacommunities.org/id/metropolitan-district-council/walsall,WC105-161,30/06/2019,Resources and Transformation,ADELIE FOODS LTD,06/06/2019,580.87,61305-CATERING,TOWN HALL RESTAURANT BISTRO,Supplies & Services,Revenue
Walsall Council,http://opendatacommunities.org/id/metropolitan-district-council/walsall,WC105-162,30/06/2019,Resources and Transformation,ADELIE FOODS LTD,18/06/2019,813.25,61305-CATERING,TOWN HALL RESTAURANT BISTRO,Supplies & Services,Revenue
Walsall Council,http://opendatacommunities.org/id/metropolitan-district-council/walsall,WC105-163,30/06/2019,Resources and Transformation,ADELIE FOODS LTD,04/06/2019,895.35,61305-CATERING,TOWN HALL RESTAURANT BISTRO,Supplies & Services,Revenue
Walsall Council,http://opendatacommunities.org/id/metropolitan-district-council/walsall,WC105-164,30/06/2019,Resources and Transformation,ADELIE FOODS LTD,04/06/2019,"1,048.05",61305-CATERING,TOWN HALL RESTAURANT BISTRO,Supplies & Services,Revenue
Walsall Council,http://opendatacommunities.org/id/metropolitan-district-council/walsall,WC105-165,30/06/2019,Adult Social Care,REDACTED,11/06/2019,"1,291.45",73506-DIRECT PAYMENT,PHYSICAL SUPPORT,Third Party Payments,Revenue
Walsall Council,http://opendatacommunities.org/id/metropolitan-district-council/walsall,WC105-166,30/06/2019,Childrens,REDACTED,01/06/2019,333.12,74510-RESIDENTS ORDERS,ADOPTION ALLOWANCES,Third Party Payments,Revenue
Walsall Council,http://opendatacommunities.org/id/metropolitan-district-council/walsall,WC105-167,30/06/2019,Childrens,REDACTED,01/06/2019,361.12,74510-RESIDENTS ORDERS,ADOPTION ALLOWANCES,Third Party Payments,Revenue
Walsall Council,http://opendatacommunities.org/id/metropolitan-district-council/walsall,WC105-168,30/06/2019,Adult Social Care,REDACTED,11/06/2019,"2,604.00",73506-DIRECT PAYMENT,LEARNING DISABILITY SUPPORT,Third Party Payments,Revenue
Walsall Council,http://opendatacommunities.org/id/metropolitan-district-council/walsall,WC105-169,30/06/2019,Adult Social Care,ADVANCE HEALTH CARE (UK) LTD,24/06/2019,-442.58,73025-PROFESSIONAL SERVICES-PRIV CONTRACTOR & OTHER AGENCIES,COMMUNITY INTERMEDIATE CARE,Third Party Payments,Revenue
Walsall Council,http://opendatacommunities.org/id/metropolitan-district-council/walsall,WC105-170,30/06/2019,Adult Social Care,ADVANCE HEALTH CARE (UK) LTD,24/06/2019,-442.58,73025-PROFESSIONAL SERVICES-PRIV CONTRACTOR & OTHER AGENCIES,COMMUNITY INTERMEDIATE CARE,Third Party Payments,Revenue
Walsall Council,http://opendatacommunities.org/id/metropolitan-district-council/walsall,WC105-171,30/06/2019,Adult Social Care,ADVANCE HEALTH CARE (UK) LTD,24/06/2019,-442.58,73025-PROFESSIONAL SERVICES-PRIV CONTRACTOR & OTHER AGENCIES,COMMUNITY INTERMEDIATE CARE,Third Party Payments,Revenue
Walsall Council,http://opendatacommunities.org/id/metropolitan-district-council/walsall,WC105-172,30/06/2019,Adult Social Care,ADVANCE HEALTH CARE (UK) LTD,24/06/2019,250.78,73025-PROFESSIONAL SERVICES-PRIV CONTRACTOR & OTHER AGENCIES,INTERMEDIATE CARE SERVICE,Third Party Payments,Revenue
Walsall Council,http://opendatacommunities.org/id/metropolitan-district-council/walsall,WC105-173,30/06/2019,Adult Social Care,ADVANCE HEALTH CARE (UK) LTD,26/06/2019,250.78,73025-PROFESSIONAL SERVICES-PRIV CONTRACTOR & OTHER AGENCIES,INTERMEDIATE CARE SERVICE,Third Party Payments,Revenue
Walsall Council,http://opendatacommunities.org/id/metropolitan-district-council/walsall,WC105-174,30/06/2019,Adult Social Care,ADVANCE HEALTH CARE (UK) LTD,26/06/2019,250.78,73025-PROFESSIONAL SERVICES-PRIV CONTRACTOR & OTHER AGENCIES,INTERMEDIATE CARE SERVICE,Third Party Payments,Revenue
Walsall Council,http://opendatacommunities.org/id/metropolitan-district-council/walsall,WC105-175,30/06/2019,Adult Social Care,ADVANCE HEALTH CARE (UK) LTD,17/06/2019,272.46,73025-PROFESSIONAL SERVICES-PRIV CONTRACTOR & OTHER AGENCIES,RAPID RESPONSE,Third Party Payments,Revenue
Walsall Council,http://opendatacommunities.org/id/metropolitan-district-council/walsall,WC105-176,30/06/2019,Adult Social Care,ADVANCE HEALTH CARE (UK) LTD,24/06/2019,279.44,73025-PROFESSIONAL SERVICES-PRIV CONTRACTOR & OTHER AGENCIES,INTERMEDIATE CARE SERVICE,Third Party Payments,Revenue
Walsall Council,http://opendatacommunities.org/id/metropolitan-district-council/walsall,WC105-177,30/06/2019,Adult Social Care,ADVANCE HEALTH CARE (UK) LTD,26/06/2019,279.44,73025-PROFESSIONAL SERVICES-PRIV CONTRACTOR & OTHER AGENCIES,INTERMEDIATE CARE SERVICE,Third Party Payments,Revenue
Walsall Council,http://opendatacommunities.org/id/metropolitan-district-council/walsall,WC105-178,30/06/2019,Adult Social Care,ADVANCE HEALTH CARE (UK) LTD,21/06/2019,284.37,73507-DOMICILIARY CARE,PHYSICAL SUPPORT,Third Party Payments,Revenue
Walsall Council,http://opendatacommunities.org/id/metropolitan-district-council/walsall,WC105-179,30/06/2019,Adult Social Care,ADVANCE HEALTH CARE (UK) LTD,13/06/2019,286.60,73025-PROFESSIONAL SERVICES-PRIV CONTRACTOR & OTHER AGENCIES,INTERMEDIATE CARE SERVICE,Third Party Payments,Revenue
Walsall Council,http://opendatacommunities.org/id/metropolitan-district-council/walsall,WC105-180,30/06/2019,Adult Social Care,ADVANCE HEALTH CARE (UK) LTD,24/06/2019,293.77,73025-PROFESSIONAL SERVICES-PRIV CONTRACTOR & OTHER AGENCIES,INTERMEDIATE CARE SERVICE,Third Party Payments,Revenue
Walsall Council,http://opendatacommunities.org/id/metropolitan-district-council/walsall,WC105-181,30/06/2019,Adult Social Care,ADVANCE HEALTH CARE (UK) LTD,13/06/2019,300.93,73025-PROFESSIONAL SERVICES-PRIV CONTRACTOR & OTHER AGENCIES,INTERMEDIATE CARE SERVICE,Third Party Payments,Revenue
Walsall Council,http://opendatacommunities.org/id/metropolitan-district-council/walsall,WC105-182,30/06/2019,Adult Social Care,ADVANCE HEALTH CARE (UK) LTD,17/06/2019,315.26,73025-PROFESSIONAL SERVICES-PRIV CONTRACTOR & OTHER AGENCIES,INTERMEDIATE CARE SERVICE,Third Party Payments,Revenue
Walsall Council,http://opendatacommunities.org/id/metropolitan-district-council/walsall,WC105-183,30/06/2019,Adult Social Care,ADVANCE HEALTH CARE (UK) LTD,17/06/2019,322.43,73025-PROFESSIONAL SERVICES-PRIV CONTRACTOR & OTHER AGENCIES,INTERMEDIATE CARE SERVICE,Third Party Payments,Revenue
Walsall Council,http://opendatacommunities.org/id/metropolitan-district-council/walsall,WC105-184,30/06/2019,Adult Social Care,ADVANCE HEALTH CARE (UK) LTD,24/06/2019,322.43,73025-PROFESSIONAL SERVICES-PRIV CONTRACTOR & OTHER AGENCIES,INTERMEDIATE CARE SERVICE,Third Party Payments,Revenue
Walsall Council,http://opendatacommunities.org/id/metropolitan-district-council/walsall,WC105-185,30/06/2019,Adult Social Care,ADVANCE HEALTH CARE (UK) LTD,26/06/2019,322.43,73025-PROFESSIONAL SERVICES-PRIV CONTRACTOR & OTHER AGENCIES,INTERMEDIATE CARE SERVICE,Third Party Payments,Revenue
Walsall Council,http://opendatacommunities.org/id/metropolitan-district-council/walsall,WC105-186,30/06/2019,Adult Social Care,ADVANCE HEALTH CARE (UK) LTD,24/06/2019,349.96,73025-PROFESSIONAL SERVICES-PRIV CONTRACTOR & OTHER AGENCIES,INTERMEDIATE CARE SERVICE,Third Party Payments,Revenue
Walsall Council,http://opendatacommunities.org/id/metropolitan-district-council/walsall,WC105-187,30/06/2019,Adult Social Care,ADVANCE HEALTH CARE (UK) LTD,11/06/2019,351.09,73025-PROFESSIONAL SERVICES-PRIV CONTRACTOR & OTHER AGENCIES,INTERMEDIATE CARE SERVICE,Third Party Payments,Revenue
Walsall Council,http://opendatacommunities.org/id/metropolitan-district-council/walsall,WC105-188,30/06/2019,Adult Social Care,ADVANCE HEALTH CARE (UK) LTD,26/06/2019,351.09,73025-PROFESSIONAL SERVICES-PRIV CONTRACTOR & OTHER AGENCIES,INTERMEDIATE CARE SERVICE,Third Party Payments,Revenue
Walsall Council,http://opendatacommunities.org/id/metropolitan-district-council/walsall,WC105-189,30/06/2019,Adult Social Care,ADVANCE HEALTH CARE (UK) LTD,17/06/2019,372.58,73025-PROFESSIONAL SERVICES-PRIV CONTRACTOR & OTHER AGENCIES,INTERMEDIATE CARE SERVICE,Third Party Payments,Revenue
Walsall Council,http://opendatacommunities.org/id/metropolitan-district-council/walsall,WC105-190,30/06/2019,Adult Social Care,ADVANCE HEALTH CARE (UK) LTD,11/06/2019,384.62,73025-PROFESSIONAL SERVICES-PRIV CONTRACTOR & OTHER AGENCIES,INTERMEDIATE CARE SERVICE,Third Party Payments,Revenue
Walsall Council,http://opendatacommunities.org/id/metropolitan-district-council/walsall,WC105-191,30/06/2019,Adult Social Care,ADVANCE HEALTH CARE (UK) LTD,13/06/2019,384.62,73025-PROFESSIONAL SERVICES-PRIV CONTRACTOR & OTHER AGENCIES,INTERMEDIATE CARE SERVICE,Third Party Payments,Revenue
Walsall Council,http://opendatacommunities.org/id/metropolitan-district-council/walsall,WC105-192,30/06/2019,Adult Social Care,ADVANCE HEALTH CARE (UK) LTD,17/06/2019,384.62,73025-PROFESSIONAL SERVICES-PRIV CONTRACTOR & OTHER AGENCIES,INTERMEDIATE CARE SERVICE,Third Party Payments,Revenue
Walsall Council,http://opendatacommunities.org/id/metropolitan-district-council/walsall,WC105-193,30/06/2019,Adult Social Care,ADVANCE HEALTH CARE (UK) LTD,21/06/2019,399.12,73507-DOMICILIARY CARE,PHYSICAL SUPPORT,Third Party Payments,Revenue
Walsall Council,http://opendatacommunities.org/id/metropolitan-district-council/walsall,WC105-194,30/06/2019,Adult Social Care,ADVANCE HEALTH CARE (UK) LTD,21/06/2019,399.13,73507-DOMICILIARY CARE,SENSORY SUPPORT,Third Party Payments,Revenue
Walsall Council,http://opendatacommunities.org/id/metropolitan-district-council/walsall,WC105-195,30/06/2019,Adult Social Care,ADVANCE HEALTH CARE (UK) LTD,17/06/2019,401.24,73025-PROFESSIONAL SERVICES-PRIV CONTRACTOR & OTHER AGENCIES,INTERMEDIATE CARE SERVICE,Third Party Payments,Revenue
Walsall Council,http://opendatacommunities.org/id/metropolitan-district-council/walsall,WC105-196,30/06/2019,Adult Social Care,ADVANCE HEALTH CARE (UK) LTD,17/06/2019,401.24,73025-PROFESSIONAL SERVICES-PRIV CONTRACTOR & OTHER AGENCIES,INTERMEDIATE CARE SERVICE,Third Party Payments,Revenue
Walsall Council,http://opendatacommunities.org/id/metropolitan-district-council/walsall,WC105-197,30/06/2019,Adult Social Care,ADVANCE HEALTH CARE (UK) LTD,21/06/2019,402.71,73507-DOMICILIARY CARE,SOCIAL SUPPORT,Third Party Payments,Revenue
Walsall Council,http://opendatacommunities.org/id/metropolitan-district-council/walsall,WC105-198,30/06/2019,Adult Social Care,ADVANCE HEALTH CARE (UK) LTD,17/06/2019,408.41,73025-PROFESSIONAL SERVICES-PRIV CONTRACTOR & OTHER AGENCIES,INTERMEDIATE CARE SERVICE,Third Party Payments,Revenue
Walsall Council,http://opendatacommunities.org/id/metropolitan-district-council/walsall,WC105-199,30/06/2019,Adult Social Care,ADVANCE HEALTH CARE (UK) LTD,17/06/2019,422.74,73025-PROFESSIONAL SERVICES-PRIV CONTRACTOR & OTHER AGENCIES,INTERMEDIATE CARE SERVICE,Third Party Payments,Revenue
Walsall Council,http://opendatacommunities.org/id/metropolitan-district-council/walsall,WC105-200,30/06/2019,Adult Social Care,ADVANCE HEALTH CARE (UK) LTD,17/06/2019,429.90,73025-PROFESSIONAL SERVICES-PRIV CONTRACTOR & OTHER AGENCIES,INTERMEDIATE CARE SERVICE,Third Party Payments,Revenue
Walsall Council,http://opendatacommunities.org/id/metropolitan-district-council/walsall,WC105-201,30/06/2019,Adult Social Care,ADVANCE HEALTH CARE (UK) LTD,11/06/2019,451.40,73025-PROFESSIONAL SERVICES-PRIV CONTRACTOR & OTHER AGENCIES,INTERMEDIATE CARE SERVICE,Third Party Payments,Revenue
Walsall Council,http://opendatacommunities.org/id/metropolitan-district-council/walsall,WC105-202,30/06/2019,Adult Social Care,ADVANCE HEALTH CARE (UK) LTD,11/06/2019,451.40,73025-PROFESSIONAL SERVICES-PRIV CONTRACTOR & OTHER AGENCIES,INTERMEDIATE CARE SERVICE,Third Party Payments,Revenue
Walsall Council,http://opendatacommunities.org/id/metropolitan-district-council/walsall,WC105-203,30/06/2019,Adult Social Care,ADVANCE HEALTH CARE (UK) LTD,11/06/2019,451.40,73025-PROFESSIONAL SERVICES-PRIV CONTRACTOR & OTHER AGENCIES,INTERMEDIATE CARE SERVICE,Third Party Payments,Revenue
Walsall Council,http://opendatacommunities.org/id/metropolitan-district-council/walsall,WC105-204,30/06/2019,Adult Social Care,ADVANCE HEALTH CARE (UK) LTD,11/06/2019,451.40,73025-PROFESSIONAL SERVICES-PRIV CONTRACTOR & OTHER AGENCIES,INTERMEDIATE CARE SERVICE,Third Party Payments,Revenue
Walsall Council,http://opendatacommunities.org/id/metropolitan-district-council/walsall,WC105-205,30/06/2019,Adult Social Care,ADVANCE HEALTH CARE (UK) LTD,11/06/2019,451.40,73025-PROFESSIONAL SERVICES-PRIV CONTRACTOR & OTHER AGENCIES,INTERMEDIATE CARE SERVICE,Third Party Payments,Revenue
Walsall Council,http://opendatacommunities.org/id/metropolitan-district-council/walsall,WC105-206,30/06/2019,Adult Social Care,ADVANCE HEALTH CARE (UK) LTD,11/06/2019,451.40,73025-PROFESSIONAL SERVICES-PRIV CONTRACTOR & OTHER AGENCIES,INTERMEDIATE CARE SERVICE,Third Party Payments,Revenue
Walsall Council,http://opendatacommunities.org/id/metropolitan-district-council/walsall,WC105-207,30/06/2019,Adult Social Care,ADVANCE HEALTH CARE (UK) LTD,11/06/2019,451.40,73025-PROFESSIONAL SERVICES-PRIV CONTRACTOR & OTHER AGENCIES,INTERMEDIATE CARE SERVICE,Third Party Payments,Revenue
Walsall Council,http://opendatacommunities.org/id/metropolitan-district-council/walsall,WC105-208,30/06/2019,Adult Social Care,ADVANCE HEALTH CARE (UK) LTD,11/06/2019,451.40,73025-PROFESSIONAL SERVICES-PRIV CONTRACTOR & OTHER AGENCIES,INTERMEDIATE CARE SERVICE,Third Party Payments,Revenue
Walsall Council,http://opendatacommunities.org/id/metropolitan-district-council/walsall,WC105-209,30/06/2019,Adult Social Care,ADVANCE HEALTH CARE (UK) LTD,11/06/2019,451.40,73025-PROFESSIONAL SERVICES-PRIV CONTRACTOR & OTHER AGENCIES,INTERMEDIATE CARE SERVICE,Third Party Payments,Revenue
Walsall Council,http://opendatacommunities.org/id/metropolitan-district-council/walsall,WC105-210,30/06/2019,Adult Social Care,ADVANCE HEALTH CARE (UK) LTD,13/06/2019,451.40,73025-PROFESSIONAL SERVICES-PRIV CONTRACTOR & OTHER AGENCIES,INTERMEDIATE CARE SERVICE,Third Party Payments,Revenue
Walsall Council,http://opendatacommunities.org/id/metropolitan-district-council/walsall,WC105-211,30/06/2019,Adult Social Care,ADVANCE HEALTH CARE (UK) LTD,13/06/2019,451.40,73025-PROFESSIONAL SERVICES-PRIV CONTRACTOR & OTHER AGENCIES,INTERMEDIATE CARE SERVICE,Third Party Payments,Revenue
Walsall Council,http://opendatacommunities.org/id/metropolitan-district-council/walsall,WC105-212,30/06/2019,Adult Social Care,ADVANCE HEALTH CARE (UK) LTD,13/06/2019,451.40,73025-PROFESSIONAL SERVICES-PRIV CONTRACTOR & OTHER AGENCIES,INTERMEDIATE CARE SERVICE,Third Party Payments,Revenue
Walsall Council,http://opendatacommunities.org/id/metropolitan-district-council/walsall,WC105-213,30/06/2019,Adult Social Care,ADVANCE HEALTH CARE (UK) LTD,13/06/2019,451.40,73025-PROFESSIONAL SERVICES-PRIV CONTRACTOR & OTHER AGENCIES,INTERMEDIATE CARE SERVICE,Third Party Payments,Revenue
Walsall Council,http://opendatacommunities.org/id/metropolitan-district-council/walsall,WC105-214,30/06/2019,Adult Social Care,ADVANCE HEALTH CARE (UK) LTD,13/06/2019,451.40,73025-PROFESSIONAL SERVICES-PRIV CONTRACTOR & OTHER AGENCIES,INTERMEDIATE CARE SERVICE,Third Party Payments,Revenue
Walsall Council,http://opendatacommunities.org/id/metropolitan-district-council/walsall,WC105-215,30/06/2019,Adult Social Care,ADVANCE HEALTH CARE (UK) LTD,13/06/2019,451.40,73025-PROFESSIONAL SERVICES-PRIV CONTRACTOR & OTHER AGENCIES,INTERMEDIATE CARE SERVICE,Third Party Payments,Revenue
Walsall Council,http://opendatacommunities.org/id/metropolitan-district-council/walsall,WC105-216,30/06/2019,Adult Social Care,ADVANCE HEALTH CARE (UK) LTD,17/06/2019,451.40,73025-PROFESSIONAL SERVICES-PRIV CONTRACTOR & OTHER AGENCIES,INTERMEDIATE CARE SERVICE,Third Party Payments,Revenue
Walsall Council,http://opendatacommunities.org/id/metropolitan-district-council/walsall,WC105-217,30/06/2019,Adult Social Care,ADVANCE HEALTH CARE (UK) LTD,17/06/2019,451.40,73025-PROFESSIONAL SERVICES-PRIV CONTRACTOR & OTHER AGENCIES,INTERMEDIATE CARE SERVICE,Third Party Payments,Revenue
Walsall Council,http://opendatacommunities.org/id/metropolitan-district-council/walsall,WC105-218,30/06/2019,Adult Social Care,ADVANCE HEALTH CARE (UK) LTD,24/06/2019,451.40,73025-PROFESSIONAL SERVICES-PRIV CONTRACTOR & OTHER AGENCIES,INTERMEDIATE CARE SERVICE,Third Party Payments,Revenue
Walsall Council,http://opendatacommunities.org/id/metropolitan-district-council/walsall,WC105-219,30/06/2019,Adult Social Care,ADVANCE HEALTH CARE (UK) LTD,24/06/2019,451.40,73025-PROFESSIONAL SERVICES-PRIV CONTRACTOR & OTHER AGENCIES,INTERMEDIATE CARE SERVICE,Third Party Payments,Revenue
Walsall Council,http://opendatacommunities.org/id/metropolitan-district-council/walsall,WC105-220,30/06/2019,Adult Social Care,ADVANCE HEALTH CARE (UK) LTD,24/06/2019,451.40,73025-PROFESSIONAL SERVICES-PRIV CONTRACTOR & OTHER AGENCIES,INTERMEDIATE CARE SERVICE,Third Party Payments,Revenue
Walsall Council,http://opendatacommunities.org/id/metropolitan-district-council/walsall,WC105-221,30/06/2019,Adult Social Care,ADVANCE HEALTH CARE (UK) LTD,24/06/2019,451.40,73025-PROFESSIONAL SERVICES-PRIV CONTRACTOR & OTHER AGENCIES,INTERMEDIATE CARE SERVICE,Third Party Payments,Revenue
Walsall Council,http://opendatacommunities.org/id/metropolitan-district-council/walsall,WC105-222,30/06/2019,Adult Social Care,ADVANCE HEALTH CARE (UK) LTD,24/06/2019,451.40,73025-PROFESSIONAL SERVICES-PRIV CONTRACTOR & OTHER AGENCIES,INTERMEDIATE CARE SERVICE,Third Party Payments,Revenue
Walsall Council,http://opendatacommunities.org/id/metropolitan-district-council/walsall,WC105-223,30/06/2019,Adult Social Care,ADVANCE HEALTH CARE (UK) LTD,24/06/2019,451.40,73025-PROFESSIONAL SERVICES-PRIV CONTRACTOR & OTHER AGENCIES,INTERMEDIATE CARE SERVICE,Third Party Payments,Revenue
Walsall Council,http://opendatacommunities.org/id/metropolitan-district-council/walsall,WC105-224,30/06/2019,Adult Social Care,ADVANCE HEALTH CARE (UK) LTD,26/06/2019,451.40,73025-PROFESSIONAL SERVICES-PRIV CONTRACTOR & OTHER AGENCIES,INTERMEDIATE CARE SERVICE,Third Party Payments,Revenue
Walsall Council,http://opendatacommunities.org/id/metropolitan-district-council/walsall,WC105-225,30/06/2019,Adult Social Care,ADVANCE HEALTH CARE (UK) LTD,26/06/2019,451.40,73025-PROFESSIONAL SERVICES-PRIV CONTRACTOR & OTHER AGENCIES,INTERMEDIATE CARE SERVICE,Third Party Payments,Revenue
Walsall Council,http://opendatacommunities.org/id/metropolitan-district-council/walsall,WC105-226,30/06/2019,Adult Social Care,ADVANCE HEALTH CARE (UK) LTD,26/06/2019,451.40,73025-PROFESSIONAL SERVICES-PRIV CONTRACTOR & OTHER AGENCIES,INTERMEDIATE CARE SERVICE,Third Party Payments,Revenue
Walsall Council,http://opendatacommunities.org/id/metropolitan-district-council/walsall,WC105-227,30/06/2019,Adult Social Care,ADVANCE HEALTH CARE (UK) LTD,26/06/2019,451.40,73025-PROFESSIONAL SERVICES-PRIV CONTRACTOR & OTHER AGENCIES,INTERMEDIATE CARE SERVICE,Third Party Payments,Revenue
Walsall Council,http://opendatacommunities.org/id/metropolitan-district-council/walsall,WC105-228,30/06/2019,Adult Social Care,ADVANCE HEALTH CARE (UK) LTD,13/06/2019,458.56,73025-PROFESSIONAL SERVICES-PRIV CONTRACTOR & OTHER AGENCIES,INTERMEDIATE CARE SERVICE,Third Party Payments,Revenue
Walsall Council,http://opendatacommunities.org/id/metropolitan-district-council/walsall,WC105-229,30/06/2019,Adult Social Care,ADVANCE HEALTH CARE (UK) LTD,24/06/2019,458.56,73025-PROFESSIONAL SERVICES-PRIV CONTRACTOR & OTHER AGENCIES,INTERMEDIATE CARE SERVICE,Third Party Payments,Revenue
Walsall Council,http://opendatacommunities.org/id/metropolitan-district-council/walsall,WC105-230,30/06/2019,Adult Social Care,ADVANCE HEALTH CARE (UK) LTD,21/06/2019,458.88,73507-DOMICILIARY CARE,SOCIAL SUPPORT,Third Party Payments,Revenue
Walsall Council,http://opendatacommunities.org/id/metropolitan-district-council/walsall,WC105-231,30/06/2019,Adult Social Care,ADVANCE HEALTH CARE (UK) LTD,11/06/2019,465.73,73025-PROFESSIONAL SERVICES-PRIV CONTRACTOR & OTHER AGENCIES,INTERMEDIATE CARE SERVICE,Third Party Payments,Revenue
Walsall Council,http://opendatacommunities.org/id/metropolitan-district-council/walsall,WC105-232,30/06/2019,Adult Social Care,ADVANCE HEALTH CARE (UK) LTD,11/06/2019,465.73,73025-PROFESSIONAL SERVICES-PRIV CONTRACTOR & OTHER AGENCIES,INTERMEDIATE CARE SERVICE,Third Party Payments,Revenue
Walsall Council,http://opendatacommunities.org/id/metropolitan-district-council/walsall,WC105-233,30/06/2019,Adult Social Care,ADVANCE HEALTH CARE (UK) LTD,13/06/2019,465.73,73025-PROFESSIONAL SERVICES-PRIV CONTRACTOR & OTHER AGENCIES,INTERMEDIATE CARE SERVICE,Third Party Payments,Revenue
Walsall Council,http://opendatacommunities.org/id/metropolitan-district-council/walsall,WC105-234,30/06/2019,Adult Social Care,ADVANCE HEALTH CARE (UK) LTD,24/06/2019,472.89,73025-PROFESSIONAL SERVICES-PRIV CONTRACTOR & OTHER AGENCIES,INTERMEDIATE CARE SERVICE,Third Party Payments,Revenue
Walsall Council,http://opendatacommunities.org/id/metropolitan-district-council/walsall,WC105-235,30/06/2019,Adult Social Care,ADVANCE HEALTH CARE (UK) LTD,21/06/2019,486.16,73507-DOMICILIARY CARE,PHYSICAL SUPPORT,Third Party Payments,Revenue
Walsall Council,http://opendatacommunities.org/id/metropolitan-district-council/walsall,WC105-236,30/06/2019,Adult Social Care,ADVANCE HEALTH CARE (UK) LTD,21/06/2019,494.60,73507-DOMICILIARY CARE,PHYSICAL SUPPORT,Third Party Payments,Revenue
Walsall Council,http://opendatacommunities.org/id/metropolitan-district-council/walsall,WC105-237,30/06/2019,Adult Social Care,ADVANCE HEALTH CARE (UK) LTD,21/06/2019,498.18,73507-DOMICILIARY CARE,LEARNING DISABILITY SUPPORT,Third Party Payments,Revenue
Walsall Council,http://opendatacommunities.org/id/metropolitan-district-council/walsall,WC105-238,30/06/2019,Adult Social Care,ADVANCE HEALTH CARE (UK) LTD,21/06/2019,525.80,73507-DOMICILIARY CARE,PHYSICAL SUPPORT,Third Party Payments,Revenue
Walsall Council,http://opendatacommunities.org/id/metropolitan-district-council/walsall,WC105-239,30/06/2019,Adult Social Care,ADVANCE HEALTH CARE (UK) LTD,21/06/2019,535.36,73507-DOMICILIARY CARE,PHYSICAL SUPPORT,Third Party Payments,Revenue
Walsall Council,http://opendatacommunities.org/id/metropolitan-district-council/walsall,WC105-240,30/06/2019,Adult Social Care,ADVANCE HEALTH CARE (UK) LTD,21/06/2019,596.17,73507-DOMICILIARY CARE,PHYSICAL SUPPORT,Third Party Payments,Revenue
Walsall Council,http://opendatacommunities.org/id/metropolitan-district-council/walsall,WC105-241,30/06/2019,Adult Social Care,ADVANCE HEALTH CARE (UK) LTD,21/06/2019,602.38,73507-DOMICILIARY CARE,PHYSICAL SUPPORT,Third Party Payments,Revenue
Walsall Council,http://opendatacommunities.org/id/metropolitan-district-council/walsall,WC105-242,30/06/2019,Adult Social Care,ADVANCE HEALTH CARE (UK) LTD,21/06/2019,624.92,73507-DOMICILIARY CARE,PHYSICAL SUPPORT,Third Party Payments,Revenue
Walsall Council,http://opendatacommunities.org/id/metropolitan-district-council/walsall,WC105-243,30/06/2019,Adult Social Care,ADVANCE HEALTH CARE (UK) LTD,21/06/2019,629.72,73507-DOMICILIARY CARE,PHYSICAL SUPPORT,Third Party Payments,Revenue
Walsall Council,http://opendatacommunities.org/id/metropolitan-district-council/walsall,WC105-244,30/06/2019,Adult Social Care,ADVANCE HEALTH CARE (UK) LTD,21/06/2019,668.00,73507-DOMICILIARY CARE,PHYSICAL SUPPORT,Third Party Payments,Revenue
Walsall Council,http://opendatacommunities.org/id/metropolitan-district-council/walsall,WC105-245,30/06/2019,Adult Social Care,ADVANCE HEALTH CARE (UK) LTD,21/06/2019,749.20,73507-DOMICILIARY CARE,PHYSICAL SUPPORT,Third Party Payments,Revenue
Walsall Council,http://opendatacommunities.org/id/metropolitan-district-council/walsall,WC105-246,30/06/2019,Adult Social Care,ADVANCE HEALTH CARE (UK) LTD,21/06/2019,760.05,73507-DOMICILIARY CARE,PHYSICAL SUPPORT,Third Party Payments,Revenue
Walsall Council,http://opendatacommunities.org/id/metropolitan-district-council/walsall,WC105-247,30/06/2019,Adult Social Care,ADVANCE HEALTH CARE (UK) LTD,21/06/2019,790.97,73507-DOMICILIARY CARE,PHYSICAL SUPPORT,Third Party Payments,Revenue
Walsall Council,http://opendatacommunities.org/id/metropolitan-district-council/walsall,WC105-248,30/06/2019,Adult Social Care,ADVANCE HEALTH CARE (UK) LTD,21/06/2019,795.87,73507-DOMICILIARY CARE,PHYSICAL SUPPORT,Third Party Payments,Revenue
Walsall Council,http://opendatacommunities.org/id/metropolitan-district-council/walsall,WC105-249,30/06/2019,Adult Social Care,ADVANCE HEALTH CARE (UK) LTD,21/06/2019,798.26,73507-DOMICILIARY CARE,PHYSICAL SUPPORT,Third Party Payments,Revenue
Walsall Council,http://opendatacommunities.org/id/metropolitan-district-council/walsall,WC105-250,30/06/2019,Adult Social Care,ADVANCE HEALTH CARE (UK) LTD,21/06/2019,803.04,73507-DOMICILIARY CARE,PHYSICAL SUPPORT,Third Party Payments,Revenue
Walsall Council,http://opendatacommunities.org/id/metropolitan-district-council/walsall,WC105-251,30/06/2019,Adult Social Care,ADVANCE HEALTH CARE (UK) LTD,21/06/2019,803.04,73507-DOMICILIARY CARE,PHYSICAL SUPPORT,Third Party Payments,Revenue
Walsall Council,http://opendatacommunities.org/id/metropolitan-district-council/walsall,WC105-252,30/06/2019,Adult Social Care,ADVANCE HEALTH CARE (UK) LTD,21/06/2019,808.90,73507-DOMICILIARY CARE,PHYSICAL SUPPORT,Third Party Payments,Revenue
Walsall Council,http://opendatacommunities.org/id/metropolitan-district-council/walsall,WC105-253,30/06/2019,Adult Social Care,ADVANCE HEALTH CARE (UK) LTD,21/06/2019,841.17,73507-DOMICILIARY CARE,SUPPORT WITH MEMORY & COGNITION,Third Party Payments,Revenue
Walsall Council,http://opendatacommunities.org/id/metropolitan-district-council/walsall,WC105-254,30/06/2019,Adult Social Care,ADVANCE HEALTH CARE (UK) LTD,21/06/2019,883.09,73507-DOMICILIARY CARE,PHYSICAL SUPPORT,Third Party Payments,Revenue
Walsall Council,http://opendatacommunities.org/id/metropolitan-district-council/walsall,WC105-255,30/06/2019,Adult Social Care,ADVANCE HEALTH CARE (UK) LTD,21/06/2019,893.78,73507-DOMICILIARY CARE,PHYSICAL SUPPORT,Third Party Payments,Revenue
Walsall Council,http://opendatacommunities.org/id/metropolitan-district-council/walsall,WC105-256,30/06/2019,Adult Social Care,ADVANCE HEALTH CARE (UK) LTD,21/06/2019,898.50,73507-DOMICILIARY CARE,PHYSICAL SUPPORT,Third Party Payments,Revenue
Walsall Council,http://opendatacommunities.org/id/metropolitan-district-council/walsall,WC105-257,30/06/2019,Adult Social Care,ADVANCE HEALTH CARE (UK) LTD,21/06/2019,955.98,73507-DOMICILIARY CARE,PHYSICAL SUPPORT,Third Party Payments,Revenue
Walsall Council,http://opendatacommunities.org/id/metropolitan-district-council/walsall,WC105-258,30/06/2019,Adult Social Care,ADVANCE HEALTH CARE (UK) LTD,21/06/2019,999.96,73507-DOMICILIARY CARE,PHYSICAL SUPPORT,Third Party Payments,Revenue
Walsall Council,http://opendatacommunities.org/id/metropolitan-district-council/walsall,WC105-259,30/06/2019,Adult Social Care,ADVANCE HEALTH CARE (UK) LTD,21/06/2019,"1,032.16",73507-DOMICILIARY CARE,PHYSICAL SUPPORT,Third Party Payments,Revenue
Walsall Council,http://opendatacommunities.org/id/metropolitan-district-council/walsall,WC105-260,30/06/2019,Adult Social Care,ADVANCE HEALTH CARE (UK) LTD,21/06/2019,"1,195.00",73507-DOMICILIARY CARE,PHYSICAL SUPPORT,Third Party Payments,Revenue
Walsall Council,http://opendatacommunities.org/id/metropolitan-district-council/walsall,WC105-261,30/06/2019,Adult Social Care,ADVANCE HEALTH CARE (UK) LTD,21/06/2019,"1,218.88",73507-DOMICILIARY CARE,SOCIAL SUPPORT,Third Party Payments,Revenue
Walsall Council,http://opendatacommunities.org/id/metropolitan-district-council/walsall,WC105-262,30/06/2019,Adult Social Care,ADVANCE HEALTH CARE (UK) LTD,21/06/2019,"1,227.04",73507-DOMICILIARY CARE,PHYSICAL SUPPORT,Third Party Payments,Revenue
Walsall Council,http://opendatacommunities.org/id/metropolitan-district-council/walsall,WC105-263,30/06/2019,Adult Social Care,ADVANCE HEALTH CARE (UK) LTD,21/06/2019,"1,290.59",73507-DOMICILIARY CARE,PHYSICAL SUPPORT,Third Party Payments,Revenue
Walsall Council,http://opendatacommunities.org/id/metropolitan-district-council/walsall,WC105-264,30/06/2019,Adult Social Care,ADVANCE HEALTH CARE (UK) LTD,21/06/2019,"1,338.19",73507-DOMICILIARY CARE,PHYSICAL SUPPORT,Third Party Payments,Revenue
Walsall Council,http://opendatacommunities.org/id/metropolitan-district-council/walsall,WC105-265,30/06/2019,Adult Social Care,ADVANCE HEALTH CARE (UK) LTD,21/06/2019,"1,462.53",73507-DOMICILIARY CARE,PHYSICAL SUPPORT,Third Party Payments,Revenue
Walsall Council,http://opendatacommunities.org/id/metropolitan-district-council/walsall,WC105-266,30/06/2019,Adult Social Care,ADVANCE HEALTH CARE (UK) LTD,21/06/2019,"1,482.99",73507-DOMICILIARY CARE,PHYSICAL SUPPORT,Third Party Payments,Revenue
Walsall Council,http://opendatacommunities.org/id/metropolitan-district-council/walsall,WC105-267,30/06/2019,Adult Social Care,ADVANCE HEALTH CARE (UK) LTD,21/06/2019,"1,577.37",73507-DOMICILIARY CARE,PHYSICAL SUPPORT,Third Party Payments,Revenue
Walsall Council,http://opendatacommunities.org/id/metropolitan-district-council/walsall,WC105-268,30/06/2019,Adult Social Care,ADVANCE HEALTH CARE (UK) LTD,21/06/2019,"1,580.92",73507-DOMICILIARY CARE,PHYSICAL SUPPORT,Third Party Payments,Revenue
Walsall Council,http://opendatacommunities.org/id/metropolitan-district-council/walsall,WC105-269,30/06/2019,Adult Social Care,ADVANCE HEALTH CARE (UK) LTD,21/06/2019,"1,582.18",73507-DOMICILIARY CARE,PHYSICAL SUPPORT,Third Party Payments,Revenue
Walsall Council,http://opendatacommunities.org/id/metropolitan-district-council/walsall,WC105-270,30/06/2019,Adult Social Care,ADVANCE HEALTH CARE (UK) LTD,21/06/2019,"1,589.35",73507-DOMICILIARY CARE,PHYSICAL SUPPORT,Third Party Payments,Revenue
Walsall Council,http://opendatacommunities.org/id/metropolitan-district-council/walsall,WC105-271,30/06/2019,Adult Social Care,ADVANCE HEALTH CARE (UK) LTD,21/06/2019,"1,594.12",73507-DOMICILIARY CARE,PHYSICAL SUPPORT,Third Party Payments,Revenue
Walsall Council,http://opendatacommunities.org/id/metropolitan-district-council/walsall,WC105-272,30/06/2019,Adult Social Care,ADVANCE HEALTH CARE (UK) LTD,21/06/2019,"1,601.91",73507-DOMICILIARY CARE,PHYSICAL SUPPORT,Third Party Payments,Revenue
Walsall Council,http://opendatacommunities.org/id/metropolitan-district-council/walsall,WC105-273,30/06/2019,Adult Social Care,ADVANCE HEALTH CARE (UK) LTD,21/06/2019,"1,618.01",73507-DOMICILIARY CARE,PHYSICAL SUPPORT,Third Party Payments,Revenue
Walsall Council,http://opendatacommunities.org/id/metropolitan-district-council/walsall,WC105-274,30/06/2019,Adult Social Care,ADVANCE HEALTH CARE (UK) LTD,21/06/2019,"1,652.49",73507-DOMICILIARY CARE,PHYSICAL SUPPORT,Third Party Payments,Revenue
Walsall Council,http://opendatacommunities.org/id/metropolitan-district-council/walsall,WC105-275,30/06/2019,Adult Social Care,ADVANCE HEALTH CARE (UK) LTD,21/06/2019,"1,689.66",73507-DOMICILIARY CARE,PHYSICAL SUPPORT,Third Party Payments,Revenue
Walsall Council,http://opendatacommunities.org/id/metropolitan-district-council/walsall,WC105-276,30/06/2019,Adult Social Care,ADVANCE HEALTH CARE (UK) LTD,21/06/2019,"1,692.12",73507-DOMICILIARY CARE,PHYSICAL SUPPORT,Third Party Payments,Revenue
Walsall Council,http://opendatacommunities.org/id/metropolitan-district-council/walsall,WC105-277,30/06/2019,Adult Social Care,ADVANCE HEALTH CARE (UK) LTD,21/06/2019,"1,746.91",73507-DOMICILIARY CARE,PHYSICAL SUPPORT,Third Party Payments,Revenue
Walsall Council,http://opendatacommunities.org/id/metropolitan-district-council/walsall,WC105-278,30/06/2019,Adult Social Care,ADVANCE HEALTH CARE (UK) LTD,21/06/2019,"1,758.83",73507-DOMICILIARY CARE,PHYSICAL SUPPORT,Third Party Payments,Revenue
Walsall Council,http://opendatacommunities.org/id/metropolitan-district-council/walsall,WC105-279,30/06/2019,Adult Social Care,ADVANCE HEALTH CARE (UK) LTD,21/06/2019,"1,780.24",73507-DOMICILIARY CARE,PHYSICAL SUPPORT,Third Party Payments,Revenue
Walsall Council,http://opendatacommunities.org/id/metropolitan-district-council/walsall,WC105-280,30/06/2019,Adult Social Care,ADVANCE HEALTH CARE (UK) LTD,21/06/2019,"1,786.52",73507-DOMICILIARY CARE,SOCIAL SUPPORT,Third Party Payments,Revenue
Walsall Council,http://opendatacommunities.org/id/metropolitan-district-council/walsall,WC105-281,30/06/2019,Adult Social Care,ADVANCE HEALTH CARE (UK) LTD,21/06/2019,"1,797.00",73507-DOMICILIARY CARE,PHYSICAL SUPPORT,Third Party Payments,Revenue
Walsall Council,http://opendatacommunities.org/id/metropolitan-district-council/walsall,WC105-282,30/06/2019,Adult Social Care,ADVANCE HEALTH CARE (UK) LTD,21/06/2019,"1,806.56",73507-DOMICILIARY CARE,PHYSICAL SUPPORT,Third Party Payments,Revenue
Walsall Council,http://opendatacommunities.org/id/metropolitan-district-council/walsall,WC105-283,30/06/2019,Adult Social Care,ADVANCE HEALTH CARE (UK) LTD,21/06/2019,"1,808.94",73507-DOMICILIARY CARE,PHYSICAL SUPPORT,Third Party Payments,Revenue
Walsall Council,http://opendatacommunities.org/id/metropolitan-district-council/walsall,WC105-284,30/06/2019,Adult Social Care,ADVANCE HEALTH CARE (UK) LTD,21/06/2019,"1,812.43",73507-DOMICILIARY CARE,PHYSICAL SUPPORT,Third Party Payments,Revenue
Walsall Council,http://opendatacommunities.org/id/metropolitan-district-council/walsall,WC105-285,30/06/2019,Adult Social Care,ADVANCE HEALTH CARE (UK) LTD,21/06/2019,"1,817.29",73507-DOMICILIARY CARE,PHYSICAL SUPPORT,Third Party Payments,Revenue
Walsall Council,http://opendatacommunities.org/id/metropolitan-district-council/walsall,WC105-286,30/06/2019,Adult Social Care,ADVANCE HEALTH CARE (UK) LTD,21/06/2019,"1,820.89",73507-DOMICILIARY CARE,PHYSICAL SUPPORT,Third Party Payments,Revenue
Walsall Council,http://opendatacommunities.org/id/metropolitan-district-council/walsall,WC105-287,30/06/2019,Adult Social Care,ADVANCE HEALTH CARE (UK) LTD,21/06/2019,"1,835.20",73507-DOMICILIARY CARE,PHYSICAL SUPPORT,Third Party Payments,Revenue
Walsall Council,http://opendatacommunities.org/id/metropolitan-district-council/walsall,WC105-288,30/06/2019,Adult Social Care,ADVANCE HEALTH CARE (UK) LTD,21/06/2019,"1,848.38",73507-DOMICILIARY CARE,PHYSICAL SUPPORT,Third Party Payments,Revenue
Walsall Council,http://opendatacommunities.org/id/metropolitan-district-council/walsall,WC105-289,30/06/2019,Adult Social Care,ADVANCE HEALTH CARE (UK) LTD,21/06/2019,"1,906.78",73507-DOMICILIARY CARE,PHYSICAL SUPPORT,Third Party Payments,Revenue
Walsall Council,http://opendatacommunities.org/id/metropolitan-district-council/walsall,WC105-290,30/06/2019,Adult Social Care,ADVANCE HEALTH CARE (UK) LTD,21/06/2019,"2,178.47",73507-DOMICILIARY CARE,PHYSICAL SUPPORT,Third Party Payments,Revenue
Walsall Council,http://opendatacommunities.org/id/metropolitan-district-council/walsall,WC105-291,30/06/2019,Adult Social Care,ADVANCE HEALTH CARE (UK) LTD,21/06/2019,"2,196.00",73507-DOMICILIARY CARE,PHYSICAL SUPPORT,Third Party Payments,Revenue
Walsall Council,http://opendatacommunities.org/id/metropolitan-district-council/walsall,WC105-292,30/06/2019,Adult Social Care,ADVANCE HEALTH CARE (UK) LTD,21/06/2019,"2,375.79",73507-DOMICILIARY CARE,PHYSICAL SUPPORT,Third Party Payments,Revenue
Walsall Council,http://opendatacommunities.org/id/metropolitan-district-council/walsall,WC105-293,30/06/2019,Adult Social Care,ADVANCE HEALTH CARE (UK) LTD,21/06/2019,"2,472.14",73507-DOMICILIARY CARE,PHYSICAL SUPPORT,Third Party Payments,Revenue
Walsall Council,http://opendatacommunities.org/id/metropolitan-district-council/walsall,WC105-294,30/06/2019,Adult Social Care,ADVANCE HEALTH CARE (UK) LTD,21/06/2019,"3,113.26",73507-DOMICILIARY CARE,SOCIAL SUPPORT,Third Party Payments,Revenue
Walsall Council,http://opendatacommunities.org/id/metropolitan-district-council/walsall,WC105-295,30/06/2019,Adult Social Care,ADVANCE HEALTH CARE (UK) LTD,21/06/2019,"3,155.99",73507-DOMICILIARY CARE,PHYSICAL SUPPORT,Third Party Payments,Revenue
Walsall Council,http://opendatacommunities.org/id/metropolitan-district-council/walsall,WC105-296,30/06/2019,Adult Social Care,ADVANCE HEALTH CARE (UK) LTD,21/06/2019,"4,814.88",73507-DOMICILIARY CARE,PHYSICAL SUPPORT,Third Party Payments,Revenue
Walsall Council,http://opendatacommunities.org/id/metropolitan-district-council/walsall,WC105-297,30/06/2019,Childrens,ADVENTURELAND DAY NURSERY,24/06/2019,640.00,77200-TRANSFER PAYMENTS-OTHER SCHOOLCHILDREN/STUDENT RELATED ITEMS,EARLY YEARS - SOCIAL INCLUSION FUND - 2 YR OLDS,Transfer Payments,Revenue
Walsall Council,http://opendatacommunities.org/id/metropolitan-district-council/walsall,WC105-298,30/06/2019,Childrens,ADVENTURELAND DAY NURSERY,14/06/2019,"10,179.00",66505-OTHER-GRANTS TO OTHER ORGS,EARLY YEARS - 3 YR OLDS,Third Party Payments,Revenue
Walsall Council,http://opendatacommunities.org/id/metropolitan-district-council/walsall,WC105-299,30/06/2019,Childrens,ADVENTURELAND DAY NURSERY,01/06/2019,"17,177.06",66505-OTHER-GRANTS TO OTHER ORGS,EARLY YEARS - 3 YR OLDS,Third Party Payments,Revenue
Walsall Council,http://opendatacommunities.org/id/metropolitan-district-council/walsall,WC105-300,30/06/2019,Economy & Environment,AEBI SCHMIDT UK LIMITED,04/06/2019,420.38,73025-PROFESSIONAL SERVICES-PRIV CONTRACTOR & OTHER AGENCIES,FLEET,Third Party Payments,Revenue
Walsall Council,http://opendatacommunities.org/id/metropolitan-district-council/walsall,WC105-301,30/06/2019,Adult Social Care,REDACTED,11/06/2019,"2,616.00",73506-DIRECT PAYMENT,LEARNING DISABILITY SUPPORT,Third Party Payments,Revenue
Walsall Council,http://opendatacommunities.org/id/metropolitan-district-council/walsall,WC105-302,30/06/2019,Adult Social Care,REDACTED,11/06/2019,"1,003.45",73506-DIRECT PAYMENT,PHYSICAL SUPPORT,Third Party Payments,Revenue
Walsall Council,http://opendatacommunities.org/id/metropolitan-district-council/walsall,WC105-303,30/06/2019,Childrens,ALBRIGHTON CARE LTD,14/06/2019,"9,980.00",74036-EXTERNAL RESIDENTIAL CARE-OTH AGENCY PROVISION,INDEPENDENT RESIDENTIAL HOMES,Third Party Payments,Revenue
Walsall Council,http://opendatacommunities.org/id/metropolitan-district-council/walsall,WC105-304,30/06/2019,Economy & Environment,ALDERBROOK HEALTHCARE LTD,18/06/2019,"4,184.70",63000-PROFESSIONAL FEES AND SERVICES,CORONERS SERVICE,Supplies & Services,Revenue
Walsall Council,http://opendatacommunities.org/id/metropolitan-district-council/walsall,WC105-305,30/06/2019,Adult Social Care,ALDERGROVE MANOR LTD,24/06/2019,"1,972.24",73501-RESIDENTIAL EMI,MENTAL HEALTH SUPPORT,Third Party Payments,Revenue
Walsall Council,http://opendatacommunities.org/id/metropolitan-district-council/walsall,WC105-306,30/06/2019,Adult Social Care,ALDERGROVE MANOR LTD,24/06/2019,"2,107.92",73501-RESIDENTIAL EMI,PHYSICAL SUPPORT,Third Party Payments,Revenue
Walsall Council,http://opendatacommunities.org/id/metropolitan-district-council/walsall,WC105-307,30/06/2019,Adult Social Care,ALDERGROVE MANOR LTD,24/06/2019,"2,132.24",73501-RESIDENTIAL EMI,PHYSICAL SUPPORT,Third Party Payments,Revenue
Walsall Council,http://opendatacommunities.org/id/metropolitan-district-council/walsall,WC105-308,30/06/2019,Adult Social Care,ALDERGROVE MANOR LTD,24/06/2019,"2,143.72",73502-NURSING,PHYSICAL SUPPORT,Third Party Payments,Revenue
Walsall Council,http://opendatacommunities.org/id/metropolitan-district-council/walsall,WC105-309,30/06/2019,Childrens,ALDRIDGE & BARONS LIMITED,19/06/2019,"2,175.07",52000-WITH DRIVER-HIRE OF VEHICLES,HOME TO SCHOOL TRANSPORT,Transport,Revenue
Walsall Council,http://opendatacommunities.org/id/metropolitan-district-council/walsall,WC105-310,30/06/2019,Childrens,ALDRIDGE & BARONS LIMITED,10/06/2019,"5,593.00",52000-WITH DRIVER-HIRE OF VEHICLES,HOME TO SCHOOL TRANSPORT,Transport,Revenue
Walsall Council,http://opendatacommunities.org/id/metropolitan-district-council/walsall,WC105-311,30/06/2019,Childrens,ALDRIDGE & BARONS LIMITED,10/06/2019,"9,238.36",52000-WITH DRIVER-HIRE OF VEHICLES,HOME TO SCHOOL TRANSPORT,Transport,Revenue
Walsall Council,http://opendatacommunities.org/id/metropolitan-district-council/walsall,WC105-312,30/06/2019,Childrens,ALDRIDGE & BARONS LIMITED,10/06/2019,"14,594.84",52000-WITH DRIVER-HIRE OF VEHICLES,HOME TO SCHOOL TRANSPORT,Transport,Revenue
Walsall Council,http://opendatacommunities.org/id/metropolitan-district-council/walsall,WC105-313,30/06/2019,Resources and Transformation,ALDRIDGE METHODIST CHURCH 001,21/06/2019,300.00,63128-HIRE OF ROOM-SERVICES-FEES,ELECTORAL ADMINISTRATION,Supplies & Services,Revenue
Walsall Council,http://opendatacommunities.org/id/metropolitan-district-council/walsall,WC105-314,30/06/2019,Adult Social Care,REDACTED,11/06/2019,"1,686.00",73506-DIRECT PAYMENT,PHYSICAL SUPPORT,Third Party Payments,Revenue
Walsall Council,http://opendatacommunities.org/id/metropolitan-district-council/walsall,WC105-315,30/06/2019,Adult Social Care,ALEXANDRA HOUSE CARE SERVICES LTD T/A STONEBRIDGE NURSING HOME,24/06/2019,"7,188.60",73500-RESIDENTIAL,LEARNING DISABILITY SUPPORT,Third Party Payments,Revenue
Walsall Council,http://opendatacommunities.org/id/metropolitan-district-council/walsall,WC105-316,30/06/2019,Adult Social Care,REDACTED,11/06/2019,"2,258.20",73506-DIRECT PAYMENT,PHYSICAL SUPPORT,Third Party Payments,Revenue
Walsall Council,http://opendatacommunities.org/id/metropolitan-district-council/walsall,WC105-317,30/06/2019,Adult Social Care,REDACTED,11/06/2019,"1,122.00",73506-DIRECT PAYMENT,PHYSICAL SUPPORT,Third Party Payments,Revenue
Walsall Council,http://opendatacommunities.org/id/metropolitan-district-council/walsall,WC105-318,30/06/2019,Adult Social Care,REDACTED,11/06/2019,"5,925.30",73506-DIRECT PAYMENT,LEARNING DISABILITY SUPPORT,Third Party Payments,Revenue
Walsall Council,http://opendatacommunities.org/id/metropolitan-district-council/walsall,WC105-319,30/06/2019,Resources and Transformation,ALIGNED ASSETS LTD,11/06/2019,"7,407.63",63800-COMPUTER EQUIPMENT AND SUPPLIES,APPLICATIONS,Supplies & Services,Revenue
Walsall Council,http://opendatacommunities.org/id/metropolitan-district-council/walsall,WC105-320,30/06/2019,Adult Social Care,REDACTED,06/06/2019,"1,627.05",73510-SHARED LIVES,LEARNING DISABILITY SUPPORT,Third Party Payments,Revenue
Walsall Council,http://opendatacommunities.org/id/metropolitan-district-council/walsall,WC105-321,30/06/2019,Adult Social Care,REDACTED,11/06/2019,"2,007.60",73506-DIRECT PAYMENT,SOCIAL SUPPORT,Third Party Payments,Revenue
Walsall Council,http://opendatacommunities.org/id/metropolitan-district-council/walsall,WC105-322,30/06/2019,Adult Social Care,ALLIED PUBLICITY SERVICES (MANCHESTER) LIMITED T/A APS GROUP,14/06/2019,"1,012.78",63000-PROFESSIONAL FEES AND SERVICES,BLUE BADGES,Supplies & Services,Revenue
Walsall Council,http://opendatacommunities.org/id/metropolitan-district-council/walsall,WC105-323,30/06/2019,Adult Social Care,ALLIED PUBLICITY SERVICES (MANCHESTER) LIMITED T/A APS GROUP,21/06/2019,"1,316.59",63000-PROFESSIONAL FEES AND SERVICES,BLUE BADGES,Supplies & Services,Revenue
Walsall Council,http://opendatacommunities.org/id/metropolitan-district-council/walsall,WC105-324,30/06/2019,Resources and Transformation,ALLNALL IT & ELECTRICAL SOLUTIONS,17/06/2019,458.00,63800-COMPUTER EQUIPMENT AND SUPPLIES,RECHARGEABLE EQUIPMENT,Supplies & Services,Revenue
Walsall Council,http://opendatacommunities.org/id/metropolitan-district-council/walsall,WC105-325,30/06/2019,Adult Social Care,ALLSORTS OFFICE SUPPLIES LTD,12/06/2019,265.50,60006-NEW-FURNITURE & EQUIPMENT,SHARED LIVES,Supplies & Services,Revenue
Walsall Council,http://opendatacommunities.org/id/metropolitan-district-council/walsall,WC105-326,30/06/2019,Childrens,ALMOZENE NURSERY & CHILDRENS CENTRE,07/06/2019,"5,109.00",66505-OTHER-GRANTS TO OTHER ORGS,EARLY YEARS - 2 YR OLDS,Third Party Payments,Revenue
Walsall Council,http://opendatacommunities.org/id/metropolitan-district-council/walsall,WC105-327,30/06/2019,Childrens,ALMOZENE NURSERY & CHILDRENS CENTRE,01/06/2019,"9,330.75",66505-OTHER-GRANTS TO OTHER ORGS,EARLY YEARS - 3 YR OLDS,Third Party Payments,Revenue
Walsall Council,http://opendatacommunities.org/id/metropolitan-district-council/walsall,WC105-328,30/06/2019,Adult Social Care,ALPHA HEALTH CARE LTD,24/06/2019,"1,774.96",73500-RESIDENTIAL,MENTAL HEALTH SUPPORT,Third Party Payments,Revenue
Walsall Council,http://opendatacommunities.org/id/metropolitan-district-council/walsall,WC105-329,30/06/2019,Adult Social Care,ALPHA HEALTH CARE LTD,24/06/2019,"1,972.24",73501-RESIDENTIAL EMI,PHYSICAL SUPPORT,Third Party Payments,Revenue
Walsall Council,http://opendatacommunities.org/id/metropolitan-district-council/walsall,WC105-330,30/06/2019,Adult Social Care,ALPHA HEALTH CARE LTD,24/06/2019,"2,143.72",73502-NURSING,PHYSICAL SUPPORT,Third Party Payments,Revenue
Walsall Council,http://opendatacommunities.org/id/metropolitan-district-council/walsall,WC105-331,30/06/2019,Adult Social Care,ALPHA HEALTH CARE LTD,24/06/2019,"2,255.72",73501-RESIDENTIAL EMI,SUPPORT WITH MEMORY & COGNITION,Third Party Payments,Revenue
Walsall Council,http://opendatacommunities.org/id/metropolitan-district-council/walsall,WC105-332,30/06/2019,Adult Social Care,ALPHA HEALTH CARE LTD,24/06/2019,"2,358.08",73503-NURSING EMI,MENTAL HEALTH SUPPORT,Third Party Payments,Revenue
Walsall Council,http://opendatacommunities.org/id/metropolitan-district-council/walsall,WC105-333,30/06/2019,Adult Social Care,ALPHA HEALTH CARE LTD,24/06/2019,"2,358.08",73503-NURSING EMI,MENTAL HEALTH SUPPORT,Third Party Payments,Revenue
Walsall Council,http://opendatacommunities.org/id/metropolitan-district-council/walsall,WC105-334,30/06/2019,Adult Social Care,ALPHA HEALTH CARE LTD,24/06/2019,"2,358.08",73503-NURSING EMI,PHYSICAL SUPPORT,Third Party Payments,Revenue
Walsall Council,http://opendatacommunities.org/id/metropolitan-district-council/walsall,WC105-335,30/06/2019,Adult Social Care,ALPHA HEALTH CARE LTD,24/06/2019,"2,495.72",73501-RESIDENTIAL EMI,MENTAL HEALTH SUPPORT,Third Party Payments,Revenue
Walsall Council,http://opendatacommunities.org/id/metropolitan-district-council/walsall,WC105-336,30/06/2019,Adult Social Care,ALPHA HEALTH CARE LTD,24/06/2019,"2,588.92",73502-NURSING,PHYSICAL SUPPORT,Third Party Payments,Revenue
Walsall Council,http://opendatacommunities.org/id/metropolitan-district-council/walsall,WC105-337,30/06/2019,Adult Social Care,ALPHA HEALTH CARE LTD,24/06/2019,"2,881.80",73503-NURSING EMI,MENTAL HEALTH SUPPORT,Third Party Payments,Revenue
Walsall Council,http://opendatacommunities.org/id/metropolitan-district-council/walsall,WC105-338,30/06/2019,Adult Social Care,ALPHA HEALTH CARE LTD,24/06/2019,"2,881.80",73503-NURSING EMI,MENTAL HEALTH SUPPORT,Third Party Payments,Revenue
Walsall Council,http://opendatacommunities.org/id/metropolitan-district-council/walsall,WC105-339,30/06/2019,Adult Social Care,ALPHA HEALTH CARE LTD,24/06/2019,"2,881.80",73503-NURSING EMI,PHYSICAL SUPPORT,Third Party Payments,Revenue
Walsall Council,http://opendatacommunities.org/id/metropolitan-district-council/walsall,WC105-340,30/06/2019,Adult Social Care,ALPHA HEALTH CARE LTD,24/06/2019,"2,881.80",73503-NURSING EMI,PHYSICAL SUPPORT,Third Party Payments,Revenue
Walsall Council,http://opendatacommunities.org/id/metropolitan-district-council/walsall,WC105-341,30/06/2019,Adult Social Care,ALPHA HEALTH CARE LTD,24/06/2019,"2,881.84",73503-NURSING EMI,PHYSICAL SUPPORT,Third Party Payments,Revenue
Walsall Council,http://opendatacommunities.org/id/metropolitan-district-council/walsall,WC105-342,30/06/2019,Adult Social Care,ALPHA HEALTH CARE LTD,24/06/2019,"2,937.88",73503-NURSING EMI,PHYSICAL SUPPORT,Third Party Payments,Revenue
Walsall Council,http://opendatacommunities.org/id/metropolitan-district-council/walsall,WC105-343,30/06/2019,Adult Social Care,ALPHA HEALTH CARE LTD,24/06/2019,"3,035.72",73501-RESIDENTIAL EMI,PHYSICAL SUPPORT,Third Party Payments,Revenue
Walsall Council,http://opendatacommunities.org/id/metropolitan-district-council/walsall,WC105-344,30/06/2019,Adult Social Care,ALPHA HEALTH CARE LTD,24/06/2019,"3,035.72",73501-RESIDENTIAL EMI,SUPPORT WITH MEMORY & COGNITION,Third Party Payments,Revenue
Walsall Council,http://opendatacommunities.org/id/metropolitan-district-council/walsall,WC105-345,30/06/2019,Adult Social Care,ALPHA HEALTH CARE LTD,24/06/2019,"3,035.72",73501-RESIDENTIAL EMI,PHYSICAL SUPPORT,Third Party Payments,Revenue
Walsall Council,http://opendatacommunities.org/id/metropolitan-district-council/walsall,WC105-346,30/06/2019,Adult Social Care,ALPHA HEALTH CARE LTD,24/06/2019,"3,290.36",73503-NURSING EMI,PHYSICAL SUPPORT,Third Party Payments,Revenue
Walsall Council,http://opendatacommunities.org/id/metropolitan-district-council/walsall,WC105-347,30/06/2019,Adult Social Care,ALPHA HEALTH CARE LTD,24/06/2019,"3,514.44",73503-NURSING EMI,MENTAL HEALTH SUPPORT,Third Party Payments,Revenue
Walsall Council,http://opendatacommunities.org/id/metropolitan-district-council/walsall,WC105-348,30/06/2019,Adult Social Care,ALPHA HEALTH CARE LTD,24/06/2019,"11,262.88",73503-NURSING EMI,PHYSICAL SUPPORT,Third Party Payments,Revenue
Walsall Council,http://opendatacommunities.org/id/metropolitan-district-council/walsall,WC105-349,30/06/2019,Childrens,ALUMWELLIES NURSERY,01/06/2019,"28,840.50",66505-OTHER-GRANTS TO OTHER ORGS,EARLY YEARS - 3 YR OLDS,Third Party Payments,Revenue
Walsall Council,http://opendatacommunities.org/id/metropolitan-district-council/walsall,WC105-350,30/06/2019,Childrens,REDACTED,11/06/2019,255.00,73506-DIRECT PAYMENT,FAMILY SUPPORT - DIRECT PAYMENTS,Third Party Payments,Revenue
Walsall Council,http://opendatacommunities.org/id/metropolitan-district-council/walsall,WC105-351,30/06/2019,Childrens,AMAH NURSERIES LIMITED T/A BANANA MOON WALSALL,01/06/2019,"11,663.44",66505-OTHER-GRANTS TO OTHER ORGS,EARLY YEARS - 3 YR OLDS,Third Party Payments,Revenue
Walsall Council,http://opendatacommunities.org/id/metropolitan-district-council/walsall,WC105-352,30/06/2019,Childrens,REDACTED,01/06/2019,318.08,74510-RESIDENTS ORDERS,ADOPTION ALLOWANCES,Third Party Payments,Revenue
Walsall Council,http://opendatacommunities.org/id/metropolitan-district-council/walsall,WC105-353,30/06/2019,Childrens,REDACTED,01/06/2019,318.08,74510-RESIDENTS ORDERS,ADOPTION ALLOWANCES,Third Party Payments,Revenue
Walsall Council,http://opendatacommunities.org/id/metropolitan-district-council/walsall,WC105-354,30/06/2019,Adult Social Care,REDACTED,11/06/2019,"1,410.95",73506-DIRECT PAYMENT,LEARNING DISABILITY SUPPORT,Third Party Payments,Revenue
Walsall Council,http://opendatacommunities.org/id/metropolitan-district-council/walsall,WC105-355,30/06/2019,Childrens,REDACTED,01/06/2019,808.04,74009-ADOPTION ALLOWANCE,ADOPTION ALLOWANCES,Transfer Payments,Revenue
Walsall Council,http://opendatacommunities.org/id/metropolitan-district-council/walsall,WC105-356,30/06/2019,Childrens,REDACTED,14/06/2019,600.00,74501-MAINTENANCE ALLOWANCE-FOSTER CARERS,INTERNAL FOSTER CARE PROVISION,Transfer Payments,Revenue
Walsall Council,http://opendatacommunities.org/id/metropolitan-district-council/walsall,WC105-357,30/06/2019,Childrens,REDACTED,14/06/2019,"1,000.00",74508-INTERNAL FOSTER CARERS-CARER FEES,INTERNAL FOSTER CARE PROVISION,Transfer Payments,Revenue
Walsall Council,http://opendatacommunities.org/id/metropolitan-district-council/walsall,WC105-358,30/06/2019,Childrens,AMANS TRAVEL LTD,19/06/2019,"1,011.50",52000-WITH DRIVER-HIRE OF VEHICLES,HOME TO SCHOOL TRANSPORT,Transport,Revenue
Walsall Council,http://opendatacommunities.org/id/metropolitan-district-council/walsall,WC105-359,30/06/2019,Adult Social Care,REDACTED,11/06/2019,"1,122.00",73506-DIRECT PAYMENT,LEARNING DISABILITY SUPPORT,Third Party Payments,Revenue
Walsall Council,http://opendatacommunities.org/id/metropolitan-district-council/walsall,WC105-360,30/06/2019,Economy & Environment,AMEY LG LIMITED,10/06/2019,234.38,73025-PROFESSIONAL SERVICES-PRIV CONTRACTOR & OTHER AGENCIES,TRAFFIC CONTROL,Third Party Payments,Revenue
Walsall Council,http://opendatacommunities.org/id/metropolitan-district-council/walsall,WC105-361,30/06/2019,Economy & Environment,AMEY LG LIMITED,07/06/2019,303.56,73025-PROFESSIONAL SERVICES-PRIV CONTRACTOR & OTHER AGENCIES,TRAFFIC CONTROL,Third Party Payments,Revenue
Walsall Council,http://opendatacommunities.org/id/metropolitan-district-council/walsall,WC105-362,30/06/2019,Resources and Transformation,AMEY LG LIMITED,11/06/2019,350.43,60008-REPAIR & MAINTENANCE OF FURNITURE & EQUIPMENT,CCTV,Supplies & Services,Revenue
Walsall Council,http://opendatacommunities.org/id/metropolitan-district-council/walsall,WC105-363,30/06/2019,Economy & Environment,AMEY LG LIMITED,07/06/2019,511.37,73025-PROFESSIONAL SERVICES-PRIV CONTRACTOR & OTHER AGENCIES,TRAFFIC CONTROL,Third Party Payments,Revenue
Walsall Council,http://opendatacommunities.org/id/metropolitan-district-council/walsall,WC105-364,30/06/2019,Economy & Environment,AMEY LG LIMITED,10/06/2019,681.68,73025-PROFESSIONAL SERVICES-PRIV CONTRACTOR & OTHER AGENCIES,TRAFFIC CONTROL,Third Party Payments,Revenue
Walsall Council,http://opendatacommunities.org/id/metropolitan-district-council/walsall,WC105-365,30/06/2019,Economy & Environment,AMEY LG LIMITED,07/06/2019,760.38,73025-PROFESSIONAL SERVICES-PRIV CONTRACTOR & OTHER AGENCIES,TRAFFIC CONTROL,Third Party Payments,Revenue
Walsall Council,http://opendatacommunities.org/id/metropolitan-district-council/walsall,WC105-366,30/06/2019,Resources and Transformation,AMEY LG LIMITED,17/06/2019,777.57,60008-REPAIR & MAINTENANCE OF FURNITURE & EQUIPMENT,CCTV,Supplies & Services,Revenue
Walsall Council,http://opendatacommunities.org/id/metropolitan-district-council/walsall,WC105-367,30/06/2019,Economy & Environment,AMEY LG LIMITED,07/06/2019,"1,096.75",73025-PROFESSIONAL SERVICES-PRIV CONTRACTOR & OTHER AGENCIES,TRAFFIC CONTROL,Third Party Payments,Revenue
Walsall Council,http://opendatacommunities.org/id/metropolitan-district-council/walsall,WC105-368,30/06/2019,Resources and Transformation,AMEY LG LIMITED,01/06/2019,"2,526.58",60006-NEW-FURNITURE & EQUIPMENT,CCTV,Supplies & Services,Revenue
Walsall Council,http://opendatacommunities.org/id/metropolitan-district-council/walsall,WC105-369,30/06/2019,Economy & Environment,AMEY LG LIMITED,26/06/2019,"9,645.42",73025-PROFESSIONAL SERVICES-PRIV CONTRACTOR & OTHER AGENCIES,TRAFFIC MANAGEMENT,Third Party Payments,Revenue
Walsall Council,http://opendatacommunities.org/id/metropolitan-district-council/walsall,WC105-370,30/06/2019,Economy & Environment,AMEY LG LIMITED,12/06/2019,"14,421.79",01006-SITE WORKS MAIN CONTRACTORS,CFR 1147 NETWORK RAIL SCHEME-LEVEL CROSSING,Capital,Capital
Walsall Council,http://opendatacommunities.org/id/metropolitan-district-council/walsall,WC105-371,30/06/2019,Economy & Environment,AMEY LG LIMITED,04/06/2019,"15,844.63",01006-SITE WORKS MAIN CONTRACTORS,CFR 1305 DISTRICT TOWN CENTRES PUBLIC REALM IMPROVEMENTS,Capital,Capital
Walsall Council,http://opendatacommunities.org/id/metropolitan-district-council/walsall,WC105-372,30/06/2019,Economy & Environment,AMEY OW LTD,12/06/2019,"2,530.19",01001-OTHER CONSULTANTS FEES,CFR 819 LTP-YORKS BRIDGE,Capital,Capital
Walsall Council,http://opendatacommunities.org/id/metropolitan-district-council/walsall,WC105-373,30/06/2019,Childrens,AMG NURSING CARE SERVICES,26/06/2019,"1,096.48",63000-PROFESSIONAL FEES AND SERVICES,DIRECTLY COMMISSIONED NURSING SERVICES,Supplies & Services,Revenue
Walsall Council,http://opendatacommunities.org/id/metropolitan-district-council/walsall,WC105-374,30/06/2019,Childrens,AMG NURSING CARE SERVICES,17/06/2019,"1,110.72",63000-PROFESSIONAL FEES AND SERVICES,DIRECTLY COMMISSIONED NURSING SERVICES,Supplies & Services,Revenue
Walsall Council,http://opendatacommunities.org/id/metropolitan-district-council/walsall,WC105-375,30/06/2019,Childrens,AMG NURSING CARE SERVICES,10/06/2019,"1,480.96",63000-PROFESSIONAL FEES AND SERVICES,DIRECTLY COMMISSIONED NURSING SERVICES,Supplies & Services,Revenue
Walsall Council,http://opendatacommunities.org/id/metropolitan-district-council/walsall,WC105-376,30/06/2019,Childrens,AMG NURSING CARE SERVICES,10/06/2019,"2,260.24",63000-PROFESSIONAL FEES AND SERVICES,DIRECTLY COMMISSIONED NURSING SERVICES,Supplies & Services,Revenue
Walsall Council,http://opendatacommunities.org/id/metropolitan-district-council/walsall,WC105-377,30/06/2019,Adult Social Care,AMG NURSING CARE SERVICES,24/06/2019,"2,600.00",73508-COMMUNITY SUPPORTED LIVING/SUPPORTED ACCOMMODATION,PHYSICAL SUPPORT,Third Party Payments,Revenue
Walsall Council,http://opendatacommunities.org/id/metropolitan-district-council/walsall,WC105-378,30/06/2019,Childrens,AMG NURSING CARE SERVICES,21/06/2019,"2,685.92",63000-PROFESSIONAL FEES AND SERVICES,DIRECTLY COMMISSIONED NURSING SERVICES,Supplies & Services,Revenue
Walsall Council,http://opendatacommunities.org/id/metropolitan-district-council/walsall,WC105-379,30/06/2019,Adult Social Care,AMG NURSING CARE SERVICES,24/06/2019,"10,709.02",73508-COMMUNITY SUPPORTED LIVING/SUPPORTED ACCOMMODATION,PHYSICAL SUPPORT,Third Party Payments,Revenue
Walsall Council,http://opendatacommunities.org/id/metropolitan-district-council/walsall,WC105-380,30/06/2019,Adult Social Care,AMG NURSING CARE SERVICES,17/06/2019,"10,727.61",73508-COMMUNITY SUPPORTED LIVING/SUPPORTED ACCOMMODATION,PHYSICAL SUPPORT,Third Party Payments,Revenue
Walsall Council,http://opendatacommunities.org/id/metropolitan-district-council/walsall,WC105-381,30/06/2019,Adult Social Care,REDACTED,11/06/2019,"1,445.15",73506-DIRECT PAYMENT,PHYSICAL SUPPORT,Third Party Payments,Revenue
Walsall Council,http://opendatacommunities.org/id/metropolitan-district-council/walsall,WC105-382,30/06/2019,Childrens,REDACTED,01/06/2019,340.00,74508-INTERNAL FOSTER CARERS-CARER FEES,FAMILY & FRIENDS FOSTER CARE PROVISION,Transfer Payments,Revenue
Walsall Council,http://opendatacommunities.org/id/metropolitan-district-council/walsall,WC105-383,30/06/2019,Childrens,REDACTED,01/06/2019,600.00,74501-MAINTENANCE ALLOWANCE-FOSTER CARERS,FAMILY & FRIENDS FOSTER CARE PROVISION,Transfer Payments,Revenue
Walsall Council,http://opendatacommunities.org/id/metropolitan-district-council/walsall,WC105-384,30/06/2019,Childrens,REDACTED,01/06/2019,425.08,74510-RESIDENTS ORDERS,ADOPTION ALLOWANCES,Third Party Payments,Revenue
Walsall Council,http://opendatacommunities.org/id/metropolitan-district-council/walsall,WC105-385,30/06/2019,Adult Social Care,ANCHOR,24/06/2019,319.50,73501-RESIDENTIAL EMI,PHYSICAL SUPPORT,Third Party Payments,Revenue
Walsall Council,http://opendatacommunities.org/id/metropolitan-district-council/walsall,WC105-386,30/06/2019,Adult Social Care,ANCHOR,24/06/2019,340.00,73501-RESIDENTIAL EMI,SUPPORT WITH MEMORY & COGNITION,Third Party Payments,Revenue
Walsall Council,http://opendatacommunities.org/id/metropolitan-district-council/walsall,WC105-387,30/06/2019,Adult Social Care,ANCHOR,24/06/2019,743.22,73501-RESIDENTIAL EMI,PHYSICAL SUPPORT,Third Party Payments,Revenue
Walsall Council,http://opendatacommunities.org/id/metropolitan-district-council/walsall,WC105-388,30/06/2019,Adult Social Care,ANCHOR,24/06/2019,"1,376.22",73500-RESIDENTIAL,PHYSICAL SUPPORT,Third Party Payments,Revenue
Walsall Council,http://opendatacommunities.org/id/metropolitan-district-council/walsall,WC105-389,30/06/2019,Adult Social Care,ANCHOR,24/06/2019,"1,774.96",73500-RESIDENTIAL,SUPPORT WITH MEMORY & COGNITION,Third Party Payments,Revenue
Walsall Council,http://opendatacommunities.org/id/metropolitan-district-council/walsall,WC105-390,30/06/2019,Adult Social Care,ANCHOR,24/06/2019,"1,774.96",73500-RESIDENTIAL,PHYSICAL SUPPORT,Third Party Payments,Revenue
Walsall Council,http://opendatacommunities.org/id/metropolitan-district-council/walsall,WC105-391,30/06/2019,Adult Social Care,ANCHOR,24/06/2019,"1,774.96",73500-RESIDENTIAL,PHYSICAL SUPPORT,Third Party Payments,Revenue
Walsall Council,http://opendatacommunities.org/id/metropolitan-district-council/walsall,WC105-392,30/06/2019,Adult Social Care,ANCHOR,24/06/2019,"1,774.96",73500-RESIDENTIAL,SUPPORT WITH MEMORY & COGNITION,Third Party Payments,Revenue
Walsall Council,http://opendatacommunities.org/id/metropolitan-district-council/walsall,WC105-393,30/06/2019,Adult Social Care,ANCHOR,24/06/2019,"1,774.96",73500-RESIDENTIAL,PHYSICAL SUPPORT,Third Party Payments,Revenue
Walsall Council,http://opendatacommunities.org/id/metropolitan-district-council/walsall,WC105-394,30/06/2019,Adult Social Care,ANCHOR,24/06/2019,"1,926.12",73500-RESIDENTIAL,PHYSICAL SUPPORT,Third Party Payments,Revenue
Walsall Council,http://opendatacommunities.org/id/metropolitan-district-council/walsall,WC105-395,30/06/2019,Adult Social Care,ANCHOR,24/06/2019,"1,934.96",73500-RESIDENTIAL,PHYSICAL SUPPORT,Third Party Payments,Revenue
Walsall Council,http://opendatacommunities.org/id/metropolitan-district-council/walsall,WC105-396,30/06/2019,Adult Social Care,ANCHOR,24/06/2019,"1,935.72",73501-RESIDENTIAL EMI,PHYSICAL SUPPORT,Third Party Payments,Revenue
Walsall Council,http://opendatacommunities.org/id/metropolitan-district-council/walsall,WC105-397,30/06/2019,Adult Social Care,ANCHOR,24/06/2019,"1,972.24",73501-RESIDENTIAL EMI,MENTAL HEALTH SUPPORT,Third Party Payments,Revenue
Walsall Council,http://opendatacommunities.org/id/metropolitan-district-council/walsall,WC105-398,30/06/2019,Adult Social Care,ANCHOR,24/06/2019,"1,972.24",73501-RESIDENTIAL EMI,PHYSICAL SUPPORT,Third Party Payments,Revenue
Walsall Council,http://opendatacommunities.org/id/metropolitan-district-council/walsall,WC105-399,30/06/2019,Adult Social Care,ANCHOR,24/06/2019,"1,972.24",73501-RESIDENTIAL EMI,SUPPORT WITH MEMORY & COGNITION,Third Party Payments,Revenue
Walsall Council,http://opendatacommunities.org/id/metropolitan-district-council/walsall,WC105-400,30/06/2019,Adult Social Care,ANCHOR,24/06/2019,"1,972.24",73501-RESIDENTIAL EMI,MENTAL HEALTH SUPPORT,Third Party Payments,Revenue
Walsall Council,http://opendatacommunities.org/id/metropolitan-district-council/walsall,WC105-401,30/06/2019,Adult Social Care,ANCHOR,24/06/2019,"1,972.24",73501-RESIDENTIAL EMI,MENTAL HEALTH SUPPORT,Third Party Payments,Revenue
Walsall Council,http://opendatacommunities.org/id/metropolitan-district-council/walsall,WC105-402,30/06/2019,Adult Social Care,ANCHOR,24/06/2019,"1,972.24",73501-RESIDENTIAL EMI,MENTAL HEALTH SUPPORT,Third Party Payments,Revenue
Walsall Council,http://opendatacommunities.org/id/metropolitan-district-council/walsall,WC105-403,30/06/2019,Adult Social Care,ANCHOR,24/06/2019,"1,972.24",73501-RESIDENTIAL EMI,PHYSICAL SUPPORT,Third Party Payments,Revenue
Walsall Council,http://opendatacommunities.org/id/metropolitan-district-council/walsall,WC105-404,30/06/2019,Adult Social Care,ANCHOR,24/06/2019,"1,972.24",73501-RESIDENTIAL EMI,PHYSICAL SUPPORT,Third Party Payments,Revenue
Walsall Council,http://opendatacommunities.org/id/metropolitan-district-council/walsall,WC105-405,30/06/2019,Adult Social Care,ANCHOR,24/06/2019,"1,972.24",73501-RESIDENTIAL EMI,SUPPORT WITH MEMORY & COGNITION,Third Party Payments,Revenue
Walsall Council,http://opendatacommunities.org/id/metropolitan-district-council/walsall,WC105-406,30/06/2019,Adult Social Care,ANCHOR,24/06/2019,"1,972.24",73501-RESIDENTIAL EMI,PHYSICAL SUPPORT,Third Party Payments,Revenue
Walsall Council,http://opendatacommunities.org/id/metropolitan-district-council/walsall,WC105-407,30/06/2019,Adult Social Care,ANCHOR,24/06/2019,"1,972.24",73501-RESIDENTIAL EMI,SUPPORT WITH MEMORY & COGNITION,Third Party Payments,Revenue
Walsall Council,http://opendatacommunities.org/id/metropolitan-district-council/walsall,WC105-408,30/06/2019,Adult Social Care,ANCHOR,24/06/2019,"1,972.24",73501-RESIDENTIAL EMI,PHYSICAL SUPPORT,Third Party Payments,Revenue
Walsall Council,http://opendatacommunities.org/id/metropolitan-district-council/walsall,WC105-409,30/06/2019,Adult Social Care,ANCHOR,24/06/2019,"2,054.96",73500-RESIDENTIAL,SENSORY SUPPORT,Third Party Payments,Revenue
Walsall Council,http://opendatacommunities.org/id/metropolitan-district-council/walsall,WC105-410,30/06/2019,Adult Social Care,ANCHOR,24/06/2019,"2,094.96",73500-RESIDENTIAL,SOCIAL SUPPORT,Third Party Payments,Revenue
Walsall Council,http://opendatacommunities.org/id/metropolitan-district-council/walsall,WC105-411,30/06/2019,Adult Social Care,ANCHOR,24/06/2019,"2,094.96",73500-RESIDENTIAL,PHYSICAL SUPPORT,Third Party Payments,Revenue
Walsall Council,http://opendatacommunities.org/id/metropolitan-district-council/walsall,WC105-412,30/06/2019,Adult Social Care,ANCHOR,24/06/2019,"2,114.96",73500-RESIDENTIAL,PHYSICAL SUPPORT,Third Party Payments,Revenue
Walsall Council,http://opendatacommunities.org/id/metropolitan-district-council/walsall,WC105-413,30/06/2019,Adult Social Care,ANCHOR,24/06/2019,"2,144.56",73501-RESIDENTIAL EMI,SENSORY SUPPORT,Third Party Payments,Revenue
Walsall Council,http://opendatacommunities.org/id/metropolitan-district-council/walsall,WC105-414,30/06/2019,Adult Social Care,ANCHOR,24/06/2019,"2,175.72",73501-RESIDENTIAL EMI,MENTAL HEALTH SUPPORT,Third Party Payments,Revenue
Walsall Council,http://opendatacommunities.org/id/metropolitan-district-council/walsall,WC105-415,30/06/2019,Adult Social Care,ANCHOR,24/06/2019,"2,266.12",73500-RESIDENTIAL,PHYSICAL SUPPORT,Third Party Payments,Revenue
Walsall Council,http://opendatacommunities.org/id/metropolitan-district-council/walsall,WC105-416,30/06/2019,Adult Social Care,ANCHOR,24/06/2019,"2,292.24",73501-RESIDENTIAL EMI,SUPPORT WITH MEMORY & COGNITION,Third Party Payments,Revenue
Walsall Council,http://opendatacommunities.org/id/metropolitan-district-council/walsall,WC105-417,30/06/2019,Adult Social Care,ANCHOR,24/06/2019,"2,292.24",73501-RESIDENTIAL EMI,SUPPORT WITH MEMORY & COGNITION,Third Party Payments,Revenue
Walsall Council,http://opendatacommunities.org/id/metropolitan-district-council/walsall,WC105-418,30/06/2019,Adult Social Care,ANCHOR,24/06/2019,"2,312.24",73501-RESIDENTIAL EMI,PHYSICAL SUPPORT,Third Party Payments,Revenue
Walsall Council,http://opendatacommunities.org/id/metropolitan-district-council/walsall,WC105-419,30/06/2019,Adult Social Care,ANCHOR,24/06/2019,"2,312.24",73501-RESIDENTIAL EMI,PHYSICAL SUPPORT,Third Party Payments,Revenue
Walsall Council,http://opendatacommunities.org/id/metropolitan-district-council/walsall,WC105-420,30/06/2019,Adult Social Care,ANCHOR,24/06/2019,"2,312.24",73501-RESIDENTIAL EMI,PHYSICAL SUPPORT,Third Party Payments,Revenue
Walsall Council,http://opendatacommunities.org/id/metropolitan-district-council/walsall,WC105-421,30/06/2019,Adult Social Care,ANCHOR,24/06/2019,"2,312.24",73501-RESIDENTIAL EMI,SUPPORT WITH MEMORY & COGNITION,Third Party Payments,Revenue
Walsall Council,http://opendatacommunities.org/id/metropolitan-district-council/walsall,WC105-422,30/06/2019,Adult Social Care,ANCHOR,24/06/2019,"2,332.24",73501-RESIDENTIAL EMI,PHYSICAL SUPPORT,Third Party Payments,Revenue
Walsall Council,http://opendatacommunities.org/id/metropolitan-district-council/walsall,WC105-423,30/06/2019,Adult Social Care,ANCHOR,24/06/2019,"2,332.24",73501-RESIDENTIAL EMI,PHYSICAL SUPPORT,Third Party Payments,Revenue
Walsall Council,http://opendatacommunities.org/id/metropolitan-district-council/walsall,WC105-424,30/06/2019,Adult Social Care,ANCHOR,24/06/2019,"2,332.24",73501-RESIDENTIAL EMI,PHYSICAL SUPPORT,Third Party Payments,Revenue
Walsall Council,http://opendatacommunities.org/id/metropolitan-district-council/walsall,WC105-425,30/06/2019,Childrens,REDACTED,01/06/2019,312.24,74509-SPECIAL GUARDIANSHIP ORDERS,ADOPTION ALLOWANCES,Transfer Payments,Revenue
Walsall Council,http://opendatacommunities.org/id/metropolitan-district-council/walsall,WC105-426,30/06/2019,Childrens,REDACTED,14/06/2019,360.00,74504-HOLIDAY/CHRISTMAS ALLOWANCE-FOSTER CARERS,INTERNAL FOSTER CARE PROVISION,Transfer Payments,Revenue
Walsall Council,http://opendatacommunities.org/id/metropolitan-district-council/walsall,WC105-427,30/06/2019,Childrens,REDACTED,14/06/2019,720.00,74501-MAINTENANCE ALLOWANCE-FOSTER CARERS,INTERNAL FOSTER CARE PROVISION,Transfer Payments,Revenue
Walsall Council,http://opendatacommunities.org/id/metropolitan-district-council/walsall,WC105-428,30/06/2019,Childrens,REDACTED,14/06/2019,"1,000.00",74508-INTERNAL FOSTER CARERS-CARER FEES,INTERNAL FOSTER CARE PROVISION,Transfer Payments,Revenue
Walsall Council,http://opendatacommunities.org/id/metropolitan-district-council/walsall,WC105-429,30/06/2019,Adult Social Care,REDACTED,11/06/2019,774.05,73506-DIRECT PAYMENT,LEARNING DISABILITY SUPPORT,Third Party Payments,Revenue
Walsall Council,http://opendatacommunities.org/id/metropolitan-district-council/walsall,WC105-430,30/06/2019,Adult Social Care,REDACTED,11/06/2019,"2,258.20",73506-DIRECT PAYMENT,PHYSICAL SUPPORT,Third Party Payments,Revenue
Walsall Council,http://opendatacommunities.org/id/metropolitan-district-council/walsall,WC105-431,30/06/2019,Childrens,ANDREWS ELECTRICAL LTD,14/06/2019,"3,458.00",01006-SITE WORKS MAIN CONTRACTORS,CFR 1297 OLD HALL SPECIAL SCHOOL EXPANSION,Capital,Capital
Walsall Council,http://opendatacommunities.org/id/metropolitan-district-council/walsall,WC105-432,30/06/2019,Childrens,REDACTED,01/06/2019,368.76,74509-SPECIAL GUARDIANSHIP ORDERS,ADOPTION ALLOWANCES,Transfer Payments,Revenue
Walsall Council,http://opendatacommunities.org/id/metropolitan-district-council/walsall,WC105-433,30/06/2019,Childrens,REDACTED,01/06/2019,368.76,74509-SPECIAL GUARDIANSHIP ORDERS,ADOPTION ALLOWANCES,Transfer Payments,Revenue
Walsall Council,http://opendatacommunities.org/id/metropolitan-district-council/walsall,WC105-434,30/06/2019,Childrens,REDACTED,01/06/2019,500.16,74509-SPECIAL GUARDIANSHIP ORDERS,ADOPTION ALLOWANCES,Transfer Payments,Revenue
Walsall Council,http://opendatacommunities.org/id/metropolitan-district-council/walsall,WC105-435,30/06/2019,Childrens,REDACTED,01/06/2019,312.04,74509-SPECIAL GUARDIANSHIP ORDERS,ADOPTION ALLOWANCES,Transfer Payments,Revenue
Walsall Council,http://opendatacommunities.org/id/metropolitan-district-council/walsall,WC105-436,30/06/2019,Childrens,ANGELS AND BUTTERFLIES CHILDMINDING,03/06/2019,766.35,66505-OTHER-GRANTS TO OTHER ORGS,EARLY YEARS - 2 YR OLDS,Third Party Payments,Revenue
Walsall Council,http://opendatacommunities.org/id/metropolitan-district-council/walsall,WC105-437,30/06/2019,Adult Social Care,REDACTED,11/06/2019,"1,469.00",73506-DIRECT PAYMENT,PHYSICAL SUPPORT,Third Party Payments,Revenue
Walsall Council,http://opendatacommunities.org/id/metropolitan-district-council/walsall,WC105-438,30/06/2019,Adult Social Care,ANSON COURT RESIDENTIAL HOME,24/06/2019,732.94,73501-RESIDENTIAL EMI,SOCIAL SUPPORT,Third Party Payments,Revenue
Walsall Council,http://opendatacommunities.org/id/metropolitan-district-council/walsall,WC105-439,30/06/2019,Adult Social Care,ANSON COURT RESIDENTIAL HOME,10/06/2019,998.26,73501-RESIDENTIAL EMI,PHYSICAL SUPPORT,Third Party Payments,Revenue
Walsall Council,http://opendatacommunities.org/id/metropolitan-district-council/walsall,WC105-440,30/06/2019,Adult Social Care,ANSON COURT RESIDENTIAL HOME,24/06/2019,"1,972.24",73501-RESIDENTIAL EMI,SUPPORT WITH MEMORY & COGNITION,Third Party Payments,Revenue
Walsall Council,http://opendatacommunities.org/id/metropolitan-district-council/walsall,WC105-441,30/06/2019,Adult Social Care,ANSON COURT RESIDENTIAL HOME,24/06/2019,"1,972.24",73501-RESIDENTIAL EMI,SUPPORT WITH MEMORY & COGNITION,Third Party Payments,Revenue
Walsall Council,http://opendatacommunities.org/id/metropolitan-district-council/walsall,WC105-442,30/06/2019,Adult Social Care,ANSON COURT RESIDENTIAL HOME,24/06/2019,"1,972.24",73501-RESIDENTIAL EMI,MENTAL HEALTH SUPPORT,Third Party Payments,Revenue
Walsall Council,http://opendatacommunities.org/id/metropolitan-district-council/walsall,WC105-443,30/06/2019,Adult Social Care,ANSON COURT RESIDENTIAL HOME,24/06/2019,"1,972.24",73501-RESIDENTIAL EMI,PHYSICAL SUPPORT,Third Party Payments,Revenue
Walsall Council,http://opendatacommunities.org/id/metropolitan-district-council/walsall,WC105-444,30/06/2019,Adult Social Care,ANSON COURT RESIDENTIAL HOME,24/06/2019,"1,972.24",73501-RESIDENTIAL EMI,PHYSICAL SUPPORT,Third Party Payments,Revenue
Walsall Council,http://opendatacommunities.org/id/metropolitan-district-council/walsall,WC105-445,30/06/2019,Adult Social Care,ANSON COURT RESIDENTIAL HOME,24/06/2019,"1,972.24",73501-RESIDENTIAL EMI,SOCIAL SUPPORT,Third Party Payments,Revenue
Walsall Council,http://opendatacommunities.org/id/metropolitan-district-council/walsall,WC105-446,30/06/2019,Adult Social Care,ANSON COURT RESIDENTIAL HOME,24/06/2019,"1,972.24",73501-RESIDENTIAL EMI,PHYSICAL SUPPORT,Third Party Payments,Revenue
Walsall Council,http://opendatacommunities.org/id/metropolitan-district-council/walsall,WC105-447,30/06/2019,Adult Social Care,ANSON COURT RESIDENTIAL HOME,24/06/2019,"1,972.24",73501-RESIDENTIAL EMI,SUPPORT WITH MEMORY & COGNITION,Third Party Payments,Revenue
Walsall Council,http://opendatacommunities.org/id/metropolitan-district-council/walsall,WC105-448,30/06/2019,Adult Social Care,ANSON COURT RESIDENTIAL HOME,24/06/2019,"1,972.24",73501-RESIDENTIAL EMI,MENTAL HEALTH SUPPORT,Third Party Payments,Revenue
Walsall Council,http://opendatacommunities.org/id/metropolitan-district-council/walsall,WC105-449,30/06/2019,Adult Social Care,ANSON COURT RESIDENTIAL HOME,24/06/2019,"1,972.24",73501-RESIDENTIAL EMI,SUPPORT WITH MEMORY & COGNITION,Third Party Payments,Revenue
Walsall Council,http://opendatacommunities.org/id/metropolitan-district-council/walsall,WC105-450,30/06/2019,Adult Social Care,ANSON COURT RESIDENTIAL HOME,24/06/2019,"1,972.24",73501-RESIDENTIAL EMI,SOCIAL SUPPORT,Third Party Payments,Revenue
Walsall Council,http://opendatacommunities.org/id/metropolitan-district-council/walsall,WC105-451,30/06/2019,Adult Social Care,ANSON COURT RESIDENTIAL HOME,24/06/2019,"1,972.24",73501-RESIDENTIAL EMI,PHYSICAL SUPPORT,Third Party Payments,Revenue
Walsall Council,http://opendatacommunities.org/id/metropolitan-district-council/walsall,WC105-452,30/06/2019,Adult Social Care,ANSON COURT RESIDENTIAL HOME,24/06/2019,"1,972.24",73501-RESIDENTIAL EMI,PHYSICAL SUPPORT,Third Party Payments,Revenue
Walsall Council,http://opendatacommunities.org/id/metropolitan-district-council/walsall,WC105-453,30/06/2019,Adult Social Care,ANSON COURT RESIDENTIAL HOME,24/06/2019,"1,972.24",73501-RESIDENTIAL EMI,PHYSICAL SUPPORT,Third Party Payments,Revenue
Walsall Council,http://opendatacommunities.org/id/metropolitan-district-council/walsall,WC105-454,30/06/2019,Adult Social Care,ANSON COURT RESIDENTIAL HOME,24/06/2019,"2,052.24",73501-RESIDENTIAL EMI,PHYSICAL SUPPORT,Third Party Payments,Revenue
Walsall Council,http://opendatacommunities.org/id/metropolitan-district-council/walsall,WC105-455,30/06/2019,Adult Social Care,ANSON COURT RESIDENTIAL HOME,24/06/2019,"2,052.24",73501-RESIDENTIAL EMI,MENTAL HEALTH SUPPORT,Third Party Payments,Revenue
Walsall Council,http://opendatacommunities.org/id/metropolitan-district-council/walsall,WC105-456,30/06/2019,Adult Social Care,ANSON COURT RESIDENTIAL HOME,24/06/2019,"2,052.24",73501-RESIDENTIAL EMI,PHYSICAL SUPPORT,Third Party Payments,Revenue
Walsall Council,http://opendatacommunities.org/id/metropolitan-district-council/walsall,WC105-457,30/06/2019,Adult Social Care,ANSON COURT RESIDENTIAL HOME,24/06/2019,"2,092.24",73501-RESIDENTIAL EMI,PHYSICAL SUPPORT,Third Party Payments,Revenue
Walsall Council,http://opendatacommunities.org/id/metropolitan-district-council/walsall,WC105-458,30/06/2019,Adult Social Care,ANSON COURT RESIDENTIAL HOME,24/06/2019,"2,092.24",73501-RESIDENTIAL EMI,MENTAL HEALTH SUPPORT,Third Party Payments,Revenue
Walsall Council,http://opendatacommunities.org/id/metropolitan-district-council/walsall,WC105-459,30/06/2019,Adult Social Care,ANSON COURT RESIDENTIAL HOME,24/06/2019,"2,092.24",73501-RESIDENTIAL EMI,PHYSICAL SUPPORT,Third Party Payments,Revenue
Walsall Council,http://opendatacommunities.org/id/metropolitan-district-council/walsall,WC105-460,30/06/2019,Adult Social Care,ANSON COURT RESIDENTIAL HOME,24/06/2019,"2,092.24",73501-RESIDENTIAL EMI,MENTAL HEALTH SUPPORT,Third Party Payments,Revenue
Walsall Council,http://opendatacommunities.org/id/metropolitan-district-council/walsall,WC105-461,30/06/2019,Adult Social Care,ANSON COURT RESIDENTIAL HOME,24/06/2019,"2,172.24",73501-RESIDENTIAL EMI,PHYSICAL SUPPORT,Third Party Payments,Revenue
Walsall Council,http://opendatacommunities.org/id/metropolitan-district-council/walsall,WC105-462,30/06/2019,Resources and Transformation,ANTALIS LIMITED,03/06/2019,389.35,60500-GENERAL MATERIALS,PRINTING SERVICES,Supplies & Services,Revenue
Walsall Council,http://opendatacommunities.org/id/metropolitan-district-council/walsall,WC105-463,30/06/2019,Childrens,REDACTED,01/06/2019,604.00,74510-RESIDENTS ORDERS,ADOPTION ALLOWANCES,Third Party Payments,Revenue
Walsall Council,http://opendatacommunities.org/id/metropolitan-district-council/walsall,WC105-464,30/06/2019,Childrens,REDACTED,01/06/2019,414.49,74509-SPECIAL GUARDIANSHIP ORDERS,ADOPTION ALLOWANCES,Transfer Payments,Revenue
Walsall Council,http://opendatacommunities.org/id/metropolitan-district-council/walsall,WC105-465,30/06/2019,Adult Social Care,ANVILLE COURT CARE LTD,24/06/2019,"2,661.80",73503-NURSING EMI,MENTAL HEALTH SUPPORT,Third Party Payments,Revenue
Walsall Council,http://opendatacommunities.org/id/metropolitan-district-council/walsall,WC105-466,30/06/2019,Economy & Environment,APCOA PARKING SERVICES (UK) LTD,25/06/2019,"51,942.56",73025-PROFESSIONAL SERVICES-PRIV CONTRACTOR & OTHER AGENCIES,PARKING SERVICES OFF-STREET,Third Party Payments,Revenue
Walsall Council,http://opendatacommunities.org/id/metropolitan-district-council/walsall,WC105-467,30/06/2019,Resources and Transformation,APEX RADIO SYSTEMS LTD,13/06/2019,458.99,01006-SITE WORKS MAIN CONTRACTORS,CFR 1189 CCTV,Capital,Capital
Walsall Council,http://opendatacommunities.org/id/metropolitan-district-council/walsall,WC105-468,30/06/2019,Resources and Transformation,APP CARZ,21/06/2019,577.00,52000-WITH DRIVER-HIRE OF VEHICLES,ADVICE & GUIDANCE SERVICE,Transport,Revenue
Walsall Council,http://opendatacommunities.org/id/metropolitan-district-council/walsall,WC105-469,30/06/2019,Economy & Environment,AQUAMO LTD,10/06/2019,394.43,60008-REPAIR & MAINTENANCE OF FURNITURE & EQUIPMENT,WALSALL GALA CENTRE,Supplies & Services,Revenue
Walsall Council,http://opendatacommunities.org/id/metropolitan-district-council/walsall,WC105-470,30/06/2019,Adult Social Care,ARBORETUM NURSING HOME.,24/06/2019,"-1,635.96",73500-RESIDENTIAL,PHYSICAL SUPPORT,Third Party Payments,Revenue
Walsall Council,http://opendatacommunities.org/id/metropolitan-district-council/walsall,WC105-471,30/06/2019,Adult Social Care,ARBORETUM NURSING HOME.,24/06/2019,970.17,73502-NURSING,PHYSICAL SUPPORT,Third Party Payments,Revenue
Walsall Council,http://opendatacommunities.org/id/metropolitan-district-council/walsall,WC105-472,30/06/2019,Adult Social Care,ARBORETUM NURSING HOME.,24/06/2019,"1,051.01",73502-NURSING,PHYSICAL SUPPORT,Third Party Payments,Revenue
Walsall Council,http://opendatacommunities.org/id/metropolitan-district-council/walsall,WC105-473,30/06/2019,Adult Social Care,ARBORETUM NURSING HOME.,13/06/2019,"1,277.14",73025-PROFESSIONAL SERVICES-PRIV CONTRACTOR & OTHER AGENCIES,TRANSITIONAL CARE SUPPORT TEAM,Third Party Payments,Revenue
Walsall Council,http://opendatacommunities.org/id/metropolitan-district-council/walsall,WC105-474,30/06/2019,Adult Social Care,ARBORETUM NURSING HOME.,24/06/2019,"2,021.18",73502-NURSING,PHYSICAL SUPPORT,Third Party Payments,Revenue
Walsall Council,http://opendatacommunities.org/id/metropolitan-district-council/walsall,WC105-475,30/06/2019,Adult Social Care,ARBORETUM NURSING HOME.,24/06/2019,"2,143.72",73502-NURSING,PHYSICAL SUPPORT,Third Party Payments,Revenue
Walsall Council,http://opendatacommunities.org/id/metropolitan-district-council/walsall,WC105-476,30/06/2019,Adult Social Care,ARBORETUM NURSING HOME.,24/06/2019,"2,143.72",73502-NURSING,PHYSICAL SUPPORT,Third Party Payments,Revenue
Walsall Council,http://opendatacommunities.org/id/metropolitan-district-council/walsall,WC105-477,30/06/2019,Adult Social Care,ARBORETUM NURSING HOME.,24/06/2019,"2,143.72",73502-NURSING,PHYSICAL SUPPORT,Third Party Payments,Revenue
Walsall Council,http://opendatacommunities.org/id/metropolitan-district-council/walsall,WC105-478,30/06/2019,Adult Social Care,ARBORETUM NURSING HOME.,24/06/2019,"2,223.72",73502-NURSING,PHYSICAL SUPPORT,Third Party Payments,Revenue
Walsall Council,http://opendatacommunities.org/id/metropolitan-district-council/walsall,WC105-479,30/06/2019,Adult Social Care,ARBORETUM NURSING HOME.,24/06/2019,"2,243.72",73502-NURSING,PHYSICAL SUPPORT,Third Party Payments,Revenue
Walsall Council,http://opendatacommunities.org/id/metropolitan-district-council/walsall,WC105-480,30/06/2019,Adult Social Care,ARBORETUM NURSING HOME.,24/06/2019,"2,263.72",73502-NURSING,PHYSICAL SUPPORT,Third Party Payments,Revenue
Walsall Council,http://opendatacommunities.org/id/metropolitan-district-council/walsall,WC105-481,30/06/2019,Adult Social Care,ARBORETUM NURSING HOME.,24/06/2019,"2,263.72",73502-NURSING,PHYSICAL SUPPORT,Third Party Payments,Revenue
Walsall Council,http://opendatacommunities.org/id/metropolitan-district-council/walsall,WC105-482,30/06/2019,Adult Social Care,ARBORETUM NURSING HOME.,24/06/2019,"2,263.72",73502-NURSING,PHYSICAL SUPPORT,Third Party Payments,Revenue
Walsall Council,http://opendatacommunities.org/id/metropolitan-district-council/walsall,WC105-483,30/06/2019,Adult Social Care,ARBORETUM NURSING HOME.,24/06/2019,"2,263.72",73502-NURSING,PHYSICAL SUPPORT,Third Party Payments,Revenue
Walsall Council,http://opendatacommunities.org/id/metropolitan-district-council/walsall,WC105-484,30/06/2019,Adult Social Care,ARBORETUM NURSING HOME.,24/06/2019,"2,303.72",73502-NURSING,SOCIAL SUPPORT,Third Party Payments,Revenue
Walsall Council,http://opendatacommunities.org/id/metropolitan-district-council/walsall,WC105-485,30/06/2019,Adult Social Care,ARBORETUM NURSING HOME.,01/06/2019,"2,392.50",73373-RESIDENTIAL & NURSING CARE PLACEMENTS,OP PACKAGE/PLACEMENT COSTS,Third Party Payments,Revenue
Walsall Council,http://opendatacommunities.org/id/metropolitan-district-council/walsall,WC105-486,30/06/2019,Adult Social Care,ARBORETUM NURSING HOME.,24/06/2019,"2,478.08",73503-NURSING EMI,PHYSICAL SUPPORT,Third Party Payments,Revenue
Walsall Council,http://opendatacommunities.org/id/metropolitan-district-council/walsall,WC105-487,30/06/2019,Adult Social Care,ARBORETUM NURSING HOME.,17/06/2019,"8,940.00",73025-PROFESSIONAL SERVICES-PRIV CONTRACTOR & OTHER AGENCIES,TRANSITIONAL CARE SUPPORT TEAM,Third Party Payments,Revenue
Walsall Council,http://opendatacommunities.org/id/metropolitan-district-council/walsall,WC105-488,30/06/2019,Adult Social Care,ARBORETUM NURSING HOME.,17/06/2019,"14,900.00",73025-PROFESSIONAL SERVICES-PRIV CONTRACTOR & OTHER AGENCIES,TRANSITIONAL CARE SUPPORT TEAM,Third Party Payments,Revenue
Walsall Council,http://opendatacommunities.org/id/metropolitan-district-council/walsall,WC105-489,30/06/2019,Adult Social Care,ARBORETUM NURSING HOME.,24/06/2019,"23,840.00",73025-PROFESSIONAL SERVICES-PRIV CONTRACTOR & OTHER AGENCIES,TRANSITIONAL CARE SUPPORT TEAM,Third Party Payments,Revenue
Walsall Council,http://opendatacommunities.org/id/metropolitan-district-council/walsall,WC105-490,30/06/2019,Economy & Environment,ARBURY WALSALL,04/06/2019,231.85,60009-LEASING/HIRE/RENTAL-EQUIPMENT,TARMAC,Supplies & Services,Revenue
Walsall Council,http://opendatacommunities.org/id/metropolitan-district-council/walsall,WC105-491,30/06/2019,Economy & Environment,ARCANUM DIGITAL FORENSICS,26/06/2019,750.00,73007-SAMPLING FEES-PRIV CONTRACTOR FEES,TRADING STANDARDS,Third Party Payments,Revenue
Walsall Council,http://opendatacommunities.org/id/metropolitan-district-council/walsall,WC105-492,30/06/2019,Childrens,ARCHWAY ACADEMY,03/06/2019,"14,740.00",66502-TOP UP FUNDING -GRANTS TO SCHOOLS,INDEPENDENT PROVIDERS - SPECIAL & AP,Third Party Payments,Revenue
Walsall Council,http://opendatacommunities.org/id/metropolitan-district-council/walsall,WC105-493,30/06/2019,Childrens,ARCHWAY ACADEMY,10/06/2019,"14,740.00",66502-TOP UP FUNDING -GRANTS TO SCHOOLS,INDEPENDENT PROVIDERS - SPECIAL & AP,Third Party Payments,Revenue
Walsall Council,http://opendatacommunities.org/id/metropolitan-district-council/walsall,WC105-494,30/06/2019,Childrens,ARCHWAY ACADEMY,03/06/2019,"17,688.00",66502-TOP UP FUNDING -GRANTS TO SCHOOLS,INDEPENDENT PROVIDERS - SPECIAL & AP,Third Party Payments,Revenue
Walsall Council,http://opendatacommunities.org/id/metropolitan-district-council/walsall,WC105-495,30/06/2019,Childrens,ARCHWAY ACADEMY,10/06/2019,"17,688.00",66502-TOP UP FUNDING -GRANTS TO SCHOOLS,INDEPENDENT PROVIDERS - SPECIAL & AP,Third Party Payments,Revenue
Walsall Council,http://opendatacommunities.org/id/metropolitan-district-council/walsall,WC105-496,30/06/2019,Holding Accounts,REDACTED,21/06/2019,400.00,67001-MISC INSURANCES - PAYMENT OF CLAIMS,PUBLIC LIABILITY,Supplies & Services,Revenue
Walsall Council,http://opendatacommunities.org/id/metropolitan-district-council/walsall,WC105-497,30/06/2019,Childrens,ARMSTRONG YORK ASBESTOS ENVIRONMENTAL LIMITED,01/06/2019,360.00,01006-SITE WORKS MAIN CONTRACTORS,CFR 1299 VARIOUS KITCHEN VENTILATION UPGRADES,Capital,Capital
Walsall Council,http://opendatacommunities.org/id/metropolitan-district-council/walsall,WC105-498,30/06/2019,Childrens,ARMSTRONG YORK ASBESTOS ENVIRONMENTAL LIMITED,01/06/2019,360.00,01006-SITE WORKS MAIN CONTRACTORS,CFR 1299 VARIOUS KITCHEN VENTILATION UPGRADES,Capital,Capital
Walsall Council,http://opendatacommunities.org/id/metropolitan-district-council/walsall,WC105-499,30/06/2019,Childrens,ARMSTRONG YORK ASBESTOS ENVIRONMENTAL LIMITED,01/06/2019,360.00,01006-SITE WORKS MAIN CONTRACTORS,CFR 1299 VARIOUS KITCHEN VENTILATION UPGRADES,Capital,Capital
Walsall Council,http://opendatacommunities.org/id/metropolitan-district-council/walsall,WC105-500,30/06/2019,Childrens,ARMSTRONG YORK ASBESTOS ENVIRONMENTAL LIMITED,01/06/2019,425.00,01006-SITE WORKS MAIN CONTRACTORS,CFR 1297 MANOR PRIMARY SCHOOL EXPANSION,Capital,Capital
Walsall Council,http://opendatacommunities.org/id/metropolitan-district-council/walsall,WC105-501,30/06/2019,Childrens,ARMSTRONG YORK ASBESTOS ENVIRONMENTAL LIMITED,01/06/2019,600.00,01006-SITE WORKS MAIN CONTRACTORS,CFR 1299 ST JOHNS PRIMARY SCHOOL - REPLACE EMITTERS,Capital,Capital
Walsall Council,http://opendatacommunities.org/id/metropolitan-district-council/walsall,WC105-502,30/06/2019,Resources and Transformation,ARMSTRONG YORK ASBESTOS ENVIRONMENTAL LIMITED,01/06/2019,720.00,01006-SITE WORKS MAIN CONTRACTORS,CFR 801 ASBESTOS REMOVAL EAST,Capital,Capital
Walsall Council,http://opendatacommunities.org/id/metropolitan-district-council/walsall,WC105-503,30/06/2019,Childrens,ARNOLD CLARK CAR & VAN RENTAL,01/06/2019,329.14,52001-HIRE OF VEHICLES,SAFEGUARDING & FAMILY SUPPORT,Transport,Revenue
Walsall Council,http://opendatacommunities.org/id/metropolitan-district-council/walsall,WC105-504,30/06/2019,Childrens,ARNOLD CLARK CAR & VAN RENTAL,01/06/2019,329.14,52001-HIRE OF VEHICLES,SAFEGUARDING & FAMILY SUPPORT,Transport,Revenue
Walsall Council,http://opendatacommunities.org/id/metropolitan-district-council/walsall,WC105-505,30/06/2019,Childrens,ARNOLD CLARK CAR & VAN RENTAL,21/06/2019,329.14,52001-HIRE OF VEHICLES,SAFEGUARDING & FAMILY SUPPORT,Transport,Revenue
Walsall Council,http://opendatacommunities.org/id/metropolitan-district-council/walsall,WC105-506,30/06/2019,Childrens,ARNOLD CLARK CAR & VAN RENTAL,21/06/2019,329.15,52001-HIRE OF VEHICLES,SAFEGUARDING & FAMILY SUPPORT,Transport,Revenue
Walsall Council,http://opendatacommunities.org/id/metropolitan-district-council/walsall,WC105-507,30/06/2019,Economy & Environment,ARTHUR J GALLAGHER T/A HEATH LAMBERT LIMITED,03/06/2019,"5,000.00",63000-PROFESSIONAL FEES AND SERVICES,PHOENIX 10 PROJECT,Supplies & Services,Revenue
Walsall Council,http://opendatacommunities.org/id/metropolitan-district-council/walsall,WC105-508,30/06/2019,Childrens,ARTHUR M GRIFFITHS & SON LTD,10/06/2019,"67,405.44",01006-SITE WORKS MAIN CONTRACTORS,CFR 929 FIBBERSLEY PRIMARY SIGNIFICANT ENLARGEMENT,Capital,Capital
Walsall Council,http://opendatacommunities.org/id/metropolitan-district-council/walsall,WC105-509,30/06/2019,Economy & Environment,ASDA PHARMACY,26/06/2019,239.68,71007-CONTRIBUTION TO PCT,PUBLIC HEALTH BUSINESS SUPPORT,Third Party Payments,Revenue
Walsall Council,http://opendatacommunities.org/id/metropolitan-district-council/walsall,WC105-510,30/06/2019,Economy & Environment,ASDA PHARMACY,24/06/2019,247.71,71007-CONTRIBUTION TO PCT,PUBLIC HEALTH BUSINESS SUPPORT,Third Party Payments,Revenue
Walsall Council,http://opendatacommunities.org/id/metropolitan-district-council/walsall,WC105-511,30/06/2019,Economy & Environment,ASDA PHARMACY,24/06/2019,264.39,71007-CONTRIBUTION TO PCT,PUBLIC HEALTH BUSINESS SUPPORT,Third Party Payments,Revenue
Walsall Council,http://opendatacommunities.org/id/metropolitan-district-council/walsall,WC105-512,30/06/2019,Economy & Environment,ASDA PHARMACY,25/06/2019,387.60,71007-CONTRIBUTION TO PCT,PUBLIC HEALTH BUSINESS SUPPORT,Third Party Payments,Revenue
Walsall Council,http://opendatacommunities.org/id/metropolitan-district-council/walsall,WC105-513,30/06/2019,Adult Social Care,ASH GRANGE CARE HOME,24/06/2019,459.37,73502-NURSING,PHYSICAL SUPPORT,Third Party Payments,Revenue
Walsall Council,http://opendatacommunities.org/id/metropolitan-district-council/walsall,WC105-514,30/06/2019,Adult Social Care,ASH GRANGE CARE HOME,24/06/2019,912.00,73500-RESIDENTIAL,PHYSICAL SUPPORT,Third Party Payments,Revenue
Walsall Council,http://opendatacommunities.org/id/metropolitan-district-council/walsall,WC105-515,30/06/2019,Adult Social Care,ASH GRANGE CARE HOME,24/06/2019,"1,688.84",73504-SHORT STAY RESIDENTIAL,PHYSICAL SUPPORT,Third Party Payments,Revenue
Walsall Council,http://opendatacommunities.org/id/metropolitan-district-council/walsall,WC105-516,30/06/2019,Adult Social Care,ASH GRANGE CARE HOME,24/06/2019,"1,774.96",73500-RESIDENTIAL,MENTAL HEALTH SUPPORT,Third Party Payments,Revenue
Walsall Council,http://opendatacommunities.org/id/metropolitan-district-council/walsall,WC105-517,30/06/2019,Adult Social Care,ASH GRANGE CARE HOME,24/06/2019,"1,774.96",73500-RESIDENTIAL,SUPPORT WITH MEMORY & COGNITION,Third Party Payments,Revenue
Walsall Council,http://opendatacommunities.org/id/metropolitan-district-council/walsall,WC105-518,30/06/2019,Adult Social Care,ASH GRANGE CARE HOME,24/06/2019,"2,143.72",73502-NURSING,SUPPORT WITH MEMORY & COGNITION,Third Party Payments,Revenue
Walsall Council,http://opendatacommunities.org/id/metropolitan-district-council/walsall,WC105-519,30/06/2019,Adult Social Care,ASH GRANGE CARE HOME,24/06/2019,"2,143.72",73502-NURSING,PHYSICAL SUPPORT,Third Party Payments,Revenue
Walsall Council,http://opendatacommunities.org/id/metropolitan-district-council/walsall,WC105-520,30/06/2019,Adult Social Care,ASH GRANGE CARE HOME,24/06/2019,"2,143.72",73502-NURSING,PHYSICAL SUPPORT,Third Party Payments,Revenue
Walsall Council,http://opendatacommunities.org/id/metropolitan-district-council/walsall,WC105-521,30/06/2019,Adult Social Care,ASH GRANGE CARE HOME,24/06/2019,"2,143.72",73502-NURSING,PHYSICAL SUPPORT,Third Party Payments,Revenue
Walsall Council,http://opendatacommunities.org/id/metropolitan-district-council/walsall,WC105-522,30/06/2019,Adult Social Care,ASH GRANGE CARE HOME,24/06/2019,"2,143.72",73502-NURSING,PHYSICAL SUPPORT,Third Party Payments,Revenue
Walsall Council,http://opendatacommunities.org/id/metropolitan-district-council/walsall,WC105-523,30/06/2019,Adult Social Care,ASH GRANGE CARE HOME,24/06/2019,"2,143.72",73502-NURSING,PHYSICAL SUPPORT,Third Party Payments,Revenue
Walsall Council,http://opendatacommunities.org/id/metropolitan-district-council/walsall,WC105-524,30/06/2019,Adult Social Care,ASH GRANGE CARE HOME,24/06/2019,"2,143.72",73502-NURSING,MENTAL HEALTH SUPPORT,Third Party Payments,Revenue
Walsall Council,http://opendatacommunities.org/id/metropolitan-district-council/walsall,WC105-525,30/06/2019,Adult Social Care,ASH GRANGE CARE HOME,24/06/2019,"2,143.72",73502-NURSING,PHYSICAL SUPPORT,Third Party Payments,Revenue
Walsall Council,http://opendatacommunities.org/id/metropolitan-district-council/walsall,WC105-526,30/06/2019,Adult Social Care,ASH GRANGE CARE HOME,24/06/2019,"2,143.72",73502-NURSING,PHYSICAL SUPPORT,Third Party Payments,Revenue
Walsall Council,http://opendatacommunities.org/id/metropolitan-district-council/walsall,WC105-527,30/06/2019,Adult Social Care,ASH GRANGE CARE HOME,24/06/2019,"2,143.72",73502-NURSING,PHYSICAL SUPPORT,Third Party Payments,Revenue
Walsall Council,http://opendatacommunities.org/id/metropolitan-district-council/walsall,WC105-528,30/06/2019,Adult Social Care,ASH GRANGE CARE HOME,24/06/2019,"2,143.72",73502-NURSING,PHYSICAL SUPPORT,Third Party Payments,Revenue
Walsall Council,http://opendatacommunities.org/id/metropolitan-district-council/walsall,WC105-529,30/06/2019,Adult Social Care,ASH GRANGE CARE HOME,24/06/2019,"2,143.72",73502-NURSING,PHYSICAL SUPPORT,Third Party Payments,Revenue
Walsall Council,http://opendatacommunities.org/id/metropolitan-district-council/walsall,WC105-530,30/06/2019,Adult Social Care,ASH GRANGE CARE HOME,24/06/2019,"2,143.72",73502-NURSING,MENTAL HEALTH SUPPORT,Third Party Payments,Revenue
Walsall Council,http://opendatacommunities.org/id/metropolitan-district-council/walsall,WC105-531,30/06/2019,Adult Social Care,ASH GRANGE CARE HOME,24/06/2019,"2,143.72",73502-NURSING,PHYSICAL SUPPORT,Third Party Payments,Revenue
Walsall Council,http://opendatacommunities.org/id/metropolitan-district-council/walsall,WC105-532,30/06/2019,Adult Social Care,ASH GRANGE CARE HOME,24/06/2019,"2,143.72",73502-NURSING,PHYSICAL SUPPORT,Third Party Payments,Revenue
Walsall Council,http://opendatacommunities.org/id/metropolitan-district-council/walsall,WC105-533,30/06/2019,Adult Social Care,ASH GRANGE CARE HOME,24/06/2019,"2,343.72",73502-NURSING,PHYSICAL SUPPORT,Third Party Payments,Revenue
Walsall Council,http://opendatacommunities.org/id/metropolitan-district-council/walsall,WC105-534,30/06/2019,Adult Social Care,ASH GRANGE CARE HOME,24/06/2019,"2,343.72",73502-NURSING,PHYSICAL SUPPORT,Third Party Payments,Revenue
Walsall Council,http://opendatacommunities.org/id/metropolitan-district-council/walsall,WC105-535,30/06/2019,Adult Social Care,ASH GRANGE CARE HOME,24/06/2019,"2,358.08",73503-NURSING EMI,PHYSICAL SUPPORT,Third Party Payments,Revenue
Walsall Council,http://opendatacommunities.org/id/metropolitan-district-council/walsall,WC105-536,30/06/2019,Adult Social Care,ASH GRANGE CARE HOME,24/06/2019,"2,358.08",73503-NURSING EMI,PHYSICAL SUPPORT,Third Party Payments,Revenue
Walsall Council,http://opendatacommunities.org/id/metropolitan-district-council/walsall,WC105-537,30/06/2019,Adult Social Care,ASH GRANGE CARE HOME,24/06/2019,"2,423.72",73502-NURSING,PHYSICAL SUPPORT,Third Party Payments,Revenue
Walsall Council,http://opendatacommunities.org/id/metropolitan-district-council/walsall,WC105-538,30/06/2019,Adult Social Care,ASH GRANGE CARE HOME,24/06/2019,"2,463.72",73502-NURSING,PHYSICAL SUPPORT,Third Party Payments,Revenue
Walsall Council,http://opendatacommunities.org/id/metropolitan-district-council/walsall,WC105-539,30/06/2019,Adult Social Care,ASH GRANGE CARE HOME,24/06/2019,"2,520.68",73500-RESIDENTIAL,LEARNING DISABILITY SUPPORT,Third Party Payments,Revenue
Walsall Council,http://opendatacommunities.org/id/metropolitan-district-council/walsall,WC105-540,30/06/2019,Adult Social Care,ASH GRANGE CARE HOME,24/06/2019,"2,594.44",73503-NURSING EMI,PHYSICAL SUPPORT,Third Party Payments,Revenue
Walsall Council,http://opendatacommunities.org/id/metropolitan-district-council/walsall,WC105-541,30/06/2019,Adult Social Care,ASH GRANGE CARE HOME,24/06/2019,"2,752.04",73502-NURSING,SOCIAL SUPPORT,Third Party Payments,Revenue
Walsall Council,http://opendatacommunities.org/id/metropolitan-district-council/walsall,WC105-542,30/06/2019,Adult Social Care,REDACTED,11/06/2019,"1,527.00",73506-DIRECT PAYMENT,LEARNING DISABILITY SUPPORT,Third Party Payments,Revenue
Walsall Council,http://opendatacommunities.org/id/metropolitan-district-council/walsall,WC105-543,30/06/2019,Economy & Environment,ASIA CONTINENTAL STORE,07/06/2019,499.20,60501-LIBRARY BOOKS,LIBRARY MANAGEMENT,Supplies & Services,Revenue
Walsall Council,http://opendatacommunities.org/id/metropolitan-district-council/walsall,WC105-544,30/06/2019,Adult Social Care,REDACTED,11/06/2019,"1,392.30",73506-DIRECT PAYMENT,LEARNING DISABILITY SUPPORT,Third Party Payments,Revenue
Walsall Council,http://opendatacommunities.org/id/metropolitan-district-council/walsall,WC105-545,30/06/2019,Economy & Environment,ASKEWS AND HOLTS LIBRARY SERVICES LTD,26/06/2019,"1,309.16",60501-LIBRARY BOOKS,LIBRARY MANAGEMENT,Supplies & Services,Revenue
Walsall Council,http://opendatacommunities.org/id/metropolitan-district-council/walsall,WC105-546,30/06/2019,Economy & Environment,ASKEWS AND HOLTS LIBRARY SERVICES LTD,26/06/2019,"1,595.80",60501-LIBRARY BOOKS,LIBRARY MANAGEMENT,Supplies & Services,Revenue
Walsall Council,http://opendatacommunities.org/id/metropolitan-district-council/walsall,WC105-547,30/06/2019,Economy & Environment,ASKEWS AND HOLTS LIBRARY SERVICES LTD,26/06/2019,"1,897.42",60501-LIBRARY BOOKS,LIBRARY MANAGEMENT,Supplies & Services,Revenue
Walsall Council,http://opendatacommunities.org/id/metropolitan-district-council/walsall,WC105-548,30/06/2019,Economy & Environment,ASKEWS AND HOLTS LIBRARY SERVICES LTD,26/06/2019,"2,723.75",60501-LIBRARY BOOKS,LIBRARY MANAGEMENT,Supplies & Services,Revenue
Walsall Council,http://opendatacommunities.org/id/metropolitan-district-council/walsall,WC105-549,30/06/2019,Economy & Environment,ASKEWS AND HOLTS LIBRARY SERVICES LTD,26/06/2019,"3,785.91",60501-LIBRARY BOOKS,LIBRARY MANAGEMENT,Supplies & Services,Revenue
Walsall Council,http://opendatacommunities.org/id/metropolitan-district-council/walsall,WC105-550,30/06/2019,Adult Social Care,REDACTED,11/06/2019,969.00,73506-DIRECT PAYMENT,PHYSICAL SUPPORT,Third Party Payments,Revenue
Walsall Council,http://opendatacommunities.org/id/metropolitan-district-council/walsall,WC105-551,30/06/2019,Childrens,ASPIRE PEOPLE LTD.,19/06/2019,440.00,63000-PROFESSIONAL FEES AND SERVICES,BEHAVIOUR SUPPORT SERVICE (INCOME),Supplies & Services,Revenue
Walsall Council,http://opendatacommunities.org/id/metropolitan-district-council/walsall,WC105-552,30/06/2019,Childrens,ASPIRE PEOPLE LTD.,19/06/2019,440.00,63000-PROFESSIONAL FEES AND SERVICES,BEHAVIOUR SUPPORT SERVICE (INCOME),Supplies & Services,Revenue
Walsall Council,http://opendatacommunities.org/id/metropolitan-district-council/walsall,WC105-553,30/06/2019,Childrens,ASPIRE PEOPLE LTD.,20/06/2019,440.00,63000-PROFESSIONAL FEES AND SERVICES,BEHAVIOUR SUPPORT SERVICE (INCOME),Supplies & Services,Revenue
Walsall Council,http://opendatacommunities.org/id/metropolitan-district-council/walsall,WC105-554,30/06/2019,Childrens,ASPIRE PEOPLE LTD.,19/06/2019,550.00,63000-PROFESSIONAL FEES AND SERVICES,BEHAVIOUR SUPPORT SERVICE (INCOME),Supplies & Services,Revenue
Walsall Council,http://opendatacommunities.org/id/metropolitan-district-council/walsall,WC105-555,30/06/2019,Childrens,ASPIRE PEOPLE LTD.,20/06/2019,550.00,63000-PROFESSIONAL FEES AND SERVICES,BEHAVIOUR SUPPORT SERVICE (INCOME),Supplies & Services,Revenue
Walsall Council,http://opendatacommunities.org/id/metropolitan-district-council/walsall,WC105-556,30/06/2019,Childrens,ASPIRE PEOPLE LTD.,20/06/2019,550.00,63000-PROFESSIONAL FEES AND SERVICES,BEHAVIOUR SUPPORT SERVICE (INCOME),Supplies & Services,Revenue
Walsall Council,http://opendatacommunities.org/id/metropolitan-district-council/walsall,WC105-557,30/06/2019,Adult Social Care,ASSURED HEALTHCARE SOLUTIONS (PARK FARM LODGE),24/06/2019,"2,034.44",73500-RESIDENTIAL,PHYSICAL SUPPORT,Third Party Payments,Revenue
Walsall Council,http://opendatacommunities.org/id/metropolitan-district-council/walsall,WC105-558,30/06/2019,Resources and Transformation,ASTECH CONSULTANTS LTD,21/06/2019,"7,393.15",64500-PUBLICATIONS/ORGANISATIONS-SUBSCRIPTIONS,COMMITTEE ADMINISTRATION,Supplies & Services,Revenue
Walsall Council,http://opendatacommunities.org/id/metropolitan-district-council/walsall,WC105-559,30/06/2019,Economy & Environment,ATHWAL NEWS LTD,07/06/2019,301.48,60501-LIBRARY BOOKS,LIBRARY MANAGEMENT,Supplies & Services,Revenue
Walsall Council,http://opendatacommunities.org/id/metropolitan-district-council/walsall,WC105-560,30/06/2019,Economy & Environment,ATHWAL NEWS LTD,14/06/2019,349.62,60501-LIBRARY BOOKS,LIBRARY MANAGEMENT,Supplies & Services,Revenue
Walsall Council,http://opendatacommunities.org/id/metropolitan-district-council/walsall,WC105-561,30/06/2019,Economy & Environment,ATKINS LIMITED,05/06/2019,"6,575.00",01002-PROJECT FEES,CFR 1072 BLACK COUNTRY TRAIN STATIONS DEVELOPMENT FUNDING,Capital,Capital
Walsall Council,http://opendatacommunities.org/id/metropolitan-district-council/walsall,WC105-562,30/06/2019,Economy & Environment,ATKINS LIMITED,18/06/2019,"9,460.00",01003-ENGINEERS ASSISTANTS TIME - DESIGN,CFR 819 LTP-YORKS BRIDGE,Capital,Capital
Walsall Council,http://opendatacommunities.org/id/metropolitan-district-council/walsall,WC105-563,30/06/2019,Adult Social Care,AUTISM WEST MIDLANDS,24/06/2019,"7,172.48",73500-RESIDENTIAL,LEARNING DISABILITY SUPPORT,Third Party Payments,Revenue
Walsall Council,http://opendatacommunities.org/id/metropolitan-district-council/walsall,WC105-564,30/06/2019,Adult Social Care,AUTISM WEST MIDLANDS 001,24/06/2019,"4,794.44",73500-RESIDENTIAL,LEARNING DISABILITY SUPPORT,Third Party Payments,Revenue
Walsall Council,http://opendatacommunities.org/id/metropolitan-district-council/walsall,WC105-565,30/06/2019,Adult Social Care,REDACTED,11/06/2019,533.35,73506-DIRECT PAYMENT,SUPPORT WITH MEMORY & COGNITION,Third Party Payments,Revenue
Walsall Council,http://opendatacommunities.org/id/metropolitan-district-council/walsall,WC105-566,30/06/2019,Adult Social Care,REDACTED,11/06/2019,"3,978.00",73506-DIRECT PAYMENT,LEARNING DISABILITY SUPPORT,Third Party Payments,Revenue
Walsall Council,http://opendatacommunities.org/id/metropolitan-district-council/walsall,WC105-567,30/06/2019,Economy & Environment,B & S CHAINS LTD,26/06/2019,796.50,60500-GENERAL MATERIALS,INFRASTRUCTURE MAINTENANCE,Supplies & Services,Revenue
Walsall Council,http://opendatacommunities.org/id/metropolitan-district-council/walsall,WC105-568,30/06/2019,Economy & Environment,B & S CHAINS LTD,21/06/2019,804.00,60500-GENERAL MATERIALS,INFRASTRUCTURE MAINTENANCE,Supplies & Services,Revenue
Walsall Council,http://opendatacommunities.org/id/metropolitan-district-council/walsall,WC105-569,30/06/2019,Resources and Transformation,B E FURNITURE LTD T/A B E EVENTHIRE,01/06/2019,"1,473.00",60009-LEASING/HIRE/RENTAL-EQUIPMENT,ELECTORAL ADMINISTRATION,Supplies & Services,Revenue
Walsall Council,http://opendatacommunities.org/id/metropolitan-district-council/walsall,WC105-570,30/06/2019,Childrens,REDACTED,05/06/2019,464.00,76000-TRANSFER PAYMENTS - SOCIAL SERVICES CLIENTS,TRANSITION AND LEAVING CARE PLACEMENTS,Transfer Payments,Revenue
Walsall Council,http://opendatacommunities.org/id/metropolitan-district-council/walsall,WC105-571,30/06/2019,Childrens,REDACTED,19/06/2019,464.00,76000-TRANSFER PAYMENTS - SOCIAL SERVICES CLIENTS,TRANSITION AND LEAVING CARE PLACEMENTS,Transfer Payments,Revenue
Walsall Council,http://opendatacommunities.org/id/metropolitan-district-council/walsall,WC105-572,30/06/2019,Economy & Environment,BACK CARE SOLUTIONS LTD,14/06/2019,919.00,60006-NEW-FURNITURE & EQUIPMENT,COMMUNITY PROTECTION,Supplies & Services,Revenue
Walsall Council,http://opendatacommunities.org/id/metropolitan-district-council/walsall,WC105-573,30/06/2019,Resources and Transformation,BACS PAYMENT SCHEMES LIMITED,14/06/2019,"1,500.00",63800-COMPUTER EQUIPMENT AND SUPPLIES,CORPORATE PAYROLL & PENSIONS TEAM,Supplies & Services,Revenue
Walsall Council,http://opendatacommunities.org/id/metropolitan-district-council/walsall,WC105-574,30/06/2019,Economy & Environment,BAKER HALL PARTNERSHIP,26/06/2019,961.00,63000-PROFESSIONAL FEES AND SERVICES,BUILDING CONTROL REVENUE FUNDED,Supplies & Services,Revenue
Walsall Council,http://opendatacommunities.org/id/metropolitan-district-council/walsall,WC105-575,30/06/2019,Economy & Environment,BAKER HALL PARTNERSHIP,10/06/2019,"1,049.50",63000-PROFESSIONAL FEES AND SERVICES,BUILDING CONTROL REVENUE FUNDED,Supplies & Services,Revenue
Walsall Council,http://opendatacommunities.org/id/metropolitan-district-council/walsall,WC105-576,30/06/2019,Adult Social Care,REDACTED,11/06/2019,704.60,73506-DIRECT PAYMENT,LEARNING DISABILITY SUPPORT,Third Party Payments,Revenue
Walsall Council,http://opendatacommunities.org/id/metropolitan-district-council/walsall,WC105-577,30/06/2019,Adult Social Care,REDACTED,11/06/2019,"4,974.77",73506-DIRECT PAYMENT,LEARNING DISABILITY SUPPORT,Third Party Payments,Revenue
Walsall Council,http://opendatacommunities.org/id/metropolitan-district-council/walsall,WC105-578,30/06/2019,Childrens,BALTIMORE CONSULTING LTD,21/06/2019,"1,521.00",34305-AGENCY STAFF-EMPLOYEES,GENERAL MANAGEMENT SUPPORT (INC LEGAL),Employees,Revenue
Walsall Council,http://opendatacommunities.org/id/metropolitan-district-council/walsall,WC105-579,30/06/2019,Childrens,BALTIMORE CONSULTING LTD,05/06/2019,"2,281.50",34305-AGENCY STAFF-EMPLOYEES,GENERAL MANAGEMENT SUPPORT (INC LEGAL),Employees,Revenue
Walsall Council,http://opendatacommunities.org/id/metropolitan-district-council/walsall,WC105-580,30/06/2019,Adult Social Care,BALTIMORE CONSULTING LTD,04/06/2019,"2,464.50",63102-CONSULTANTS FEES - CORPORATE,SENIOR MANAGEMENT TEAM,Supplies & Services,Revenue
Walsall Council,http://opendatacommunities.org/id/metropolitan-district-council/walsall,WC105-581,30/06/2019,Adult Social Care,BALTIMORE CONSULTING LTD,05/06/2019,"2,464.50",63102-CONSULTANTS FEES - CORPORATE,SENIOR MANAGEMENT TEAM,Supplies & Services,Revenue
Walsall Council,http://opendatacommunities.org/id/metropolitan-district-council/walsall,WC105-582,30/06/2019,Adult Social Care,BALTIMORE CONSULTING LTD,14/06/2019,"2,464.50",63102-CONSULTANTS FEES - CORPORATE,SENIOR MANAGEMENT TEAM,Supplies & Services,Revenue
Walsall Council,http://opendatacommunities.org/id/metropolitan-district-council/walsall,WC105-583,30/06/2019,Adult Social Care,BALTIMORE CONSULTING LTD,01/06/2019,"4,107.50",63102-CONSULTANTS FEES - CORPORATE,SENIOR MANAGEMENT TEAM,Supplies & Services,Revenue
Walsall Council,http://opendatacommunities.org/id/metropolitan-district-council/walsall,WC105-584,30/06/2019,Adult Social Care,BALTIMORE CONSULTING LTD,25/06/2019,"4,107.50",63102-CONSULTANTS FEES - CORPORATE,SENIOR MANAGEMENT TEAM,Supplies & Services,Revenue
Walsall Council,http://opendatacommunities.org/id/metropolitan-district-council/walsall,WC105-585,30/06/2019,Adult Social Care,REDACTED,11/06/2019,"1,978.60",73506-DIRECT PAYMENT,PHYSICAL SUPPORT,Third Party Payments,Revenue
Walsall Council,http://opendatacommunities.org/id/metropolitan-district-council/walsall,WC105-586,30/06/2019,Childrens,REDACTED,01/06/2019,100.00,74503-BIRTHDAY ALLOWANCE-FOSTER CARERS,FAMILY & FRIENDS FOSTER CARE PROVISION,Transfer Payments,Revenue
Walsall Council,http://opendatacommunities.org/id/metropolitan-district-council/walsall,WC105-587,30/06/2019,Childrens,REDACTED,01/06/2019,340.00,74508-INTERNAL FOSTER CARERS-CARER FEES,FAMILY & FRIENDS FOSTER CARE PROVISION,Transfer Payments,Revenue
Walsall Council,http://opendatacommunities.org/id/metropolitan-district-council/walsall,WC105-588,30/06/2019,Childrens,REDACTED,01/06/2019,540.00,74501-MAINTENANCE ALLOWANCE-FOSTER CARERS,FAMILY & FRIENDS FOSTER CARE PROVISION,Transfer Payments,Revenue
Walsall Council,http://opendatacommunities.org/id/metropolitan-district-council/walsall,WC105-589,30/06/2019,Childrens,BARNARDOS SERVICES LTD,14/06/2019,"-17,251.50",74037-INDEPENDENT FOSTER CARE-OTH AGENCY PROVISION,EXTERNAL FOSTER CARE PROVISION,Third Party Payments,Revenue
Walsall Council,http://opendatacommunities.org/id/metropolitan-district-council/walsall,WC105-590,30/06/2019,Childrens,BARNARDOS SERVICES LTD,21/06/2019,"1,139.25",63000-PROFESSIONAL FEES AND SERVICES,DIRECTLY COMMISSIONED NURSING SERVICES,Supplies & Services,Revenue
Walsall Council,http://opendatacommunities.org/id/metropolitan-district-council/walsall,WC105-591,30/06/2019,Childrens,BARNARDOS SERVICES LTD,14/06/2019,"23,484.30",74037-INDEPENDENT FOSTER CARE-OTH AGENCY PROVISION,EXTERNAL FOSTER CARE PROVISION,Third Party Payments,Revenue
Walsall Council,http://opendatacommunities.org/id/metropolitan-district-council/walsall,WC105-592,30/06/2019,Adult Social Care,BARTHOLAMEW LODGE CARE HOME,24/06/2019,"2,937.88",73503-NURSING EMI,PHYSICAL SUPPORT,Third Party Payments,Revenue
Walsall Council,http://opendatacommunities.org/id/metropolitan-district-council/walsall,WC105-593,30/06/2019,Economy & Environment,BATLEYS,04/06/2019,343.52,61009-BEVERAGES-PROVISIONS,WALSALL ARENA AND ARTS CENTRE,Supplies & Services,Revenue
Walsall Council,http://opendatacommunities.org/id/metropolitan-district-council/walsall,WC105-594,30/06/2019,Economy & Environment,BATLEYS,17/06/2019,656.67,61009-BEVERAGES-PROVISIONS,WALSALL ARENA AND ARTS CENTRE,Supplies & Services,Revenue
Walsall Council,http://opendatacommunities.org/id/metropolitan-district-council/walsall,WC105-595,30/06/2019,Economy & Environment,BEADEN POWERLEC LIMITED,21/06/2019,"1,870.00",60008-REPAIR & MAINTENANCE OF FURNITURE & EQUIPMENT,BLOXWICH LEISURE CENTRE,Supplies & Services,Revenue
Walsall Council,http://opendatacommunities.org/id/metropolitan-district-council/walsall,WC105-596,30/06/2019,Childrens,BECKYS CHILDMINDING SERVICE,03/06/2019,766.35,66505-OTHER-GRANTS TO OTHER ORGS,EARLY YEARS - 2 YR OLDS,Third Party Payments,Revenue
Walsall Council,http://opendatacommunities.org/id/metropolitan-district-council/walsall,WC105-597,30/06/2019,Childrens,BECKYS CHILDMINDING SERVICE,01/06/2019,"1,060.31",66505-OTHER-GRANTS TO OTHER ORGS,EARLY YEARS - 3 YR OLDS,Third Party Payments,Revenue
Walsall Council,http://opendatacommunities.org/id/metropolitan-district-council/walsall,WC105-598,30/06/2019,Childrens,BEECH TREE MANAGEMENT,14/06/2019,350.00,40000-OPERATIONAL MAINTENANCE,TRANSITION AND LEAVING CARE SUPPORT,Premises,Revenue
Walsall Council,http://opendatacommunities.org/id/metropolitan-district-council/walsall,WC105-599,30/06/2019,Adult Social Care,BELVIDERE COURT,24/06/2019,"2,104.04",73502-NURSING,MENTAL HEALTH SUPPORT,Third Party Payments,Revenue
Walsall Council,http://opendatacommunities.org/id/metropolitan-district-council/walsall,WC105-600,30/06/2019,Adult Social Care,BELVIDERE COURT,24/06/2019,"2,143.72",73502-NURSING,MENTAL HEALTH SUPPORT,Third Party Payments,Revenue
Walsall Council,http://opendatacommunities.org/id/metropolitan-district-council/walsall,WC105-601,30/06/2019,Adult Social Care,BELVIDERE COURT,24/06/2019,"2,314.44",73503-NURSING EMI,PHYSICAL SUPPORT,Third Party Payments,Revenue
Walsall Council,http://opendatacommunities.org/id/metropolitan-district-council/walsall,WC105-602,30/06/2019,Adult Social Care,BELVIDERE COURT,24/06/2019,"2,314.44",73503-NURSING EMI,PHYSICAL SUPPORT,Third Party Payments,Revenue
Walsall Council,http://opendatacommunities.org/id/metropolitan-district-council/walsall,WC105-603,30/06/2019,Adult Social Care,REDACTED,11/06/2019,"3,212.05",73506-DIRECT PAYMENT,LEARNING DISABILITY SUPPORT,Third Party Payments,Revenue
Walsall Council,http://opendatacommunities.org/id/metropolitan-district-council/walsall,WC105-604,30/06/2019,Adult Social Care,BENTLEY COURT PRIORY,24/06/2019,"2,143.72",73502-NURSING,PHYSICAL SUPPORT,Third Party Payments,Revenue
Walsall Council,http://opendatacommunities.org/id/metropolitan-district-council/walsall,WC105-605,30/06/2019,Adult Social Care,BENTLEY COURT PRIORY,19/06/2019,"2,157.21",73025-PROFESSIONAL SERVICES-PRIV CONTRACTOR & OTHER AGENCIES,TRANSITIONAL CARE SUPPORT TEAM,Third Party Payments,Revenue
Walsall Council,http://opendatacommunities.org/id/metropolitan-district-council/walsall,WC105-606,30/06/2019,Adult Social Care,BENTLEY COURT PRIORY,24/06/2019,"2,358.08",73503-NURSING EMI,PHYSICAL SUPPORT,Third Party Payments,Revenue
Walsall Council,http://opendatacommunities.org/id/metropolitan-district-council/walsall,WC105-607,30/06/2019,Adult Social Care,BENTLEY COURT PRIORY,24/06/2019,"2,358.08",73503-NURSING EMI,SUPPORT WITH MEMORY & COGNITION,Third Party Payments,Revenue
Walsall Council,http://opendatacommunities.org/id/metropolitan-district-council/walsall,WC105-608,30/06/2019,Adult Social Care,BENTLEY COURT PRIORY,24/06/2019,"2,358.08",73503-NURSING EMI,PHYSICAL SUPPORT,Third Party Payments,Revenue
Walsall Council,http://opendatacommunities.org/id/metropolitan-district-council/walsall,WC105-609,30/06/2019,Adult Social Care,BENTLEY COURT PRIORY,24/06/2019,"2,358.08",73503-NURSING EMI,PHYSICAL SUPPORT,Third Party Payments,Revenue
Walsall Council,http://opendatacommunities.org/id/metropolitan-district-council/walsall,WC105-610,30/06/2019,Adult Social Care,BENTLEY COURT PRIORY,24/06/2019,"2,358.08",73503-NURSING EMI,PHYSICAL SUPPORT,Third Party Payments,Revenue
Walsall Council,http://opendatacommunities.org/id/metropolitan-district-council/walsall,WC105-611,30/06/2019,Adult Social Care,BENTLEY COURT PRIORY,24/06/2019,"2,358.08",73503-NURSING EMI,PHYSICAL SUPPORT,Third Party Payments,Revenue
Walsall Council,http://opendatacommunities.org/id/metropolitan-district-council/walsall,WC105-612,30/06/2019,Adult Social Care,BENTLEY COURT PRIORY,24/06/2019,"2,358.08",73503-NURSING EMI,SOCIAL SUPPORT,Third Party Payments,Revenue
Walsall Council,http://opendatacommunities.org/id/metropolitan-district-council/walsall,WC105-613,30/06/2019,Adult Social Care,BENTLEY COURT PRIORY,24/06/2019,"2,358.08",73503-NURSING EMI,SOCIAL SUPPORT,Third Party Payments,Revenue
Walsall Council,http://opendatacommunities.org/id/metropolitan-district-council/walsall,WC105-614,30/06/2019,Adult Social Care,BENTLEY COURT PRIORY,24/06/2019,"2,358.08",73503-NURSING EMI,SUPPORT WITH MEMORY & COGNITION,Third Party Payments,Revenue
Walsall Council,http://opendatacommunities.org/id/metropolitan-district-council/walsall,WC105-615,30/06/2019,Adult Social Care,BENTLEY COURT PRIORY,24/06/2019,"2,358.08",73503-NURSING EMI,MENTAL HEALTH SUPPORT,Third Party Payments,Revenue
Walsall Council,http://opendatacommunities.org/id/metropolitan-district-council/walsall,WC105-616,30/06/2019,Adult Social Care,BENTLEY COURT PRIORY,19/06/2019,"9,576.00",73025-PROFESSIONAL SERVICES-PRIV CONTRACTOR & OTHER AGENCIES,TRANSITIONAL CARE SUPPORT TEAM,Third Party Payments,Revenue
Walsall Council,http://opendatacommunities.org/id/metropolitan-district-council/walsall,WC105-617,30/06/2019,Childrens,REDACTED,03/06/2019,255.45,66505-OTHER-GRANTS TO OTHER ORGS,EARLY YEARS - 2 YR OLDS,Third Party Payments,Revenue
Walsall Council,http://opendatacommunities.org/id/metropolitan-district-council/walsall,WC105-618,30/06/2019,Holding Accounts,BERRYMANS LACE MAWER LLP,19/06/2019,"1,000.50",67001-MISC INSURANCES - PAYMENT OF CLAIMS,PUBLIC LIABILITY,Supplies & Services,Revenue
Walsall Council,http://opendatacommunities.org/id/metropolitan-district-council/walsall,WC105-619,30/06/2019,Adult Social Care,REDACTED,11/06/2019,"1,369.90",73506-DIRECT PAYMENT,PHYSICAL SUPPORT,Third Party Payments,Revenue
Walsall Council,http://opendatacommunities.org/id/metropolitan-district-council/walsall,WC105-620,30/06/2019,Adult Social Care,REDACTED,11/06/2019,"2,222.40",73506-DIRECT PAYMENT,PHYSICAL SUPPORT,Third Party Payments,Revenue
Walsall Council,http://opendatacommunities.org/id/metropolitan-district-council/walsall,WC105-621,30/06/2019,Childrens,REDACTED,14/06/2019,720.00,74501-MAINTENANCE ALLOWANCE-FOSTER CARERS,INTERNAL FOSTER CARE PROVISION,Transfer Payments,Revenue
Walsall Council,http://opendatacommunities.org/id/metropolitan-district-council/walsall,WC105-622,30/06/2019,Childrens,REDACTED,14/06/2019,"1,021.43",74508-INTERNAL FOSTER CARERS-CARER FEES,INTERNAL FOSTER CARE PROVISION,Transfer Payments,Revenue
Walsall Council,http://opendatacommunities.org/id/metropolitan-district-council/walsall,WC105-623,30/06/2019,Adult Social Care,REDACTED,11/06/2019,"2,467.50",73506-DIRECT PAYMENT,PHYSICAL SUPPORT,Third Party Payments,Revenue
Walsall Council,http://opendatacommunities.org/id/metropolitan-district-council/walsall,WC105-624,30/06/2019,Economy & Environment,BESCOT STADIUM SUNDAY MARKET LTD,17/06/2019,"3,250.00",73025-PROFESSIONAL SERVICES-PRIV CONTRACTOR & OTHER AGENCIES,WILLENHALL MARKET,Third Party Payments,Revenue
Walsall Council,http://opendatacommunities.org/id/metropolitan-district-council/walsall,WC105-625,30/06/2019,Adult Social Care,BETHPHAGE.,24/06/2019,740.28,73507-DOMICILIARY CARE,LEARNING DISABILITY SUPPORT,Third Party Payments,Revenue
Walsall Council,http://opendatacommunities.org/id/metropolitan-district-council/walsall,WC105-626,30/06/2019,Adult Social Care,BETHPHAGE.,24/06/2019,889.08,73508-COMMUNITY SUPPORTED LIVING/SUPPORTED ACCOMMODATION,LEARNING DISABILITY SUPPORT,Third Party Payments,Revenue
Walsall Council,http://opendatacommunities.org/id/metropolitan-district-council/walsall,WC105-627,30/06/2019,Adult Social Care,BETHPHAGE.,24/06/2019,"1,304.96",73507-DOMICILIARY CARE,LEARNING DISABILITY SUPPORT,Third Party Payments,Revenue
Walsall Council,http://opendatacommunities.org/id/metropolitan-district-council/walsall,WC105-628,30/06/2019,Adult Social Care,BETHPHAGE.,24/06/2019,"1,319.28",73507-DOMICILIARY CARE,LEARNING DISABILITY SUPPORT,Third Party Payments,Revenue
Walsall Council,http://opendatacommunities.org/id/metropolitan-district-council/walsall,WC105-629,30/06/2019,Adult Social Care,BETHPHAGE.,24/06/2019,"2,059.62",73508-COMMUNITY SUPPORTED LIVING/SUPPORTED ACCOMMODATION,LEARNING DISABILITY SUPPORT,Third Party Payments,Revenue
Walsall Council,http://opendatacommunities.org/id/metropolitan-district-council/walsall,WC105-630,30/06/2019,Adult Social Care,REDACTED,11/06/2019,"1,186.90",73506-DIRECT PAYMENT,PHYSICAL SUPPORT,Third Party Payments,Revenue
Walsall Council,http://opendatacommunities.org/id/metropolitan-district-council/walsall,WC105-631,30/06/2019,Resources and Transformation,BIBBIDI BOBBIDI BOO CHILDRENS ENTERTAINMENT,06/06/2019,"1,200.00",62515-MISCELLANEOUS SUPPLIES,WALSALL TOWN HALL,Supplies & Services,Revenue
Walsall Council,http://opendatacommunities.org/id/metropolitan-district-council/walsall,WC105-632,30/06/2019,Childrens,BIG YELLOW SELF STORAGE COMPANY LTD,26/06/2019,230.00,63000-PROFESSIONAL FEES AND SERVICES,SAFEGUARDING & FAMILY SUPPORT,Supplies & Services,Revenue
Walsall Council,http://opendatacommunities.org/id/metropolitan-district-council/walsall,WC105-633,30/06/2019,Childrens,BIG YELLOW SELF STORAGE COMPANY LTD,26/06/2019,230.00,63000-PROFESSIONAL FEES AND SERVICES,SAFEGUARDING & FAMILY SUPPORT,Supplies & Services,Revenue
Walsall Council,http://opendatacommunities.org/id/metropolitan-district-council/walsall,WC105-634,30/06/2019,Childrens,REDACTED,11/06/2019,792.30,73506-DIRECT PAYMENT,FAMILY SUPPORT - DIRECT PAYMENTS,Third Party Payments,Revenue
Walsall Council,http://opendatacommunities.org/id/metropolitan-district-council/walsall,WC105-635,30/06/2019,Childrens,REDACTED,28/06/2019,944.23,73506-DIRECT PAYMENT,FAMILY SUPPORT - DIRECT PAYMENTS,Third Party Payments,Revenue
Walsall Council,http://opendatacommunities.org/id/metropolitan-district-council/walsall,WC105-636,30/06/2019,Childrens,BIRMINGHAM CITY COUNCIL,07/06/2019,839.97,52000-WITH DRIVER-HIRE OF VEHICLES,HOME TO SCHOOL TRANSPORT,Transport,Revenue
Walsall Council,http://opendatacommunities.org/id/metropolitan-district-council/walsall,WC105-637,30/06/2019,Childrens,BIRMINGHAM CITY COUNCIL,07/06/2019,"1,045.50",52000-WITH DRIVER-HIRE OF VEHICLES,HOME TO SCHOOL TRANSPORT,Transport,Revenue
Walsall Council,http://opendatacommunities.org/id/metropolitan-district-council/walsall,WC105-638,30/06/2019,Childrens,BIRMINGHAM CITY COUNCIL,21/06/2019,"1,086.09",52000-WITH DRIVER-HIRE OF VEHICLES,HOME TO SCHOOL TRANSPORT,Transport,Revenue
Walsall Council,http://opendatacommunities.org/id/metropolitan-district-council/walsall,WC105-639,30/06/2019,Childrens,BIRMINGHAM CITY COUNCIL,07/06/2019,"1,200.88",52000-WITH DRIVER-HIRE OF VEHICLES,HOME TO SCHOOL TRANSPORT,Transport,Revenue
Walsall Council,http://opendatacommunities.org/id/metropolitan-district-council/walsall,WC105-640,30/06/2019,Childrens,BIRMINGHAM CITY COUNCIL,14/06/2019,"1,956.16",74037-INDEPENDENT FOSTER CARE-OTH AGENCY PROVISION,EXTERNAL FOSTER CARE PROVISION,Third Party Payments,Revenue
Walsall Council,http://opendatacommunities.org/id/metropolitan-district-council/walsall,WC105-641,30/06/2019,Childrens,BIRMINGHAM CITY COUNCIL,07/06/2019,"1,962.98",52000-WITH DRIVER-HIRE OF VEHICLES,HOME TO SCHOOL TRANSPORT,Transport,Revenue
Walsall Council,http://opendatacommunities.org/id/metropolitan-district-council/walsall,WC105-642,30/06/2019,Resources and Transformation,BIRMINGHAM CITY UNIVERSITY,03/06/2019,580.00,30030-EXTERNAL TRAINING,FINANCE,Employees,Revenue
Walsall Council,http://opendatacommunities.org/id/metropolitan-district-council/walsall,WC105-643,30/06/2019,Economy & Environment,BLACK COUNTRY DANCE HUB,14/06/2019,"1,974.00",63000-PROFESSIONAL FEES AND SERVICES,WALSALL ARENA AND ARTS CENTRE,Supplies & Services,Revenue
Walsall Council,http://opendatacommunities.org/id/metropolitan-district-council/walsall,WC105-644,30/06/2019,Economy & Environment,BLACK COUNTRY TRAINING LTD T/A BRITISH HGV TRAINING GROUP,05/06/2019,239.00,30030-EXTERNAL TRAINING,FLEET,Employees,Revenue
Walsall Council,http://opendatacommunities.org/id/metropolitan-district-council/walsall,WC105-645,30/06/2019,Economy & Environment,BLACK COUNTRY TRAINING LTD T/A BRITISH HGV TRAINING GROUP,05/06/2019,"1,140.00",30030-EXTERNAL TRAINING,FLEET,Employees,Revenue
Walsall Council,http://opendatacommunities.org/id/metropolitan-district-council/walsall,WC105-646,30/06/2019,Childrens,BLAKENALL HEATH JMI SCHOOL,13/06/2019,"2,959.00",77200-TRANSFER PAYMENTS-OTHER SCHOOLCHILDREN/STUDENT RELATED ITEMS,BLAKENALL HEATH JUNIOR SCHOOL,Transfer Payments,Revenue
Walsall Council,http://opendatacommunities.org/id/metropolitan-district-council/walsall,WC105-647,30/06/2019,Childrens,BLAKENALL HEATH JMI SCHOOL,01/06/2019,"7,642.00",77200-TRANSFER PAYMENTS-OTHER SCHOOLCHILDREN/STUDENT RELATED ITEMS,BLAKENALL HEATH JUNIOR SCHOOL,Transfer Payments,Revenue
Walsall Council,http://opendatacommunities.org/id/metropolitan-district-council/walsall,WC105-648,30/06/2019,Childrens,BLOSSOMS ON THE COMMON DAY NURSERY LTD,24/06/2019,640.00,77200-TRANSFER PAYMENTS-OTHER SCHOOLCHILDREN/STUDENT RELATED ITEMS,EARLY YEARS - SOCIAL INCLUSION FUND - 2 YR OLDS,Transfer Payments,Revenue
Walsall Council,http://opendatacommunities.org/id/metropolitan-district-council/walsall,WC105-649,30/06/2019,Childrens,BLOSSOMS ON THE COMMON DAY NURSERY LTD,01/06/2019,"20,216.63",66505-OTHER-GRANTS TO OTHER ORGS,EARLY YEARS - 3 YR OLDS,Third Party Payments,Revenue
Walsall Council,http://opendatacommunities.org/id/metropolitan-district-council/walsall,WC105-650,30/06/2019,Resources and Transformation,BLOXWICH CONSTRUCTION LTD,11/06/2019,"18,463.40",01045-PRIVATE GRANTS,CFR 1359 DISABLED FACILITIES GRANT,Capital,Capital
Walsall Council,http://opendatacommunities.org/id/metropolitan-district-council/walsall,WC105-651,30/06/2019,Childrens,BLUE GIRAFFE CHILDCARE,01/06/2019,"18,237.38",66505-OTHER-GRANTS TO OTHER ORGS,EARLY YEARS - 3 YR OLDS,Third Party Payments,Revenue
Walsall Council,http://opendatacommunities.org/id/metropolitan-district-council/walsall,WC105-652,30/06/2019,Resources and Transformation,BLUETOWNONLINE LTD,10/06/2019,"2,990.00",34000-RECRUITMENT EXPENSES (ALL TYPES INCL RELOCATION),SCHOOLS HR TRANSACTIONAL TEAM,Employees,Revenue
Walsall Council,http://opendatacommunities.org/id/metropolitan-district-council/walsall,WC105-653,30/06/2019,Resources and Transformation,BLUETOWNONLINE LTD,20/06/2019,"2,990.00",34000-RECRUITMENT EXPENSES (ALL TYPES INCL RELOCATION),SCHOOLS HR TRANSACTIONAL TEAM,Employees,Revenue
Walsall Council,http://opendatacommunities.org/id/metropolitan-district-council/walsall,WC105-654,30/06/2019,Childrens,REDACTED,11/06/2019,"1,836.00",73506-DIRECT PAYMENT,FAMILY SUPPORT - DIRECT PAYMENTS,Third Party Payments,Revenue
Walsall Council,http://opendatacommunities.org/id/metropolitan-district-council/walsall,WC105-655,30/06/2019,Childrens,BOOKTRUST,21/06/2019,"1,550.16",63000-PROFESSIONAL FEES AND SERVICES,VIRTUAL SCHOOL CENTRAL PUPIL PREMIUM,Supplies & Services,Revenue
Walsall Council,http://opendatacommunities.org/id/metropolitan-district-council/walsall,WC105-656,30/06/2019,Resources and Transformation,BORSHCH LTD,05/06/2019,225.00,60000-FURNITURE & EQUIPMENT,WALSALL CRISIS SUPPORT SCHEME,Supplies & Services,Revenue
Walsall Council,http://opendatacommunities.org/id/metropolitan-district-council/walsall,WC105-657,30/06/2019,Resources and Transformation,BORSHCH LTD,11/06/2019,245.82,60000-FURNITURE & EQUIPMENT,WALSALL CRISIS SUPPORT SCHEME,Supplies & Services,Revenue
Walsall Council,http://opendatacommunities.org/id/metropolitan-district-council/walsall,WC105-658,30/06/2019,Resources and Transformation,BORSHCH LTD,05/06/2019,279.17,60000-FURNITURE & EQUIPMENT,WALSALL CRISIS SUPPORT SCHEME,Supplies & Services,Revenue
Walsall Council,http://opendatacommunities.org/id/metropolitan-district-council/walsall,WC105-659,30/06/2019,Resources and Transformation,BORSHCH LTD,11/06/2019,287.50,60000-FURNITURE & EQUIPMENT,WALSALL CRISIS SUPPORT SCHEME,Supplies & Services,Revenue
Walsall Council,http://opendatacommunities.org/id/metropolitan-district-council/walsall,WC105-660,30/06/2019,Resources and Transformation,BORSHCH LTD,13/06/2019,287.50,60000-FURNITURE & EQUIPMENT,WALSALL CRISIS SUPPORT SCHEME,Supplies & Services,Revenue
Walsall Council,http://opendatacommunities.org/id/metropolitan-district-council/walsall,WC105-661,30/06/2019,Resources and Transformation,BORSHCH LTD,13/06/2019,291.66,60000-FURNITURE & EQUIPMENT,WALSALL CRISIS SUPPORT SCHEME,Supplies & Services,Revenue
Walsall Council,http://opendatacommunities.org/id/metropolitan-district-council/walsall,WC105-662,30/06/2019,Resources and Transformation,BORSHCH LTD,13/06/2019,291.66,60000-FURNITURE & EQUIPMENT,WALSALL CRISIS SUPPORT SCHEME,Supplies & Services,Revenue
Walsall Council,http://opendatacommunities.org/id/metropolitan-district-council/walsall,WC105-663,30/06/2019,Resources and Transformation,BORSHCH LTD,25/06/2019,291.66,60000-FURNITURE & EQUIPMENT,WALSALL CRISIS SUPPORT SCHEME,Supplies & Services,Revenue
Walsall Council,http://opendatacommunities.org/id/metropolitan-district-council/walsall,WC105-664,30/06/2019,Resources and Transformation,BORSHCH LTD,25/06/2019,291.66,60000-FURNITURE & EQUIPMENT,WALSALL CRISIS SUPPORT SCHEME,Supplies & Services,Revenue
Walsall Council,http://opendatacommunities.org/id/metropolitan-district-council/walsall,WC105-665,30/06/2019,Resources and Transformation,BORSHCH LTD,25/06/2019,291.66,60000-FURNITURE & EQUIPMENT,WALSALL CRISIS SUPPORT SCHEME,Supplies & Services,Revenue
Walsall Council,http://opendatacommunities.org/id/metropolitan-district-council/walsall,WC105-666,30/06/2019,Resources and Transformation,BORSHCH LTD,26/06/2019,295.83,60000-FURNITURE & EQUIPMENT,WALSALL CRISIS SUPPORT SCHEME,Supplies & Services,Revenue
Walsall Council,http://opendatacommunities.org/id/metropolitan-district-council/walsall,WC105-667,30/06/2019,Resources and Transformation,BORSHCH LTD,05/06/2019,337.50,60000-FURNITURE & EQUIPMENT,WALSALL CRISIS SUPPORT SCHEME,Supplies & Services,Revenue
Walsall Council,http://opendatacommunities.org/id/metropolitan-district-council/walsall,WC105-668,30/06/2019,Resources and Transformation,BORSHCH LTD,17/06/2019,354.16,60000-FURNITURE & EQUIPMENT,WALSALL CRISIS SUPPORT SCHEME,Supplies & Services,Revenue
Walsall Council,http://opendatacommunities.org/id/metropolitan-district-council/walsall,WC105-669,30/06/2019,Resources and Transformation,BORSHCH LTD,25/06/2019,425.00,60000-FURNITURE & EQUIPMENT,WALSALL CRISIS SUPPORT SCHEME,Supplies & Services,Revenue
Walsall Council,http://opendatacommunities.org/id/metropolitan-district-council/walsall,WC105-670,30/06/2019,Resources and Transformation,BORSHCH LTD,04/06/2019,433.33,60000-FURNITURE & EQUIPMENT,WALSALL CRISIS SUPPORT SCHEME,Supplies & Services,Revenue
Walsall Council,http://opendatacommunities.org/id/metropolitan-district-council/walsall,WC105-671,30/06/2019,Resources and Transformation,BORSHCH LTD,05/06/2019,433.33,60000-FURNITURE & EQUIPMENT,WALSALL CRISIS SUPPORT SCHEME,Supplies & Services,Revenue
Walsall Council,http://opendatacommunities.org/id/metropolitan-district-council/walsall,WC105-672,30/06/2019,Resources and Transformation,BORSHCH LTD,10/06/2019,433.33,60000-FURNITURE & EQUIPMENT,WALSALL CRISIS SUPPORT SCHEME,Supplies & Services,Revenue
Walsall Council,http://opendatacommunities.org/id/metropolitan-district-council/walsall,WC105-673,30/06/2019,Resources and Transformation,BORSHCH LTD,13/06/2019,433.33,60000-FURNITURE & EQUIPMENT,WALSALL CRISIS SUPPORT SCHEME,Supplies & Services,Revenue
Walsall Council,http://opendatacommunities.org/id/metropolitan-district-council/walsall,WC105-674,30/06/2019,Resources and Transformation,BORSHCH LTD,14/06/2019,433.33,60000-FURNITURE & EQUIPMENT,WALSALL CRISIS SUPPORT SCHEME,Supplies & Services,Revenue
Walsall Council,http://opendatacommunities.org/id/metropolitan-district-council/walsall,WC105-675,30/06/2019,Resources and Transformation,BORSHCH LTD,14/06/2019,433.33,60000-FURNITURE & EQUIPMENT,WALSALL CRISIS SUPPORT SCHEME,Supplies & Services,Revenue
Walsall Council,http://opendatacommunities.org/id/metropolitan-district-council/walsall,WC105-676,30/06/2019,Resources and Transformation,BORSHCH LTD,21/06/2019,433.33,60000-FURNITURE & EQUIPMENT,WALSALL CRISIS SUPPORT SCHEME,Supplies & Services,Revenue
Walsall Council,http://opendatacommunities.org/id/metropolitan-district-council/walsall,WC105-677,30/06/2019,Resources and Transformation,BORSHCH LTD,25/06/2019,433.33,60000-FURNITURE & EQUIPMENT,WALSALL CRISIS SUPPORT SCHEME,Supplies & Services,Revenue
Walsall Council,http://opendatacommunities.org/id/metropolitan-district-council/walsall,WC105-678,30/06/2019,Resources and Transformation,BORSHCH LTD,25/06/2019,433.33,60000-FURNITURE & EQUIPMENT,WALSALL CRISIS SUPPORT SCHEME,Supplies & Services,Revenue
Walsall Council,http://opendatacommunities.org/id/metropolitan-district-council/walsall,WC105-679,30/06/2019,Resources and Transformation,BORSHCH LTD,13/06/2019,491.66,60000-FURNITURE & EQUIPMENT,WALSALL CRISIS SUPPORT SCHEME,Supplies & Services,Revenue
Walsall Council,http://opendatacommunities.org/id/metropolitan-district-council/walsall,WC105-680,30/06/2019,Resources and Transformation,BORSHCH LTD,13/06/2019,499.99,60000-FURNITURE & EQUIPMENT,WALSALL CRISIS SUPPORT SCHEME,Supplies & Services,Revenue
Walsall Council,http://opendatacommunities.org/id/metropolitan-district-council/walsall,WC105-681,30/06/2019,Resources and Transformation,BORSHCH LTD,14/06/2019,499.99,60000-FURNITURE & EQUIPMENT,WALSALL CRISIS SUPPORT SCHEME,Supplies & Services,Revenue
Walsall Council,http://opendatacommunities.org/id/metropolitan-district-council/walsall,WC105-682,30/06/2019,Resources and Transformation,BORSHCH LTD,14/06/2019,499.99,60000-FURNITURE & EQUIPMENT,WALSALL CRISIS SUPPORT SCHEME,Supplies & Services,Revenue
Walsall Council,http://opendatacommunities.org/id/metropolitan-district-council/walsall,WC105-683,30/06/2019,Adult Social Care,BOWDEN DERRA PARK,24/06/2019,"11,151.52",73500-RESIDENTIAL,LEARNING DISABILITY SUPPORT,Third Party Payments,Revenue
Walsall Council,http://opendatacommunities.org/id/metropolitan-district-council/walsall,WC105-684,30/06/2019,Resources and Transformation,BPP PROFESSIONAL EDUCATION,17/06/2019,"1,308.31",30030-EXTERNAL TRAINING,FINANCE,Employees,Revenue
Walsall Council,http://opendatacommunities.org/id/metropolitan-district-council/walsall,WC105-685,30/06/2019,Economy & Environment,BRADVALE LTD T/A INSPIRE HEALTHCARE SERVICES,01/06/2019,336.98,60008-REPAIR & MAINTENANCE OF FURNITURE & EQUIPMENT,DARLASTON LEISURE CENTRE,Supplies & Services,Revenue
Walsall Council,http://opendatacommunities.org/id/metropolitan-district-council/walsall,WC105-686,30/06/2019,Adult Social Care,BRAMBLES RESIDENTIAL CARE HOME,01/06/2019,"1,170.58",73373-RESIDENTIAL & NURSING CARE PLACEMENTS,MENTAL HEALTH PACKAGE/PLACEMENT COSTS,Third Party Payments,Revenue
Walsall Council,http://opendatacommunities.org/id/metropolitan-district-council/walsall,WC105-687,30/06/2019,Resources and Transformation,BRELMAYNE LTD,12/06/2019,225.00,60008-REPAIR & MAINTENANCE OF FURNITURE & EQUIPMENT,CA CATERING PRIMARY SCHOOLS,Supplies & Services,Revenue
Walsall Council,http://opendatacommunities.org/id/metropolitan-district-council/walsall,WC105-688,30/06/2019,Resources and Transformation,BRELMAYNE LTD,12/06/2019,236.93,60007-REPAIR OF EQUIPMENT-EQUIPMENT,CA CATERING PRIMARY SCHOOLS,Supplies & Services,Revenue
Walsall Council,http://opendatacommunities.org/id/metropolitan-district-council/walsall,WC105-689,30/06/2019,Adult Social Care,BRELMAYNE LTD,17/06/2019,240.78,60008-REPAIR & MAINTENANCE OF FURNITURE & EQUIPMENT,GOSCOTE,Supplies & Services,Revenue
Walsall Council,http://opendatacommunities.org/id/metropolitan-district-council/walsall,WC105-690,30/06/2019,Resources and Transformation,BRELMAYNE LTD,19/06/2019,270.00,60008-REPAIR & MAINTENANCE OF FURNITURE & EQUIPMENT,CA CATERING PRIMARY SCHOOLS,Supplies & Services,Revenue
Walsall Council,http://opendatacommunities.org/id/metropolitan-district-council/walsall,WC105-691,30/06/2019,Resources and Transformation,BRELMAYNE LTD,19/06/2019,270.00,60008-REPAIR & MAINTENANCE OF FURNITURE & EQUIPMENT,CA CATERING PRIMARY SCHOOLS,Supplies & Services,Revenue
Walsall Council,http://opendatacommunities.org/id/metropolitan-district-council/walsall,WC105-692,30/06/2019,Resources and Transformation,BRELMAYNE LTD,12/06/2019,290.58,60007-REPAIR OF EQUIPMENT-EQUIPMENT,CA CATERING PRIMARY SCHOOLS,Supplies & Services,Revenue
Walsall Council,http://opendatacommunities.org/id/metropolitan-district-council/walsall,WC105-693,30/06/2019,Resources and Transformation,BRELMAYNE LTD,12/06/2019,356.28,60007-REPAIR OF EQUIPMENT-EQUIPMENT,CA CATERING PRIMARY SCHOOLS,Supplies & Services,Revenue
Walsall Council,http://opendatacommunities.org/id/metropolitan-district-council/walsall,WC105-694,30/06/2019,Adult Social Care,BRELMAYNE LTD,17/06/2019,412.65,60008-REPAIR & MAINTENANCE OF FURNITURE & EQUIPMENT,GOSCOTE,Supplies & Services,Revenue
Walsall Council,http://opendatacommunities.org/id/metropolitan-district-council/walsall,WC105-695,30/06/2019,Resources and Transformation,BRELMAYNE LTD,12/06/2019,450.00,60008-REPAIR & MAINTENANCE OF FURNITURE & EQUIPMENT,CA CATERING PRIMARY SCHOOLS,Supplies & Services,Revenue
Walsall Council,http://opendatacommunities.org/id/metropolitan-district-council/walsall,WC105-696,30/06/2019,Resources and Transformation,BRELMAYNE LTD,04/06/2019,700.00,01044-PURCHASE OF FURNITURE & EQUIPMENT,CFR 1190 SCHOOLS PROJECT,Capital,Capital
Walsall Council,http://opendatacommunities.org/id/metropolitan-district-council/walsall,WC105-697,30/06/2019,Resources and Transformation,BRELMAYNE LTD,04/06/2019,700.00,01044-PURCHASE OF FURNITURE & EQUIPMENT,CFR 1190 SCHOOLS PROJECT,Capital,Capital
Walsall Council,http://opendatacommunities.org/id/metropolitan-district-council/walsall,WC105-698,30/06/2019,Adult Social Care,REDACTED,11/06/2019,550.00,73506-DIRECT PAYMENT,LEARNING DISABILITY SUPPORT,Third Party Payments,Revenue
Walsall Council,http://opendatacommunities.org/id/metropolitan-district-council/walsall,WC105-699,30/06/2019,Adult Social Care,REDACTED,11/06/2019,304.60,73506-DIRECT PAYMENT,PHYSICAL SUPPORT,Third Party Payments,Revenue
Walsall Council,http://opendatacommunities.org/id/metropolitan-district-council/walsall,WC105-700,30/06/2019,Childrens,REDACTED,14/06/2019,150.00,74503-BIRTHDAY ALLOWANCE-FOSTER CARERS,INTERNAL FOSTER CARE PROVISION,Transfer Payments,Revenue
Walsall Council,http://opendatacommunities.org/id/metropolitan-district-council/walsall,WC105-701,30/06/2019,Childrens,REDACTED,14/06/2019,150.00,74503-BIRTHDAY ALLOWANCE-FOSTER CARERS,INTERNAL FOSTER CARE PROVISION,Transfer Payments,Revenue
Walsall Council,http://opendatacommunities.org/id/metropolitan-district-council/walsall,WC105-702,30/06/2019,Childrens,REDACTED,14/06/2019,720.00,74501-MAINTENANCE ALLOWANCE-FOSTER CARERS,INTERNAL FOSTER CARE PROVISION,Transfer Payments,Revenue
Walsall Council,http://opendatacommunities.org/id/metropolitan-district-council/walsall,WC105-703,30/06/2019,Childrens,REDACTED,14/06/2019,720.00,74501-MAINTENANCE ALLOWANCE-FOSTER CARERS,INTERNAL FOSTER CARE PROVISION,Transfer Payments,Revenue
Walsall Council,http://opendatacommunities.org/id/metropolitan-district-council/walsall,WC105-704,30/06/2019,Childrens,REDACTED,14/06/2019,"1,600.00",74508-INTERNAL FOSTER CARERS-CARER FEES,INTERNAL FOSTER CARE PROVISION,Transfer Payments,Revenue
Walsall Council,http://opendatacommunities.org/id/metropolitan-district-council/walsall,WC105-705,30/06/2019,Economy & Environment,BRENNTAG UK LIMITED,11/06/2019,413.89,60503-CHEMICALS & SCIENTIFIC MATS-MATERIALS,OAK PARK,Supplies & Services,Revenue
Walsall Council,http://opendatacommunities.org/id/metropolitan-district-council/walsall,WC105-706,30/06/2019,Economy & Environment,BRENNTAG UK LIMITED,10/06/2019,560.57,60503-CHEMICALS & SCIENTIFIC MATS-MATERIALS,OAK PARK,Supplies & Services,Revenue
Walsall Council,http://opendatacommunities.org/id/metropolitan-district-council/walsall,WC105-707,30/06/2019,Economy & Environment,BRENNTAG UK LIMITED,10/06/2019,710.00,50301-FUEL FOR VEHICLES,FUEL STOCK ACCOUNT,Transport,Revenue
Walsall Council,http://opendatacommunities.org/id/metropolitan-district-council/walsall,WC105-708,30/06/2019,Adult Social Care,REDACTED,06/06/2019,"1,224.97",73510-SHARED LIVES,LEARNING DISABILITY SUPPORT,Third Party Payments,Revenue
Walsall Council,http://opendatacommunities.org/id/metropolitan-district-council/walsall,WC105-709,30/06/2019,Adult Social Care,REDACTED,06/06/2019,"1,952.49",73510-SHARED LIVES,LEARNING DISABILITY SUPPORT,Third Party Payments,Revenue
Walsall Council,http://opendatacommunities.org/id/metropolitan-district-council/walsall,WC105-710,30/06/2019,Adult Social Care,REDACTED,11/06/2019,"2,258.20",73506-DIRECT PAYMENT,PHYSICAL SUPPORT,Third Party Payments,Revenue
Walsall Council,http://opendatacommunities.org/id/metropolitan-district-council/walsall,WC105-711,30/06/2019,Adult Social Care,REDACTED,11/06/2019,"1,045.50",73506-DIRECT PAYMENT,PHYSICAL SUPPORT,Third Party Payments,Revenue
Walsall Council,http://opendatacommunities.org/id/metropolitan-district-council/walsall,WC105-712,30/06/2019,Economy & Environment,BRIAN SHAW CONCERTS LTD,21/06/2019,"3,041.43",63000-PROFESSIONAL FEES AND SERVICES,WALSALL ARENA AND ARTS CENTRE,Supplies & Services,Revenue
Walsall Council,http://opendatacommunities.org/id/metropolitan-district-council/walsall,WC105-713,30/06/2019,Adult Social Care,BRIDGEWOOD HEALTH CARE LTD,24/06/2019,"5,854.28",73500-RESIDENTIAL,SENSORY SUPPORT,Third Party Payments,Revenue
Walsall Council,http://opendatacommunities.org/id/metropolitan-district-council/walsall,WC105-714,30/06/2019,Resources and Transformation,BRISTOW & SUTOR,05/06/2019,249.63,73014-LEGAL FEES-PRIV CONTRACTOR FEES,REVENUES,Third Party Payments,Revenue
Walsall Council,http://opendatacommunities.org/id/metropolitan-district-council/walsall,WC105-715,30/06/2019,Resources and Transformation,BRISTOW & SUTOR,05/06/2019,671.96,73014-LEGAL FEES-PRIV CONTRACTOR FEES,REVENUES,Third Party Payments,Revenue
Walsall Council,http://opendatacommunities.org/id/metropolitan-district-council/walsall,WC105-716,30/06/2019,Resources and Transformation,BRITANNIA HOTELS LTD T/A BRITANNIA HOTEL WOLVERHAMPTON,17/06/2019,254.00,75501-BED & BREAKFAST PAYMENTS,BED & BREAKFAST PAYMENTS,Third Party Payments,Revenue
Walsall Council,http://opendatacommunities.org/id/metropolitan-district-council/walsall,WC105-717,30/06/2019,Resources and Transformation,BRITANNIA HOTELS LTD T/A BRITANNIA HOTEL WOLVERHAMPTON,06/06/2019,272.00,75501-BED & BREAKFAST PAYMENTS,BED & BREAKFAST PAYMENTS,Third Party Payments,Revenue
Walsall Council,http://opendatacommunities.org/id/metropolitan-district-council/walsall,WC105-718,30/06/2019,Resources and Transformation,BRITANNIA HOTELS LTD T/A BRITANNIA HOTEL WOLVERHAMPTON,10/06/2019,325.84,75501-BED & BREAKFAST PAYMENTS,BED & BREAKFAST PAYMENTS,Third Party Payments,Revenue
Walsall Council,http://opendatacommunities.org/id/metropolitan-district-council/walsall,WC105-719,30/06/2019,Resources and Transformation,BRITANNIA HOTELS LTD T/A BRITANNIA HOTEL WOLVERHAMPTON,11/06/2019,328.85,75501-BED & BREAKFAST PAYMENTS,BED & BREAKFAST PAYMENTS,Third Party Payments,Revenue
Walsall Council,http://opendatacommunities.org/id/metropolitan-district-council/walsall,WC105-720,30/06/2019,Resources and Transformation,BRITANNIA HOTELS LTD T/A BRITANNIA HOTEL WOLVERHAMPTON,11/06/2019,331.84,75501-BED & BREAKFAST PAYMENTS,BED & BREAKFAST PAYMENTS,Third Party Payments,Revenue
Walsall Council,http://opendatacommunities.org/id/metropolitan-district-council/walsall,WC105-721,30/06/2019,Resources and Transformation,BRITANNIA HOTELS LTD T/A BRITANNIA HOTEL WOLVERHAMPTON,06/06/2019,337.84,75501-BED & BREAKFAST PAYMENTS,BED & BREAKFAST PAYMENTS,Third Party Payments,Revenue
Walsall Council,http://opendatacommunities.org/id/metropolitan-district-council/walsall,WC105-722,30/06/2019,Resources and Transformation,BRITANNIA HOTELS LTD T/A BRITANNIA HOTEL WOLVERHAMPTON,01/06/2019,339.75,75501-BED & BREAKFAST PAYMENTS,BED & BREAKFAST PAYMENTS,Third Party Payments,Revenue
Walsall Council,http://opendatacommunities.org/id/metropolitan-district-council/walsall,WC105-723,30/06/2019,Resources and Transformation,BRITANNIA HOTELS LTD T/A BRITANNIA HOTEL WOLVERHAMPTON,10/06/2019,346.09,75501-BED & BREAKFAST PAYMENTS,BED & BREAKFAST PAYMENTS,Third Party Payments,Revenue
Walsall Council,http://opendatacommunities.org/id/metropolitan-district-council/walsall,WC105-724,30/06/2019,Resources and Transformation,BRITANNIA HOTELS LTD T/A BRITANNIA HOTEL WOLVERHAMPTON,01/06/2019,354.34,75501-BED & BREAKFAST PAYMENTS,BED & BREAKFAST PAYMENTS,Third Party Payments,Revenue
Walsall Council,http://opendatacommunities.org/id/metropolitan-district-council/walsall,WC105-725,30/06/2019,Resources and Transformation,BRITANNIA HOTELS LTD T/A BRITANNIA HOTEL WOLVERHAMPTON,26/06/2019,434.75,75501-BED & BREAKFAST PAYMENTS,BED & BREAKFAST PAYMENTS,Third Party Payments,Revenue
Walsall Council,http://opendatacommunities.org/id/metropolitan-district-council/walsall,WC105-726,30/06/2019,Resources and Transformation,BRITANNIA HOTELS LTD T/A BRITANNIA HOTEL WOLVERHAMPTON,10/06/2019,446.75,75501-BED & BREAKFAST PAYMENTS,BED & BREAKFAST PAYMENTS,Third Party Payments,Revenue
Walsall Council,http://opendatacommunities.org/id/metropolitan-district-council/walsall,WC105-727,30/06/2019,Resources and Transformation,BRITANNIA HOTELS LTD T/A BRITANNIA HOTEL WOLVERHAMPTON,10/06/2019,449.75,75501-BED & BREAKFAST PAYMENTS,BED & BREAKFAST PAYMENTS,Third Party Payments,Revenue
Walsall Council,http://opendatacommunities.org/id/metropolitan-district-council/walsall,WC105-728,30/06/2019,Resources and Transformation,BRITANNIA HOTELS LTD T/A BRITANNIA HOTEL WOLVERHAMPTON,06/06/2019,614.19,75501-BED & BREAKFAST PAYMENTS,BED & BREAKFAST PAYMENTS,Third Party Payments,Revenue
Walsall Council,http://opendatacommunities.org/id/metropolitan-district-council/walsall,WC105-729,30/06/2019,Resources and Transformation,BRITANNIA HOTELS LTD T/A BRITANNIA HOTEL WOLVERHAMPTON,06/06/2019,630.82,75501-BED & BREAKFAST PAYMENTS,BED & BREAKFAST PAYMENTS,Third Party Payments,Revenue
Walsall Council,http://opendatacommunities.org/id/metropolitan-district-council/walsall,WC105-730,30/06/2019,Resources and Transformation,BRITANNIA HOTELS LTD T/A BRITANNIA HOTEL WOLVERHAMPTON,06/06/2019,786.75,75501-BED & BREAKFAST PAYMENTS,BED & BREAKFAST PAYMENTS,Third Party Payments,Revenue
Walsall Council,http://opendatacommunities.org/id/metropolitan-district-council/walsall,WC105-731,30/06/2019,Resources and Transformation,BRITISH MUSLIM YOUTH GROUP,01/06/2019,"2,500.00",63000-PROFESSIONAL FEES AND SERVICES,INTEGRATED COMMUNITIES PROGRAMME,Supplies & Services,Revenue
Walsall Council,http://opendatacommunities.org/id/metropolitan-district-council/walsall,WC105-732,30/06/2019,Resources and Transformation,BRITISH MUSLIM YOUTH GROUP,01/06/2019,"6,250.00",30030-EXTERNAL TRAINING,PREVENT GRANT,Employees,Revenue
Walsall Council,http://opendatacommunities.org/id/metropolitan-district-council/walsall,WC105-733,30/06/2019,Resources and Transformation,BRITISH MUSLIM YOUTH GROUP,01/06/2019,"6,250.00",30030-EXTERNAL TRAINING,PREVENT GRANT,Employees,Revenue
Walsall Council,http://opendatacommunities.org/id/metropolitan-district-council/walsall,WC105-734,30/06/2019,Resources and Transformation,BRITISH TELECOMMUNICATIONS LTD,19/06/2019,622.00,63603-COST OF CALLS-TELEPHONES,PROCESSING,Supplies & Services,Revenue
Walsall Council,http://opendatacommunities.org/id/metropolitan-district-council/walsall,WC105-735,30/06/2019,Adult Social Care,BROADWAY HALLS CARE HOME,24/06/2019,"5,797.07",73501-RESIDENTIAL EMI,MENTAL HEALTH SUPPORT,Third Party Payments,Revenue
Walsall Council,http://opendatacommunities.org/id/metropolitan-district-council/walsall,WC105-736,30/06/2019,Resources and Transformation,BROADWAY UNITED REFORMED CHURCH,13/06/2019,450.00,63128-HIRE OF ROOM-SERVICES-FEES,ELECTORAL ADMINISTRATION,Supplies & Services,Revenue
Walsall Council,http://opendatacommunities.org/id/metropolitan-district-council/walsall,WC105-737,30/06/2019,Adult Social Care,BROOK DESIGN HARDWARE LTD T/A BROOKVENT,01/06/2019,"-11,273.67",60500-GENERAL MATERIALS,EMPLOYMENT LINKS TO WORK,Supplies & Services,Revenue
Walsall Council,http://opendatacommunities.org/id/metropolitan-district-council/walsall,WC105-738,30/06/2019,Holding Accounts,BROWNE JACOBSON SOLICITORS,17/06/2019,"1,799.00",67001-MISC INSURANCES - PAYMENT OF CLAIMS,PUBLIC LIABILITY,Supplies & Services,Revenue
Walsall Council,http://opendatacommunities.org/id/metropolitan-district-council/walsall,WC105-739,30/06/2019,Holding Accounts,BROWNE JACOBSON SOLICITORS,01/06/2019,"2,857.50",67001-MISC INSURANCES - PAYMENT OF CLAIMS,PUBLIC LIABILITY,Supplies & Services,Revenue
Walsall Council,http://opendatacommunities.org/id/metropolitan-district-council/walsall,WC105-740,30/06/2019,Centrally Held,BROWNE JACOBSON SOLICITORS,03/06/2019,"3,721.50",73014-LEGAL FEES-PRIV CONTRACTOR FEES,CORPORATE EXPENSES,Third Party Payments,Revenue
Walsall Council,http://opendatacommunities.org/id/metropolitan-district-council/walsall,WC105-741,30/06/2019,Centrally Held,BROWNE JACOBSON SOLICITORS,19/06/2019,"4,036.50",73014-LEGAL FEES-PRIV CONTRACTOR FEES,CORPORATE EXPENSES,Third Party Payments,Revenue
Walsall Council,http://opendatacommunities.org/id/metropolitan-district-council/walsall,WC105-742,30/06/2019,Childrens,BROWNHILLS ASPHALT & TARMAC LIMITED,25/06/2019,"1,497.60",01006-SITE WORKS MAIN CONTRACTORS,CFR 1297 JANE LANE SPECIAL SCHOOL EXPANSION,Capital,Capital
Walsall Council,http://opendatacommunities.org/id/metropolitan-district-council/walsall,WC105-743,30/06/2019,Childrens,BROWNHILLS ASPHALT & TARMAC LIMITED,14/06/2019,"1,530.00",01006-SITE WORKS MAIN CONTRACTORS,CFR 1299 MEADOW VIEW PRIMARY SCHOOL - PHASE 2 ROOFING,Capital,Capital
Walsall Council,http://opendatacommunities.org/id/metropolitan-district-council/walsall,WC105-744,30/06/2019,Childrens,BROWNHILLS ASPHALT & TARMAC LIMITED,25/06/2019,"39,540.00",01006-SITE WORKS MAIN CONTRACTORS,CFR 1299 MEADOW VIEW PRIMARY SCHOOL - PHASE 2 ROOFING,Capital,Capital
Walsall Council,http://opendatacommunities.org/id/metropolitan-district-council/walsall,WC105-745,30/06/2019,Childrens,BROWNHILLS COMMUNITY ASSOCIATION,01/06/2019,"-4,344.00",63120-CRECHE FACILITIES-SERVICES-FEES,FAMILY PLACEMENTS,Supplies & Services,Revenue
Walsall Council,http://opendatacommunities.org/id/metropolitan-district-council/walsall,WC105-746,30/06/2019,Economy & Environment,BROWNHILLS COMMUNITY ASSOCIATION,17/06/2019,815.00,63253-PAYMENT TO CONTRACTOR,MENTAL HEALTH,Third Party Payments,Revenue
Walsall Council,http://opendatacommunities.org/id/metropolitan-district-council/walsall,WC105-747,30/06/2019,Resources and Transformation,BROWNHILLS COMMUNITY ASSOCIATION,21/06/2019,"1,402.65",66500-GRANTS TO OTHER ORGS,COMMUNITY SAFETY 2012/2013,Third Party Payments,Revenue
Walsall Council,http://opendatacommunities.org/id/metropolitan-district-council/walsall,WC105-748,30/06/2019,Resources and Transformation,BROWNHILLS COMMUNITY ASSOCIATION,10/06/2019,"2,732.00",01006-SITE WORKS MAIN CONTRACTORS,CFR 1342 OPERATION REPAIR & MTCE OF COUNCIL BUILDINGS,Capital,Capital
Walsall Council,http://opendatacommunities.org/id/metropolitan-district-council/walsall,WC105-749,30/06/2019,Resources and Transformation,BROWNHILLS COMMUNITY ASSOCIATION,01/06/2019,"5,250.00",66500-GRANTS TO OTHER ORGS,BROWNHILLS COMMUNITY ASSOCIATION,Third Party Payments,Revenue
Walsall Council,http://opendatacommunities.org/id/metropolitan-district-council/walsall,WC105-750,30/06/2019,Childrens,BROWNHILLS COMMUNITY ASSOCIATION,01/06/2019,"6,446.70",66505-OTHER-GRANTS TO OTHER ORGS,EARLY YEARS - 3 YR OLDS,Third Party Payments,Revenue
Walsall Council,http://opendatacommunities.org/id/metropolitan-district-council/walsall,WC105-751,30/06/2019,Resources and Transformation,BROWNHILLS COMMUNITY ASSOCIATION,10/06/2019,"9,120.81",01006-SITE WORKS MAIN CONTRACTORS,CFR 1342 OPERATION REPAIR & MTCE OF COUNCIL BUILDINGS,Capital,Capital
Walsall Council,http://opendatacommunities.org/id/metropolitan-district-council/walsall,WC105-752,30/06/2019,Resources and Transformation,BROWNHILLS PARISH CHURCH,12/06/2019,256.00,63128-HIRE OF ROOM-SERVICES-FEES,ELECTORAL ADMINISTRATION,Supplies & Services,Revenue
Walsall Council,http://opendatacommunities.org/id/metropolitan-district-council/walsall,WC105-753,30/06/2019,Economy & Environment,BROXAP LTD,01/06/2019,655.00,60006-NEW-FURNITURE & EQUIPMENT,ARBORETUM,Supplies & Services,Revenue
Walsall Council,http://opendatacommunities.org/id/metropolitan-district-council/walsall,WC105-754,30/06/2019,Adult Social Care,REDACTED,11/06/2019,"1,734.00",73506-DIRECT PAYMENT,LEARNING DISABILITY SUPPORT,Third Party Payments,Revenue
Walsall Council,http://opendatacommunities.org/id/metropolitan-district-council/walsall,WC105-755,30/06/2019,Resources and Transformation,REDACTED,21/06/2019,400.00,40000-OPERATIONAL MAINTENANCE,CENTRALISED MAINTENANCE,Premises,Revenue
Walsall Council,http://opendatacommunities.org/id/metropolitan-district-council/walsall,WC105-756,30/06/2019,Childrens,BT PLC,11/06/2019,454.24,63603-COST OF CALLS-TELEPHONES,LOCALITY FAMILY SUPPORT-WEST,Supplies & Services,Revenue
Walsall Council,http://opendatacommunities.org/id/metropolitan-district-council/walsall,WC105-757,30/06/2019,Childrens,BT PLC,17/06/2019,526.47,63601-LANDLINE PHONES,BIRCHILLS CHILDCARE SERVICE,Supplies & Services,Revenue
Walsall Council,http://opendatacommunities.org/id/metropolitan-district-council/walsall,WC105-758,30/06/2019,Resources and Transformation,BT PLC,06/06/2019,"1,268.35",63807-COMMS LINKS-COMPUTER,NETWORKS,Supplies & Services,Revenue
Walsall Council,http://opendatacommunities.org/id/metropolitan-district-council/walsall,WC105-759,30/06/2019,Resources and Transformation,BT PLC,17/06/2019,"2,909.23",63601-LANDLINE PHONES,CENTRAL COMMUNICATIONS RECHARGES,Supplies & Services,Revenue
Walsall Council,http://opendatacommunities.org/id/metropolitan-district-council/walsall,WC105-760,30/06/2019,Resources and Transformation,BT PLC,06/06/2019,"27,737.56",63601-LANDLINE PHONES,CENTRAL COMMUNICATIONS RECHARGES,Supplies & Services,Revenue
Walsall Council,http://opendatacommunities.org/id/metropolitan-district-council/walsall,WC105-761,30/06/2019,Economy & Environment,BUFFET EXPRESS LTD,01/06/2019,214.00,61009-BEVERAGES-PROVISIONS,WALSALL ARENA AND ARTS CENTRE,Supplies & Services,Revenue
Walsall Council,http://opendatacommunities.org/id/metropolitan-district-council/walsall,WC105-762,30/06/2019,Economy & Environment,BUFFET EXPRESS LTD,01/06/2019,680.00,60500-GENERAL MATERIALS,A STARS PROJECT,Supplies & Services,Revenue
Walsall Council,http://opendatacommunities.org/id/metropolitan-district-council/walsall,WC105-763,30/06/2019,Adult Social Care,BUNZIL HEALTHCARE T/A CARESHOP,19/06/2019,287.25,60539-CLEANING MATERIALS,INTERMEDIATE CARE SERVICE,Supplies & Services,Revenue
Walsall Council,http://opendatacommunities.org/id/metropolitan-district-council/walsall,WC105-764,30/06/2019,Adult Social Care,BUPA NURSING HOMES ASTON COURT,24/06/2019,"1,774.96",73500-RESIDENTIAL,PHYSICAL SUPPORT,Third Party Payments,Revenue
Walsall Council,http://opendatacommunities.org/id/metropolitan-district-council/walsall,WC105-765,30/06/2019,Adult Social Care,BUSH HOME LTD,24/06/2019,"1,774.96",73500-RESIDENTIAL,MENTAL HEALTH SUPPORT,Third Party Payments,Revenue
Walsall Council,http://opendatacommunities.org/id/metropolitan-district-council/walsall,WC105-766,30/06/2019,Adult Social Care,BUSH HOME LTD,24/06/2019,"1,774.96",73500-RESIDENTIAL,MENTAL HEALTH SUPPORT,Third Party Payments,Revenue
Walsall Council,http://opendatacommunities.org/id/metropolitan-district-council/walsall,WC105-767,30/06/2019,Adult Social Care,BUSH HOME LTD,24/06/2019,"1,774.96",73500-RESIDENTIAL,PHYSICAL SUPPORT,Third Party Payments,Revenue
Walsall Council,http://opendatacommunities.org/id/metropolitan-district-council/walsall,WC105-768,30/06/2019,Adult Social Care,BUSH HOME LTD,24/06/2019,"1,774.96",73500-RESIDENTIAL,MENTAL HEALTH SUPPORT,Third Party Payments,Revenue
Walsall Council,http://opendatacommunities.org/id/metropolitan-district-council/walsall,WC105-769,30/06/2019,Adult Social Care,BUSH HOME LTD,24/06/2019,"1,774.96",73500-RESIDENTIAL,PHYSICAL SUPPORT,Third Party Payments,Revenue
Walsall Council,http://opendatacommunities.org/id/metropolitan-district-council/walsall,WC105-770,30/06/2019,Adult Social Care,BUSH HOME LTD,24/06/2019,"1,774.96",73500-RESIDENTIAL,SOCIAL SUPPORT,Third Party Payments,Revenue
Walsall Council,http://opendatacommunities.org/id/metropolitan-district-council/walsall,WC105-771,30/06/2019,Adult Social Care,BUSH HOME LTD,24/06/2019,"1,972.24",73501-RESIDENTIAL EMI,PHYSICAL SUPPORT,Third Party Payments,Revenue
Walsall Council,http://opendatacommunities.org/id/metropolitan-district-council/walsall,WC105-772,30/06/2019,Adult Social Care,BUSH HOME LTD,24/06/2019,"1,972.24",73501-RESIDENTIAL EMI,MENTAL HEALTH SUPPORT,Third Party Payments,Revenue
Walsall Council,http://opendatacommunities.org/id/metropolitan-district-council/walsall,WC105-773,30/06/2019,Adult Social Care,BUSH HOME LTD,24/06/2019,"1,972.24",73501-RESIDENTIAL EMI,PHYSICAL SUPPORT,Third Party Payments,Revenue
Walsall Council,http://opendatacommunities.org/id/metropolitan-district-council/walsall,WC105-774,30/06/2019,Adult Social Care,BUSH HOME LTD,24/06/2019,"1,972.24",73501-RESIDENTIAL EMI,PHYSICAL SUPPORT,Third Party Payments,Revenue
Walsall Council,http://opendatacommunities.org/id/metropolitan-district-council/walsall,WC105-775,30/06/2019,Adult Social Care,BUSH HOME LTD,24/06/2019,"1,972.24",73501-RESIDENTIAL EMI,PHYSICAL SUPPORT,Third Party Payments,Revenue
Walsall Council,http://opendatacommunities.org/id/metropolitan-district-council/walsall,WC105-776,30/06/2019,Adult Social Care,BUSH HOME LTD,24/06/2019,"1,972.24",73501-RESIDENTIAL EMI,PHYSICAL SUPPORT,Third Party Payments,Revenue
Walsall Council,http://opendatacommunities.org/id/metropolitan-district-council/walsall,WC105-777,30/06/2019,Childrens,BUSY BEES CHILDCARE LTD,07/06/2019,255.45,66505-OTHER-GRANTS TO OTHER ORGS,EARLY YEARS - 2 YR OLDS,Third Party Payments,Revenue
Walsall Council,http://opendatacommunities.org/id/metropolitan-district-council/walsall,WC105-778,30/06/2019,Childrens,BUSY BEES CHILDCARE LTD,01/06/2019,"13,572.00",66505-OTHER-GRANTS TO OTHER ORGS,EARLY YEARS - 3 YR OLDS,Third Party Payments,Revenue
Walsall Council,http://opendatacommunities.org/id/metropolitan-district-council/walsall,WC105-779,30/06/2019,Childrens,BY THE BRIDGE,14/06/2019,"2,854.29",74037-INDEPENDENT FOSTER CARE-OTH AGENCY PROVISION,EXTERNAL FOSTER CARE PROVISION,Third Party Payments,Revenue
Walsall Council,http://opendatacommunities.org/id/metropolitan-district-council/walsall,WC105-780,30/06/2019,Resources and Transformation,BYTES SOFTWARE SERVICES,12/06/2019,"22,224.75",63800-COMPUTER EQUIPMENT AND SUPPLIES,APPLICATIONS,Supplies & Services,Revenue
Walsall Council,http://opendatacommunities.org/id/metropolitan-district-council/walsall,WC105-781,30/06/2019,Economy & Environment,C & W UK LLP,01/06/2019,750.00,63000-PROFESSIONAL FEES AND SERVICES,SHOPS AND COMMERCIAL PREMISES,Supplies & Services,Revenue
Walsall Council,http://opendatacommunities.org/id/metropolitan-district-council/walsall,WC105-782,30/06/2019,Economy & Environment,C & W UK LLP,24/06/2019,"13,415.00",63000-PROFESSIONAL FEES AND SERVICES,ENTERPRISE ZONE,Supplies & Services,Revenue
Walsall Council,http://opendatacommunities.org/id/metropolitan-district-council/walsall,WC105-783,30/06/2019,Childrens,REDACTED,14/06/2019,720.00,74501-MAINTENANCE ALLOWANCE-FOSTER CARERS,INTERNAL FOSTER CARE PROVISION,Transfer Payments,Revenue
Walsall Council,http://opendatacommunities.org/id/metropolitan-district-council/walsall,WC105-784,30/06/2019,Childrens,REDACTED,14/06/2019,720.00,74501-MAINTENANCE ALLOWANCE-FOSTER CARERS,INTERNAL FOSTER CARE PROVISION,Transfer Payments,Revenue
Walsall Council,http://opendatacommunities.org/id/metropolitan-district-council/walsall,WC105-785,30/06/2019,Childrens,REDACTED,14/06/2019,860.00,74501-MAINTENANCE ALLOWANCE-FOSTER CARERS,INTERNAL FOSTER CARE PROVISION,Transfer Payments,Revenue
Walsall Council,http://opendatacommunities.org/id/metropolitan-district-council/walsall,WC105-786,30/06/2019,Childrens,REDACTED,14/06/2019,"2,400.00",74508-INTERNAL FOSTER CARERS-CARER FEES,INTERNAL FOSTER CARE PROVISION,Transfer Payments,Revenue
Walsall Council,http://opendatacommunities.org/id/metropolitan-district-council/walsall,WC105-787,30/06/2019,Childrens,REDACTED,14/06/2019,720.00,74501-MAINTENANCE ALLOWANCE-FOSTER CARERS,INTERNAL FOSTER CARE PROVISION,Transfer Payments,Revenue
Walsall Council,http://opendatacommunities.org/id/metropolitan-district-council/walsall,WC105-788,30/06/2019,Childrens,REDACTED,14/06/2019,860.00,74501-MAINTENANCE ALLOWANCE-FOSTER CARERS,INTERNAL FOSTER CARE PROVISION,Transfer Payments,Revenue
Walsall Council,http://opendatacommunities.org/id/metropolitan-district-council/walsall,WC105-789,30/06/2019,Childrens,REDACTED,14/06/2019,"1,600.00",74508-INTERNAL FOSTER CARERS-CARER FEES,INTERNAL FOSTER CARE PROVISION,Transfer Payments,Revenue
